﻿ObjectId,fiscal_year,invoice_date,invoice_number,invoice_amount,payee,payment_date,payment_number,agency,expenditure_type,expenditure_category,spend_category,cost_center,project,program,grant_,fund,financing_source,region,extended_amount
1,2019,2018-06-10,1941832,1900,ACTION LANDSCAPE INC,2018-07-05,989758,Public Works & Assets Department,Metro Government Capital,Contractual Services,Payments to Contractors,,,,,MISC SPECIAL REVENUE,,,1900
2,2019,2018-06-05,1938829,2499.37,S WALK INC,2018-07-03,989587,Public Works & Assets Department,Metro Government Capital,Contractual Services,Sidewalk Construction/ Repair Services,,,,,Metro GO Bonds 17A,,,999.75
3,2019,2018-07-06,1946971,5040,EIGHT ELEVEN GROUP LLC,2018-07-31,993857,Technology Services Department,Metro Government Capital,Contractual Services,Consulting Services,,,,,Metro GO Bonds 16A,,,262.04
4,2019,2018-05-18,1938078,14794.7,RESOURCES INC,2018-07-03,989579,Parks & Recreation,Metro Government Capital,Contractual Services,Payments to Contractors,,,,,Metro GO Bonds 14D,,,14794.7
5,2019,2018-06-20,1943576,80680.3,ALL TRAFFIC SOLUTIONS INC,2018-07-19,991620,Metro Police,Metro Government Capital,Equipment/Capital Outlay,Law Enforcement Equipment,,,,,Capital-Council Infrastructure Funds,,,80680.3
6,2019,2018-07-18,1949007,25000,LUCKETT & FARLEY ARCHITECTS ENGINEERS,2018-08-14,995644,Parks & Recreation,Metro Government Capital,Contractual Services,Payments to Contractors,,,,,Metro GO Bonds 14D,,,25000
7,2019,2018-06-05,1939238,2373.09,S WALK INC,2018-07-03,989587,Public Works & Assets Department,Metro Government Capital,Contractual Services,Sidewalk Construction/ Repair Services,,,,,Metro GO Bonds 17A,,,949.24
8,2019,2018-06-08,1946177,30279.53,QK4 INC,2018-07-13,991007,Parks & Recreation,Metro Government Capital,Contractual Services,Engineering & Architectural Services,,,,,Federally Funded,,,30279.53
9,2019,2018-07-06,1946971,5040,EIGHT ELEVEN GROUP LLC,2018-07-31,993857,Technology Services Department,Metro Government Capital,Contractual Services,Consulting Services,,,,,Metro GO Bonds 16A,,,4777.96
10,2019,2018-06-08,1948078,15171.99,HANKA CONSULTING,2018-07-26,993075,Public Works & Assets Department,Metro Government Capital,Contractual Services,Sidewalk Construction/ Repair Services,,,,,Metro GO Bonds 16A,,,3673.22
11,2019,2018-06-29,1944619,781.72,HALL CONTRACTING OF KENTUCKY INC,2018-07-24,992769,Public Works & Assets Department,Metro Government Capital,Contractual Services,Paving/Striping,,,,,Metro GO 2015A - Tax Exempt Bond,,,781.72
12,2019,2018-06-30,1948868,6250,QK4 INC,2018-07-26,993165,Public Works & Assets Department,Metro Government Capital,Contractual Services,Sidewalk Construction/ Repair Services,,,,,Capital Project Fund,,,6250
13,2019,2018-06-22,1945349,16540,LIFESTONE DYNAMIC LLC,2018-07-12,990784,Develop Louisville,Metro Government Capital,Contractual Services,Grant Community Assistance,,,,,CDBG 2017,,,16540
14,2019,2018-06-05,1939238,2373.09,S WALK INC,2018-07-03,989587,Public Works & Assets Department,Metro Government Capital,Contractual Services,Sidewalk Construction/ Repair Services,,,,,Metro GO Bonds 17A,,,949.23
15,2019,2018-05-31,1936603,2805,LUCKETT & FARLEY ARCHITECTS ENGINEERS,2018-07-12,990792,Office of Management & Budget,Metro Government Capital,Contractual Services,Engineering & Architectural Services,,,,,State Funding,,,2805
16,2019,2018-07-19,1949462,4595.66,DEBRA KUEMPEL INC,2018-07-27,993359,Library,Metro Government Capital,Contractual Services,Other Building Maintenance/Repair Services,,,,,MISC SPECIAL REVENUE,,,2921.46
17,2019,2018-02-16,1945496,5040,EIGHT ELEVEN GROUP LLC,2018-07-19,991720,Technology Services Department,Metro Government Capital,Contractual Services,Consulting Services,,,,,Metro GO Bonds 16A,,,5040
18,2019,2018-06-11,1946419,1475.02,HANKA CONSULTING,2018-07-26,993075,Public Works & Assets Department,Metro Government Capital,Contractual Services,Sidewalk Construction/ Repair Services,,,,,Metro GO Bonds 16A,,,357.11
19,2019,2017-12-08,1943741,95295.21,JEAN HENRY WBE LLC,2018-07-05,989807,Public Works & Assets Department,Metro Government Capital,Contractual Services,Sidewalk Construction/ Repair Services,,,,,Capital-Council Infrastructure Funds,,,20419.9
20,2019,2018-06-05,1939341,2077.53,S WALK INC,2018-07-03,989587,Public Works & Assets Department,Metro Government Capital,Contractual Services,Sidewalk Construction/ Repair Services,,,,,Metro GO Bonds 17A,,,831.01
21,2019,2018-05-24,1947234,3179,PRUDENTIAL HEATING & AC,2018-07-19,991705,Develop Louisville,Metro Government Capital,Contractual Services,Grant Community Assistance,,,,,CDBG 2017,,,3179
22,2019,2018-06-30,1947611,2175,BCA ENVIRONMENTAL CONSULTANTS LLC,2018-07-19,991630,Metro Animal Services,Metro Government Capital,Contractual Services,Building Construction Services,,,,,MISC SPECIAL REVENUE,,,2175
23,2019,2018-04-20,1950397,621.87,B&S ELECTRIC SUPPLY COMPANY INC,2018-07-31,993716,Louisville Zoo,Metro Government Capital,Contractual Services,Payments to Contractors,,,,,Capital Project Fund,,,303.18
24,2019,2018-07-09,1947760,49.5,HANKA CONSULTING,2018-08-03,994396,Public Works & Assets Department,Metro Government Capital,Contractual Services,Sidewalk Construction/ Repair Services,,,,,Metro GO Bonds 14D,,,18.91
25,2019,2018-06-08,1938972,4536,EIGHT ELEVEN GROUP LLC,2018-07-19,991720,Technology Services Department,Metro Government Capital,Contractual Services,Consulting Services,,,,,Metro GO Bonds 16A,,,-236
26,2019,2018-06-12,1946421,2692.63,HANKA CONSULTING,2018-07-26,993075,Public Works & Assets Department,Metro Government Capital,Contractual Services,Sidewalk Construction/ Repair Services,,,,,Metro GO Bonds 16A,,,651.9
27,2019,2018-06-05,1939341,2077.53,S WALK INC,2018-07-03,989587,Public Works & Assets Department,Metro Government Capital,Contractual Services,Sidewalk Construction/ Repair Services,,,,,Metro GO Bonds 17A,,,831.01
28,2019,2018-05-18,1943047,5000,SABER KHOSHROSHAHI,2018-07-06,990071,Develop Louisville,Metro Government Capital,Contractual Services,Grant Community Assistance,,,,,CDBG 2017,,,5000
29,2019,2018-04-20,1950397,621.87,B&S ELECTRIC SUPPLY COMPANY INC,2018-07-31,993716,Louisville Zoo,Metro Government Capital,Contractual Services,Payments to Contractors,,,,,Capital Project Fund,,,-303.18
30,2019,2018-05-30,1949588,20122.54,B&S ELECTRIC SUPPLY COMPANY INC,2018-07-27,993335,Louisville Zoo,Metro Government Capital,Contractual Services,Payments to Contractors,,,,,Capital Project Fund,,,20122.54
31,2019,2018-05-16,1949589,269.23,B&S ELECTRIC SUPPLY COMPANY INC,2018-07-27,993335,Louisville Zoo,Metro Government Capital,Contractual Services,Payments to Contractors,,,,,Capital Project Fund,,,269.23
32,2019,2018-06-27,1950378,8015.64,B&S ELECTRIC SUPPLY COMPANY INC,2018-07-31,993716,Louisville Zoo,Metro Government Capital,Contractual Services,Payments to Contractors,,,,,Capital Project Fund,,,3301.35
33,2019,2018-06-27,1950378,8015.64,B&S ELECTRIC SUPPLY COMPANY INC,2018-07-31,993716,Louisville Zoo,Metro Government Capital,Contractual Services,Payments to Contractors,,,,,Capital Project Fund,,,-3301.35
34,2019,2018-05-08,1946165,8411.02,CERTEX-USA INC,2018-07-20,991891,Louisville Zoo,Metro Government Capital,Contractual Services,Payments to Contractors,,,,,Capital Project Fund,,,7500
35,2019,2018-06-20,1946321,69.96,CHAPMAN DYER STEEL MFG CO,2018-07-20,991895,Louisville Zoo,Metro Government Capital,Contractual Services,Payments to Contractors,,,,,Capital Project Fund,,,69.96
36,2019,2018-06-18,1946391,7271.87,CHAPMAN DYER STEEL MFG CO,2018-07-20,991895,Louisville Zoo,Metro Government Capital,Contractual Services,Payments to Contractors,,,,,Capital Project Fund,,,7271.87
37,2019,2018-06-18,1946391,7271.87,CHAPMAN DYER STEEL MFG CO,2018-07-20,991895,Louisville Zoo,Metro Government Capital,Contractual Services,Payments to Contractors,,,,,Capital Project Fund,,,7271.87
38,2019,2018-06-18,1946391,7271.87,CHAPMAN DYER STEEL MFG CO,2018-07-20,991895,Louisville Zoo,Metro Government Capital,Contractual Services,Payments to Contractors,,,,,Capital Project Fund,,,-7271.87
39,2019,2018-05-31,1946245,9698.93,CLR DESIGN INC,2018-07-20,991897,Louisville Zoo,Metro Government Capital,Contractual Services,Payments to Contractors,,,,,Capital Project Fund,,,5044.92
40,2019,2018-05-31,1946248,1500,CLR DESIGN INC,2018-07-20,991897,Louisville Zoo,Metro Government Capital,Contractual Services,Payments to Contractors,,,,,Capital Project Fund,,,780.23
41,2019,2018-05-14,1949591,575.28,INFRA-METALS CO,2018-07-27,993383,Louisville Zoo,Metro Government Capital,Contractual Services,Payments to Contractors,,,,,Capital Project Fund,,,575.28
42,2019,2018-05-31,1943693,1639.05,INFRA-METALS CO,2018-07-10,990388,Louisville Zoo,Metro Government Capital,Contractual Services,Payments to Contractors,,,,,Capital Project Fund,,,1639.05
43,2019,2018-04-27,1950827,5000,MACHINING CONCEPTS INC,2018-08-09,995104,Louisville Zoo,Metro Government Capital,Contractual Services,Payments to Contractors,,,,,Capital Project Fund,,,2500
44,2019,2018-06-20,1946212,813.66,MCMASTER CARR SUPPLY CO,2018-07-24,992797,Louisville Zoo,Metro Government Capital,Contractual Services,Payments to Contractors,,,,,Capital Project Fund,,,813.66
45,2019,2018-07-08,1946866,700,MVK LTD,2018-07-27,993412,Louisville Zoo,Metro Government Capital,Contractual Services,Payments to Contractors,,,,,Capital Project Fund,,,245
46,2019,2018-02-26,1941539,1280,NATIONAL ENVIRONMENTAL CONTRACTING INC,2018-07-10,990425,Louisville Zoo,Metro Government Capital,Contractual Services,Payments to Contractors,,,,,Capital Project Fund,,,1280
47,2019,2018-06-08,1946169,2582.24,NORMAN INDUSTRIAL,2018-07-24,992811,Louisville Zoo,Metro Government Capital,Contractual Services,Payments to Contractors,,,,,Capital Project Fund,,,2582.24
48,2019,2018-06-08,1946218,2002,NORMAN INDUSTRIAL,2018-07-24,992811,Louisville Zoo,Metro Government Capital,Contractual Services,Payments to Contractors,,,,,Capital Project Fund,,,2002
49,2019,2018-06-26,1946405,167,NORMAN INDUSTRIAL,2018-07-24,992811,Louisville Zoo,Metro Government Capital,Contractual Services,Payments to Contractors,,,,,Capital Project Fund,,,167
50,2019,2017-12-08,1943741,95295.21,JEAN HENRY WBE LLC,2018-07-05,989807,Public Works & Assets Department,Metro Government Capital,Contractual Services,Sidewalk Construction/ Repair Services,,,,,General Obligation Bonds 2009,,,58356.35
51,2019,2018-06-13,1939597,33567.76,ONEAL INDUSTRIES INC,2018-07-10,990433,Louisville Zoo,Metro Government Capital,Contractual Services,Payments to Contractors,,,,,Capital Project Fund,,,13233.89
52,2019,2018-06-27,1946238,354098.75,WHITTENBERG CONSTRUCTION COMPANY,2018-07-24,992870,Louisville Zoo,Metro Government Capital,Contractual Services,Payments to Contractors,,,,,Capital Project Fund,,,75663.24
53,2019,2018-07-12,1947163,10416.98,WOOD ENVIRONMENTAL & INFRASTRUCTURE SOLUTION INC,2018-07-27,993470,Louisville Zoo,Metro Government Capital,Contractual Services,Payments to Contractors,,,,,Capital Project Fund,,,3645.94
54,2019,2018-06-21,1942230,268.23,MOON LEASING INC,2018-07-17,991349,Metro Animal Services,Metro Government Capital,Contractual Services,Payments to Contractors,,,,,Capital Project Fund,,,220
55,2019,2018-06-21,1942230,268.23,MOON LEASING INC,2018-07-17,991349,Metro Animal Services,Metro Government Capital,Contractual Services,Payments to Contractors,,,,,Capital Project Fund,,,48.23
56,2019,2018-06-28,1944988,64464,COMSTOCK BROTHERS ELECTRIC CO LLC,2018-07-20,991898,Public Works & Assets Department,Metro Government Capital,Contractual Services,Electrical Expenses,,,,,State Funding,,,30000
57,2019,2018-06-28,1944988,64464,COMSTOCK BROTHERS ELECTRIC CO LLC,2018-07-20,991898,Public Works & Assets Department,Metro Government Capital,Contractual Services,Electrical Expenses,,,,,State Funding,,,34464
58,2019,2018-06-30,1944359,79717,EZ CONSTRUCTION COMPANY INC,2018-07-19,991655,Parks & Recreation,Metro Government Capital,Contractual Services,Payments to Contractors,,,,,Metro GO Bonds 14D,,,78779.62
59,2019,2018-05-31,1938211,43551,EZ CONSTRUCTION COMPANY INC,2018-07-26,993050,Parks & Recreation,Metro Government Capital,Contractual Services,Payments to Contractors,,,,,Metro GO Bonds 14D,,,20414.13
60,2019,2018-07-19,1950003,158,TETRA TECH INC,2018-07-31,993860,Parks & Recreation,Metro Government Capital,Contractual Services,Payments to Contractors,,,,,Metro GO Bonds 14D,,,158
61,2019,2018-05-31,1938211,43551,EZ CONSTRUCTION COMPANY INC,2018-07-26,993050,Parks & Recreation,Metro Government Capital,Contractual Services,Payments to Contractors,,,,,MISC SPECIAL REVENUE,,,23136.87
62,2019,2018-06-30,1944359,79717,EZ CONSTRUCTION COMPANY INC,2018-07-19,991655,Parks & Recreation,Metro Government Capital,Contractual Services,Payments to Contractors,,,,,MISC SPECIAL REVENUE,,,937.38
63,2019,2018-06-15,1940562,2300,STRAND ASSOCIATES INC,2018-08-09,995147,Public Works & Assets Department,Metro Government Capital,Equipment/Capital Outlay,Right of Way Land,,,,,State Funding,,,2300
64,2019,2018-06-29,1944489,190000,NATIONAL ENVIRONMENTAL CONTRACTING INC,2018-07-10,990263,Economic Development,Metro Government Capital,Contractual Services,Payments to Contractors,,,,,Metro GO Bonds 17 BAN,,,190000
65,2019,2018-06-29,1944489,190000,NATIONAL ENVIRONMENTAL CONTRACTING INC,2018-07-10,990263,Economic Development,Metro Government Capital,Contractual Services,Payments to Contractors,,,,,Metro GO Bonds 17 BAN,,,-190000
66,2019,2018-06-29,1944489,190000,NATIONAL ENVIRONMENTAL CONTRACTING INC,2018-07-10,990263,Economic Development,Metro Government Capital,Contractual Services,Payments to Contractors,,,,,Metro GO Bonds 17 BAN,,,190000
67,2019,2018-05-31,1944018,7267.78,DEBRA KUEMPEL INC,2018-07-05,989782,Parks & Recreation,Metro Government Capital,Contractual Services,Other Project Expenditure,,,,,Capital Project Fund,,,7267.78
68,2019,2018-06-20,1943462,1265,TETRA TECH INC,2018-07-03,989607,Parks & Recreation,Metro Government Capital,Contractual Services,Payments to Contractors,,,,,Metro GO Notes 14E,,,1265
69,2019,2018-06-29,1944631,118460.51,HALL CONTRACTING OF KENTUCKY INC,2018-07-24,992769,Public Works & Assets Department,Metro Government Capital,Contractual Services,Road Construction/ Repair Services,,,,,Metro GO Bonds 17A,,,54064.83
70,2019,2018-06-29,1944631,118460.51,HALL CONTRACTING OF KENTUCKY INC,2018-07-24,992769,Public Works & Assets Department,Metro Government Capital,Contractual Services,Road Construction/ Repair Services,,,,,Metro GO Bonds 17A,,,54064.82
71,2019,2018-06-29,1944633,214740.56,HALL CONTRACTING OF KENTUCKY INC,2018-07-24,992769,Public Works & Assets Department,Metro Government Capital,Contractual Services,Road Construction/ Repair Services,,,,,Metro GO Bonds 17A,,,38250
72,2019,2018-06-29,1944633,214740.56,HALL CONTRACTING OF KENTUCKY INC,2018-07-24,992769,Public Works & Assets Department,Metro Government Capital,Contractual Services,Road Construction/ Repair Services,,,,,Metro GO Bonds 17A,,,38250
73,2019,2017-12-08,1943741,95295.21,JEAN HENRY WBE LLC,2018-07-05,989807,Public Works & Assets Department,Metro Government Capital,Contractual Services,Road Construction/ Repair Services,,,,,Capital-Council Infrastructure Funds,,,16518.96
74,2019,2018-06-30,1948866,2250,QK4 INC,2018-07-26,993165,Public Works & Assets Department,Metro Government Capital,Contractual Services,Sidewalk Construction/ Repair Services,,,,,Capital Project Fund,,,2250
75,2019,2018-07-12,1948047,3594.35,WOOD ENVIRONMENTAL & INFRASTRUCTURE SOLUTION INC,2018-07-23,992186,Metro Animal Services,Metro Government Capital,Contractual Services,Building Construction Services,,,,,MISC SPECIAL REVENUE,,,3594.35
76,2019,2018-06-05,1939240,2606.43,S WALK INC,2018-07-03,989587,Public Works & Assets Department,Metro Government Capital,Contractual Services,Sidewalk Construction/ Repair Services,,,,,Metro GO Bonds 17A,,,1042.57
77,2019,2018-06-05,1939240,2606.43,S WALK INC,2018-07-03,989587,Public Works & Assets Department,Metro Government Capital,Contractual Services,Sidewalk Construction/ Repair Services,,,,,Metro GO Bonds 17A,,,1042.57
78,2019,2018-06-08,1938972,4536,EIGHT ELEVEN GROUP LLC,2018-07-19,991720,Technology Services Department,Metro Government Capital,Contractual Services,Consulting Services,,,,,Metro GO Bonds 16A,,,236
79,2019,2018-04-12,1944433,1320,CONSOLIDATED ELECTRICAL DISTRIBUTORS,2018-07-10,990228,Parks & Recreation,Metro Government Capital,Contractual Services,Other Building Maintenance/Repair Services,,,,,Metro GO 2015A - Tax Exempt Bond,,,1320
80,2019,2018-06-12,1947781,13063.61,HANKA CONSULTING,2018-07-26,993075,Public Works & Assets Department,Metro Government Capital,Contractual Services,Sidewalk Construction/ Repair Services,,,,,Metro GO Bonds 14D,,,4989.5
81,2019,2018-06-29,1947039,320.58,DEBRA KUEMPEL INC,2018-07-24,992748,Library,Metro Government Capital,Contractual Services,Other Building Maintenance/Repair Services,,,,,Metro GO Notes 17A,,,320.58
82,2019,2018-05-11,1930880,5040,EIGHT ELEVEN GROUP LLC,2018-07-19,991720,Technology Services Department,Metro Government Capital,Contractual Services,Consulting Services,,,,,Metro GO Bonds 16A,,,5040
83,2019,2018-06-08,1945865,17385.63,HANKA CONSULTING,2018-07-13,990980,Public Works & Assets Department,Metro Government Capital,Contractual Services,Sidewalk Construction/ Repair Services,,,,,Metro GO Bonds 16A,,,4209.15
84,2019,2018-07-02,1946316,35715,YATES ENGINEERING SERVICES LLC,2018-07-19,991743,Technology Services Department,Metro Government Capital,Contractual Services,Consulting Services,,,,,Metro GO Bonds 17A,,,35715
85,2019,2018-06-30,1945991,4000,BRAYLYN STEWART,2018-07-17,991252,Develop Louisville,Metro Government Capital,Contractual Services,Other Project Expenditure,,,,,MISC SPECIAL REVENUE,,,4000
86,2019,2018-06-08,1948078,15171.99,HANKA CONSULTING,2018-07-26,993075,Public Works & Assets Department,Metro Government Capital,Contractual Services,Sidewalk Construction/ Repair Services,,,,,Metro GO Bonds 14D,,,5794.78
87,2019,2018-06-05,1939394,223.56,S WALK INC,2018-07-03,989587,Public Works & Assets Department,Metro Government Capital,Contractual Services,Sidewalk Construction/ Repair Services,,,,,Metro GO Bonds 17A,,,89.42
88,2019,2018-06-25,1945765,28906.03,S WALK INC,2018-07-26,993175,Public Works & Assets Department,Metro Government Capital,Contractual Services,Road Construction/ Repair Services,,,,,Municipal Aid,,,17292.26
89,2019,2018-06-22,1943267,5040,EIGHT ELEVEN GROUP LLC,2018-07-19,991720,Technology Services Department,Metro Government Capital,Contractual Services,Consulting Services,,,,,Metro GO Bonds 16A,,,5040
90,2019,2018-06-05,1939394,223.56,S WALK INC,2018-07-03,989587,Public Works & Assets Department,Metro Government Capital,Contractual Services,Sidewalk Construction/ Repair Services,,,,,Metro GO Bonds 17A,,,89.43
91,2019,2018-06-12,1945081,957.36,HANKA CONSULTING,2018-07-12,990755,Public Works & Assets Department,Metro Government Capital,Contractual Services,Sidewalk Construction/ Repair Services,,,,,Metro GO Bonds 16A,,,231.78
92,2019,2018-06-25,1945669,30602,YATES ENGINEERING SERVICES LLC,2018-07-19,991743,Technology Services Department,Metro Government Capital,Contractual Services,Consulting Services,,,,,Metro GO Bonds 17A,,,30602
93,2019,2018-06-11,1946419,1475.02,HANKA CONSULTING,2018-07-26,993075,Public Works & Assets Department,Metro Government Capital,Contractual Services,Sidewalk Construction/ Repair Services,,,,,Metro GO Bonds 14D,,,563.37
94,2019,2018-06-30,1948085,4100,HALL CONTRACTING OF KENTUCKY INC,2018-07-26,993074,Public Works & Assets Department,Metro Government Capital,Contractual Services,Payments to Contractors,,,,,Capital-Council Infrastructure Funds,,,4100
95,2019,2018-06-30,1946542,4000,BRAYLYN STEWART,2018-07-26,993010,Develop Louisville,Metro Government Capital,Contractual Services,Other Project Expenditure,,,,,MISC SPECIAL REVENUE,,,4000
96,2019,2018-07-25,1950118,121.43,GABRIEL FRITZ,2018-07-27,993280,Develop Louisville,Metro Government Capital,Contractual Services,Professional Services,,,,,Metro GO Notes 17A,,,121.43
97,2019,2018-06-08,1945215,2263.98,HANKA CONSULTING,2018-07-12,990755,Public Works & Assets Department,Metro Government Capital,Contractual Services,Sidewalk Construction/ Repair Services,,,,,Metro GO Bonds 16A,,,548.12
98,2019,2018-06-05,1939396,877.31,S WALK INC,2018-07-03,989587,Public Works & Assets Department,Metro Government Capital,Contractual Services,Sidewalk Construction/ Repair Services,,,,,Metro GO Bonds 17A,,,350.92
99,2019,2018-06-25,1945670,27496.5,YATES ENGINEERING SERVICES LLC,2018-07-19,991743,Technology Services Department,Metro Government Capital,Contractual Services,Consulting Services,,,,,Metro GO Bonds 17A,,,27496.5
100,2019,2018-06-12,1946421,2692.63,HANKA CONSULTING,2018-07-26,993075,Public Works & Assets Department,Metro Government Capital,Contractual Services,Sidewalk Construction/ Repair Services,,,,,Metro GO Bonds 14D,,,1028.42
101,2019,2018-06-30,1948087,6150,HALL CONTRACTING OF KENTUCKY INC,2018-07-26,993074,Public Works & Assets Department,Metro Government Capital,Contractual Services,Payments to Contractors,,,,,Capital-Council Infrastructure Funds,,,6150
102,2019,2018-06-08,1945216,18619.06,HANKA CONSULTING,2018-07-12,990755,Public Works & Assets Department,Metro Government Capital,Contractual Services,Sidewalk Construction/ Repair Services,,,,,Metro GO Bonds 16A,,,4507.77
103,2019,2018-06-29,1943708,66783,DEBRA KUEMPEL INC,2018-07-27,993359,Public Works & Assets Department,Metro Government Capital,Contractual Services,HVAC Mechanical,,,,,Metro GO Notes 17A,,,66783
104,2019,2018-06-05,1939396,877.31,S WALK INC,2018-07-03,989587,Public Works & Assets Department,Metro Government Capital,Contractual Services,Sidewalk Construction/ Repair Services,,,,,Metro GO Bonds 17A,,,350.93
105,2019,2018-06-19,1942684,37.15,BARGAIN SUPPLY COMPANY INC,2018-07-03,989316,Public Works & Assets Department,Metro Government Capital,Supplies,Traffic/Street Signs Hardware Supplies,,,,,Municipal Aid,,,37.15
106,2019,2018-06-12,1945213,6789.16,HANKA CONSULTING,2018-07-12,990755,Public Works & Assets Department,Metro Government Capital,Contractual Services,Sidewalk Construction/ Repair Services,,,,,Metro GO Bonds 16A,,,1643.69
107,2019,2018-06-19,1942499,43359.1,LUSK MECHANICALCONTRACTORS INC,2018-07-06,990049,Public Works & Assets Department,Metro Government Capital,Contractual Services,HVAC Mechanical,,,,,Metro GO Notes 17A,,,43359.1
108,2019,2018-06-05,1939211,197.93,S WALK INC,2018-07-03,989587,Public Works & Assets Department,Metro Government Capital,Contractual Services,Sidewalk Construction/ Repair Services,,,,,Metro GO Bonds 17A,,,79.17
109,2019,2018-05-29,1938266,26873.29,EZ CONSTRUCTION COMPANY INC,2018-07-03,989457,Public Works & Assets Department,Metro Government Capital,Contractual Services,Payments to Contractors,,,,,Metro GO Bonds 17A,,,2160.68
110,2019,2018-06-07,1939228,273500.94,QK4 INC,2018-07-03,989572,Public Works & Assets Department,Metro Government Capital,Contractual Services,Engineering & Architectural Services,,,,,Capital Project Fund,,,273500.94
111,2019,2018-06-08,1945865,17385.63,HANKA CONSULTING,2018-07-13,990980,Public Works & Assets Department,Metro Government Capital,Contractual Services,Sidewalk Construction/ Repair Services,,,,,Metro GO Bonds 14D,,,6640.25
112,2019,2018-04-10,1946916,636,WOOD ENVIRONMENTAL & INFRASTRUCTURE SOLUTION INC,2018-07-17,991447,Parks & Recreation,Metro Government Capital,Contractual Services,Sidewalk Construction/ Repair Services,,,,,Capital Project Fund,,,636
113,2019,2018-06-28,1944980,2500,CREATIVE CONCEPTS VENTURES INC,2018-07-23,992081,Public Works & Assets Department,Metro Government Capital,Contractual Services,Interior Repairs,,,,,Metro GO Notes 17A,,,2500
114,2019,2018-06-05,1939211,197.93,S WALK INC,2018-07-03,989587,Public Works & Assets Department,Metro Government Capital,Contractual Services,Sidewalk Construction/ Repair Services,,,,,Metro GO Bonds 17A,,,79.17
115,2019,2018-06-12,1945214,772.99,HANKA CONSULTING,2018-07-12,990755,Public Works & Assets Department,Metro Government Capital,Contractual Services,Sidewalk Construction/ Repair Services,,,,,Metro GO Bonds 16A,,,187.14
116,2019,2018-06-12,1945081,957.36,HANKA CONSULTING,2018-07-12,990755,Public Works & Assets Department,Metro Government Capital,Contractual Services,Sidewalk Construction/ Repair Services,,,,,Metro GO Bonds 14D,,,365.66
117,2019,2018-06-12,1945214,772.99,HANKA CONSULTING,2018-07-12,990755,Public Works & Assets Department,Metro Government Capital,Contractual Services,Sidewalk Construction/ Repair Services,,,,,Metro GO Bonds 17A,,,284.79
118,2019,2018-03-14,1946918,1710,WOOD ENVIRONMENTAL & INFRASTRUCTURE SOLUTION INC,2018-07-26,993230,Parks & Recreation,Metro Government Capital,Contractual Services,Sidewalk Construction/ Repair Services,,,,,Capital Project Fund,,,1710
119,2019,2018-06-29,1945813,18510.79,DEBRA KUEMPEL INC,2018-07-24,992748,Public Works & Assets Department,Metro Government Capital,Contractual Services,Plumbing,,,,,Metro GO Notes 17A,,,18510.79
120,2019,2018-05-24,1935222,192,TOTAL TOOL SUPPLY INC,2018-07-03,989611,Public Works & Assets Department,Metro Government Capital,Supplies,Traffic/Street Signs Hardware Supplies,,,,,Municipal Aid,,,161.75
121,2019,2018-04-09,1934921,53216.8,RIVERSIDE PAVING & CONTRACTING CO INC,2018-07-12,990822,Public Works & Assets Department,Metro Government Capital,Contractual Services,Sidewalk Construction/ Repair Services,,,,,Metro GO Bonds 16A,,,21108.8
122,2019,2018-06-08,1945215,2263.98,HANKA CONSULTING,2018-07-12,990755,Public Works & Assets Department,Metro Government Capital,Contractual Services,Sidewalk Construction/ Repair Services,,,,,Metro GO Bonds 17A,,,834.12
123,2019,2018-06-27,1944524,27905,COMSTOCK BROTHERS ELECTRIC CO LLC,2018-07-12,990732,Louisville Fire Department,Metro Government Capital,Contractual Services,Building/Office Renovation,,,,,Metro GO Bonds 17A,,,27905
124,2019,2018-06-11,1946372,1113.4,HANKA CONSULTING,2018-07-17,991305,Public Works & Assets Department,Metro Government Capital,Contractual Services,Sidewalk Construction/ Repair Services,,,,,Metro GO Bonds 14D,,,425.25
125,2019,2018-06-05,1939212,1358.73,S WALK INC,2018-07-03,989587,Public Works & Assets Department,Metro Government Capital,Contractual Services,Sidewalk Construction/ Repair Services,,,,,Metro GO Bonds 17A,,,543.49
126,2019,2018-05-24,1935222,192,TOTAL TOOL SUPPLY INC,2018-07-03,989611,Public Works & Assets Department,Metro Government Capital,Supplies,Traffic/Street Signs Hardware Supplies,,,,,Municipal Aid,,,30.25
127,2019,2018-06-29,1944627,252501.4,HALL CONTRACTING OF KENTUCKY INC,2018-07-24,992769,Public Works & Assets Department,Metro Government Capital,Contractual Services,Road Construction/ Repair Services,,,,,Metro GO Bonds 16A,,,252501.4
128,2019,2018-06-30,1948017,3340,QK4 INC,2018-07-26,993165,Public Works & Assets Department,Metro Government Capital,Contractual Services,Road Construction/ Repair Services,,,,,Municipal Aid,,,3340
129,2019,2018-06-08,1945216,18619.06,HANKA CONSULTING,2018-07-12,990755,Public Works & Assets Department,Metro Government Capital,Contractual Services,Sidewalk Construction/ Repair Services,,,,,Metro GO Bonds 17A,,,6859.85
130,2019,2018-06-26,1949039,249902.26,KOFI CONSULTING SERVICES INC,2018-07-24,992787,Louisville Fire Department,Metro Government Capital,Contractual Services,Building/Office Renovation,,,,,Metro GO Bonds 17A,,,249902.26
131,2019,2018-06-08,1945216,18619.06,HANKA CONSULTING,2018-07-12,990755,Public Works & Assets Department,Metro Government Capital,Contractual Services,Sidewalk Construction/ Repair Services,,,,,Metro GO Bonds 14D,,,7111.35
132,2019,2018-06-05,1939212,1358.73,S WALK INC,2018-07-03,989587,Public Works & Assets Department,Metro Government Capital,Contractual Services,Sidewalk Construction/ Repair Services,,,,,Metro GO Bonds 17A,,,543.49
133,2019,2018-05-31,1943781,100,WESTROCK RKT COMPANY,2018-07-03,989638,Public Works & Assets Department,Metro Government Capital,Supplies,Traffic/Street Signs Hardware Supplies,,,,,Municipal Aid,,,100
134,2019,2018-05-23,1935342,45473.55,HALL CONTRACTING OF KENTUCKY INC,2018-07-10,990379,Public Works & Assets Department,Metro Government Capital,Contractual Services,Road Construction/ Repair Services,,,,,Metro GO Bonds 16A,,,44550.71
135,2019,2018-06-29,1944631,118460.51,HALL CONTRACTING OF KENTUCKY INC,2018-07-24,992769,Public Works & Assets Department,Metro Government Capital,Contractual Services,Road Construction/ Repair Services,,,,,Capital-Council Infrastructure Funds,,,10330.86
136,2019,2018-06-22,1944259,920,EZ CONSTRUCTION COMPANY INC,2018-07-26,993050,Public Works & Assets Department,Metro Government Capital,Contractual Services,Sidewalk Construction/ Repair Services,,,,,Capital-Council Infrastructure Funds,,,460
137,2019,2018-06-28,1944356,45030.05,FISHEL COMPANY,2018-07-23,992097,Parks & Recreation,Metro Government Capital,Contractual Services,Payments to Contractors,,,,,Capital Project Fund,,,45030.05
138,2019,2018-06-29,1944625,4100,HALL CONTRACTING OF KENTUCKY INC,2018-07-24,992769,Public Works & Assets Department,Metro Government Capital,Contractual Services,Payments to Contractors,,,,,Capital-Council Infrastructure Funds,,,4100
139,2019,2018-06-29,1944622,8200,HALL CONTRACTING OF KENTUCKY INC,2018-07-24,992769,Public Works & Assets Department,Metro Government Capital,Contractual Services,Payments to Contractors,,,,,Capital-Council Infrastructure Funds,,,8200
140,2019,2018-06-30,1948869,1675,QK4 INC,2018-07-26,993165,Public Works & Assets Department,Metro Government Capital,Contractual Services,Road Construction/ Repair Services,,,,,Capital Project Fund,,,1675
141,2019,2018-07-19,1949412,1318.32,QK4 INC,2018-07-26,993165,Public Works & Assets Department,Metro Government Capital,Contractual Services,Payments to Contractors,,,,,Capital-Council Infrastructure Funds,,,1318.32
142,2019,2018-04-10,1948717,6680,HOMEOWNERS SECURITY DOOR CO INC,2018-07-26,993081,Public Works & Assets Department,Metro Government Capital,Equipment/Capital Outlay,Miscellaneous Equipment,,,,,Capital Project Fund,,,6680
143,2019,2012-07-12,1947270,598,HOMEOWNERS SECURITY DOOR CO INC,2018-07-19,991667,Public Works & Assets Department,Metro Government Capital,Equipment/Capital Outlay,Miscellaneous Equipment,,,,,Capital Project Fund,,,598
144,2019,2018-06-04,1946660,158827.5,ALLTERRAIN PAVING AND CONSTRUCTION LLC,2018-07-17,991219,Parks & Recreation,Metro Government Capital,Contractual Services,Rehab Renovation/Improvements,,,,,Capital Project Fund,,,5228.03
145,2019,2018-06-04,1946660,158827.5,ALLTERRAIN PAVING AND CONSTRUCTION LLC,2018-07-17,991219,Parks & Recreation,Metro Government Capital,Equipment/Capital Outlay,Athletic/Recreation Equipment,,,,,Capital Project Fund,,,2614.01
146,2019,2018-06-04,1946660,158827.5,ALLTERRAIN PAVING AND CONSTRUCTION LLC,2018-07-17,991219,Parks & Recreation,Metro Government Capital,Supplies,Horticultural/Landscaping Supplies,,,,,Capital Project Fund,,,5228.03
147,2019,2018-06-30,1948577,6150,HALL CONTRACTING OF KENTUCKY INC,2018-07-26,993074,Public Works & Assets Department,Metro Government Capital,Contractual Services,Payments to Contractors,,,,,Capital Project Fund,,,3075
148,2019,2018-06-30,1948577,6150,HALL CONTRACTING OF KENTUCKY INC,2018-07-26,993074,Public Works & Assets Department,Metro Government Capital,Contractual Services,Payments to Contractors,,,,,Capital-Council Infrastructure Funds,,,3075
149,2019,2018-06-07,1938409,1332,BOB RAY CO INC,2018-07-03,989400,Public Works & Assets Department,Metro Government Capital,Contractual Services,Payments to Contractors,,,,,Capital Project Fund,,,1332
150,2019,2018-06-27,1945465,1956,BOB RAY CO INC,2018-07-26,993007,Public Works & Assets Department,Metro Government Capital,Contractual Services,Sidewalk Construction/ Repair Services,,,,,Metro GO Bonds 17A,,,1956
151,2019,2018-06-30,1948867,20470,QK4 INC,2018-07-26,993165,Public Works & Assets Department,Metro Government Capital,Contractual Services,Engineering & Architectural Services,,,,,Capital-Council Infrastructure Funds,,,20470
152,2019,2018-05-29,1938266,26873.29,EZ CONSTRUCTION COMPANY INC,2018-07-03,989457,Public Works & Assets Department,Metro Government Capital,Contractual Services,Payments to Contractors,,,,,Capital-Council Infrastructure Funds,,,1832.68
153,2019,2018-06-06,1939946,18025.95,HANKA CONSULTING,2018-07-10,990380,Public Works & Assets Department,Metro Government Capital,Contractual Services,Sidewalk Construction/ Repair Services,,,,,Metro GO Bonds 17A,,,1386.64
154,2019,2018-06-06,1939946,18025.95,HANKA CONSULTING,2018-07-10,990380,Public Works & Assets Department,Metro Government Capital,Contractual Services,Sidewalk Construction/ Repair Services,,,,,Metro GO Bonds 17A,,,16639.31
155,2019,2017-11-30,1946447,33776,PACE CONTRACTING LLC,2018-07-17,991360,Parks & Recreation,Metro Government Capital,Contractual Services,Rehab Renovation/Improvements,,,,,Capital-Council Infrastructure Funds,,,23389.76
156,2019,2017-11-30,1946447,33776,PACE CONTRACTING LLC,2018-07-17,991360,Parks & Recreation,Metro Government Capital,Contractual Services,Rehab Renovation/Improvements,,,,,Capital-Council Infrastructure Funds,,,-23389.76
157,2019,2017-11-30,1946447,33776,PACE CONTRACTING LLC,2018-07-17,991360,Parks & Recreation,Metro Government Capital,Contractual Services,Rehab Renovation/Improvements,,,,,Capital-Council Infrastructure Funds,,,23389.76
158,2019,2018-06-30,1948581,8200,HALL CONTRACTING OF KENTUCKY INC,2018-07-26,993074,Public Works & Assets Department,Metro Government Capital,Contractual Services,Payments to Contractors,,,,,Capital-Council Infrastructure Funds,,,8200
159,2019,2018-06-29,1944621,73791.97,HALL CONTRACTING OF KENTUCKY INC,2018-07-24,992769,Public Works & Assets Department,Metro Government Capital,Contractual Services,Road Construction/ Repair Services,,,,,Capital-Council Infrastructure Funds,,,73791.97
160,2019,2018-05-26,1947724,350,S WALK INC,2018-07-19,991710,Public Works & Assets Department,Metro Government Capital,Contractual Services,Sidewalk Construction/ Repair Services,,,,,Metro GO Bonds 17A,,,140
161,2019,2018-05-26,1947724,350,S WALK INC,2018-07-19,991710,Public Works & Assets Department,Metro Government Capital,Contractual Services,Sidewalk Construction/ Repair Services,,,,,Metro GO Bonds 17A,,,140
162,2019,2018-05-14,1947682,127.93,S WALK INC,2018-07-23,992157,Public Works & Assets Department,Metro Government Capital,Contractual Services,Sidewalk Construction/ Repair Services,,,,,Metro GO Bonds 17A,,,51.17
163,2019,2018-05-14,1947682,127.93,S WALK INC,2018-07-23,992157,Public Works & Assets Department,Metro Government Capital,Contractual Services,Sidewalk Construction/ Repair Services,,,,,Metro GO Bonds 17A,,,51.17
164,2019,2018-05-14,1947695,755.05,S WALK INC,2018-07-23,992157,Public Works & Assets Department,Metro Government Capital,Contractual Services,Sidewalk Construction/ Repair Services,,,,,Metro GO Bonds 17A,,,302.02
165,2019,2018-05-14,1947695,755.05,S WALK INC,2018-07-23,992157,Public Works & Assets Department,Metro Government Capital,Contractual Services,Sidewalk Construction/ Repair Services,,,,,Metro GO Bonds 17A,,,302.02
166,2019,2018-05-15,1947677,333.99,S WALK INC,2018-07-19,991710,Public Works & Assets Department,Metro Government Capital,Contractual Services,Sidewalk Construction/ Repair Services,,,,,Metro GO Bonds 17A,,,133.6
167,2019,2018-05-15,1947677,333.99,S WALK INC,2018-07-19,991710,Public Works & Assets Department,Metro Government Capital,Contractual Services,Sidewalk Construction/ Repair Services,,,,,Metro GO Bonds 17A,,,133.59
168,2019,2018-05-15,1947687,418,S WALK INC,2018-07-19,991710,Public Works & Assets Department,Metro Government Capital,Contractual Services,Sidewalk Construction/ Repair Services,,,,,Metro GO Bonds 17A,,,167.2
169,2019,2018-05-15,1947687,418,S WALK INC,2018-07-19,991710,Public Works & Assets Department,Metro Government Capital,Contractual Services,Sidewalk Construction/ Repair Services,,,,,Metro GO Bonds 17A,,,167.2
170,2019,2018-06-05,1938824,2562,S WALK INC,2018-07-03,989587,Public Works & Assets Department,Metro Government Capital,Contractual Services,Sidewalk Construction/ Repair Services,,,,,Metro GO Bonds 17A,,,1024.8
171,2019,2018-06-05,1938824,2562,S WALK INC,2018-07-03,989587,Public Works & Assets Department,Metro Government Capital,Contractual Services,Sidewalk Construction/ Repair Services,,,,,Metro GO Bonds 17A,,,1024.8
172,2019,2018-06-05,1938826,3450.8,S WALK INC,2018-07-03,989587,Public Works & Assets Department,Metro Government Capital,Contractual Services,Sidewalk Construction/ Repair Services,,,,,Metro GO Bonds 17A,,,1380.32
173,2019,2018-06-05,1938826,3450.8,S WALK INC,2018-07-03,989587,Public Works & Assets Department,Metro Government Capital,Contractual Services,Sidewalk Construction/ Repair Services,,,,,Metro GO Bonds 17A,,,1380.32
174,2019,2018-06-05,1938829,2499.37,S WALK INC,2018-07-03,989587,Public Works & Assets Department,Metro Government Capital,Contractual Services,Sidewalk Construction/ Repair Services,,,,,Metro GO Bonds 17A,,,999.75
175,2019,2018-06-20,1945597,18267,ABN RESTORATION INC,2018-07-12,990707,Develop Louisville,Metro Government Capital,Contractual Services,Grant Community Assistance,,,,,CDBG 2017,,,18267
176,2019,2018-05-23,1935342,45473.55,HALL CONTRACTING OF KENTUCKY INC,2018-07-10,990379,Public Works & Assets Department,Metro Government Capital,Contractual Services,Road Construction/ Repair Services,,,,,Metro GO Bonds 16A,,,922.84
177,2019,2018-05-25,1942891,5000,AIR MOVERS HVAC LLC,2018-07-03,989376,Develop Louisville,Metro Government Capital,Contractual Services,Grant Community Assistance,,,,,CDBG 2017,,,5000
178,2019,2018-07-09,1947760,49.5,HANKA CONSULTING,2018-08-03,994396,Public Works & Assets Department,Metro Government Capital,Contractual Services,Sidewalk Construction/ Repair Services,,,,,Metro GO Bonds 17A,,,18.24
179,2019,2018-06-12,1945213,6789.16,HANKA CONSULTING,2018-07-12,990755,Public Works & Assets Department,Metro Government Capital,Contractual Services,Sidewalk Construction/ Repair Services,,,,,Metro GO Bonds 14D,,,2593.05
180,2019,2018-06-12,1945214,772.99,HANKA CONSULTING,2018-07-12,990755,Public Works & Assets Department,Metro Government Capital,Contractual Services,Sidewalk Construction/ Repair Services,,,,,Metro GO Bonds 14D,,,295.24
181,2019,2018-06-05,1939213,4517.79,S WALK INC,2018-07-03,989587,Public Works & Assets Department,Metro Government Capital,Contractual Services,Sidewalk Construction/ Repair Services,,,,,Metro GO Bonds 17A,,,1807.12
182,2019,2018-05-31,1938262,246095.5,HALL CONTRACTING OF KENTUCKY INC,2018-07-10,990379,Public Works & Assets Department,Metro Government Capital,Contractual Services,Road Construction/ Repair Services,,,,,Metro GO Bonds 16A,,,158061.98
183,2019,2018-07-01,1946831,1125,PALADIN INC,2018-07-20,991943,Library,Metro Government Capital,Contractual Services,Building Construction Services,,,,,Metro GO 2015A - Tax Exempt Bond,,,1125
184,2019,2018-06-08,1945215,2263.98,HANKA CONSULTING,2018-07-12,990755,Public Works & Assets Department,Metro Government Capital,Contractual Services,Sidewalk Construction/ Repair Services,,,,,Metro GO Bonds 14D,,,864.71
185,2019,2018-04-03,1946547,5000,ALLEGIANCE HEATING AIR CONDITIONING AND REFRIGERATION LLC,2018-07-26,993244,Develop Louisville,Metro Government Capital,Contractual Services,Grant Community Assistance,,,,,CDBG 2017,,,5000
186,2019,2018-06-11,1946372,1113.4,HANKA CONSULTING,2018-07-17,991305,Public Works & Assets Department,Metro Government Capital,Contractual Services,Sidewalk Construction/ Repair Services,,,,,Metro GO Bonds 17A,,,410.21
187,2019,2018-05-31,1938262,246095.5,HALL CONTRACTING OF KENTUCKY INC,2018-07-10,990379,Public Works & Assets Department,Metro Government Capital,Contractual Services,Road Construction/ Repair Services,,,,,Metro GO Bonds 16A,,,88033.52
188,2019,2018-06-05,1939213,4517.79,S WALK INC,2018-07-03,989587,Public Works & Assets Department,Metro Government Capital,Contractual Services,Sidewalk Construction/ Repair Services,,,,,Metro GO Bonds 17A,,,1807.11
189,2019,2018-06-06,1937387,1637.99,AM LEONARD INC,2018-07-03,989381,Develop Louisville,Metro Government Capital,Contractual Services,Landscaping Services,,,,,Metro GO 2015A - Tax Exempt Bond,,,1637.99
190,2019,2018-06-11,1941209,5362.43,HANKA CONSULTING,2018-07-06,990037,Public Works & Assets Department,Metro Government Capital,Contractual Services,Sidewalk Construction/ Repair Services,,,,,Metro GO Bonds 14D,,,2048.12
191,2019,2018-04-03,1946547,5000,ALLEGIANCE HEATING AIR CONDITIONING AND REFRIGERATION LLC,2018-07-26,993244,Develop Louisville,Metro Government Capital,Contractual Services,Grant Community Assistance,,,,,CDBG 2017,,,-5000
192,2019,2018-06-12,1945213,6789.16,HANKA CONSULTING,2018-07-12,990755,Public Works & Assets Department,Metro Government Capital,Contractual Services,Sidewalk Construction/ Repair Services,,,,,Metro GO Bonds 17A,,,2501.34
193,2019,2018-06-29,1944712,29208.6,HIGHLAND ROOFING COMPANY INC,2018-07-24,992772,Metro Corrections,Metro Government Capital,Contractual Services,Roofing Project Services,,,,,Metro GO Bonds 16A,,,9444
194,2019,2018-06-05,1939214,648.97,S WALK INC,2018-07-03,989587,Public Works & Assets Department,Metro Government Capital,Contractual Services,Sidewalk Construction/ Repair Services,,,,,Metro GO Bonds 17A,,,259.59
195,2019,2018-06-08,1937738,748.03,GRAINGER INDUSTRIAL SUPPLY,2018-07-03,989480,Louisville Zoo,Metro Government Capital,Contractual Services,Payments to Contractors,,,,,MISC SPECIAL REVENUE,,,748.03
196,2019,2018-06-11,1941209,5362.43,HANKA CONSULTING,2018-07-06,990037,Public Works & Assets Department,Metro Government Capital,Contractual Services,Sidewalk Construction/ Repair Services,,,,,Municipal Aid,,,40.35
197,2019,2018-06-08,1945215,2263.98,HANKA CONSULTING,2018-07-12,990755,Public Works & Assets Department,Metro Government Capital,Contractual Services,Sidewalk Construction/ Repair Services,,,,,Municipal Aid,,,17.03
198,2019,2018-06-12,1945214,772.99,HANKA CONSULTING,2018-07-12,990755,Public Works & Assets Department,Metro Government Capital,Contractual Services,Sidewalk Construction/ Repair Services,,,,,Municipal Aid,,,5.82
199,2019,2018-06-12,1945213,6789.16,HANKA CONSULTING,2018-07-12,990755,Public Works & Assets Department,Metro Government Capital,Contractual Services,Sidewalk Construction/ Repair Services,,,,,Municipal Aid,,,51.08
200,2019,2018-06-08,1945216,18619.06,HANKA CONSULTING,2018-07-12,990755,Public Works & Assets Department,Metro Government Capital,Contractual Services,Sidewalk Construction/ Repair Services,,,,,Municipal Aid,,,140.09
201,2019,2018-06-11,1946372,1113.4,HANKA CONSULTING,2018-07-17,991305,Public Works & Assets Department,Metro Government Capital,Contractual Services,Sidewalk Construction/ Repair Services,,,,,Municipal Aid,,,8.38
202,2019,2018-06-12,1945081,957.36,HANKA CONSULTING,2018-07-12,990755,Public Works & Assets Department,Metro Government Capital,Contractual Services,Sidewalk Construction/ Repair Services,,,,,Municipal Aid,,,7.2
203,2019,2018-06-08,1945865,17385.63,HANKA CONSULTING,2018-07-13,990980,Public Works & Assets Department,Metro Government Capital,Contractual Services,Sidewalk Construction/ Repair Services,,,,,Municipal Aid,,,130.81
204,2019,2018-06-12,1946421,2692.63,HANKA CONSULTING,2018-07-26,993075,Public Works & Assets Department,Metro Government Capital,Contractual Services,Sidewalk Construction/ Repair Services,,,,,Municipal Aid,,,20.26
205,2019,2018-06-11,1946419,1475.02,HANKA CONSULTING,2018-07-26,993075,Public Works & Assets Department,Metro Government Capital,Contractual Services,Sidewalk Construction/ Repair Services,,,,,Municipal Aid,,,11.1
206,2019,2018-06-08,1948078,15171.99,HANKA CONSULTING,2018-07-26,993075,Public Works & Assets Department,Metro Government Capital,Contractual Services,Sidewalk Construction/ Repair Services,,,,,Municipal Aid,,,114.15
207,2019,2018-06-12,1947781,13063.61,HANKA CONSULTING,2018-07-26,993075,Public Works & Assets Department,Metro Government Capital,Contractual Services,Sidewalk Construction/ Repair Services,,,,,Municipal Aid,,,98.29
208,2019,2018-07-09,1947760,49.5,HANKA CONSULTING,2018-08-03,994396,Public Works & Assets Department,Metro Government Capital,Contractual Services,Sidewalk Construction/ Repair Services,,,,,Municipal Aid,,,0.37
209,2019,2018-06-26,1944606,270532.5,ALPHA OMEGA INDUSTRIES LLC,2018-07-10,990299,Louisville Fire Department,Metro Government Capital,Equipment/Capital Outlay,Safety and Security Equipment,,,,,Metro GO Notes 14E,,,3042.1
210,2019,2018-06-26,1944606,270532.5,ALPHA OMEGA INDUSTRIES LLC,2018-07-10,990299,Louisville Fire Department,Metro Government Capital,Equipment/Capital Outlay,Safety and Security Equipment,,,,,Metro GO Notes 14E,,,-3042.1
211,2019,2018-07-05,1947784,3042.1,ALPHA OMEGA INDUSTRIES LLC,2018-07-31,993708,Louisville Fire Department,Metro Government Capital,Equipment/Capital Outlay,Safety and Security Equipment,,,,,Metro GO Notes 14E,,,3042.1
212,2019,2018-06-29,1943237,557.4,DANIEL M GILLESPIE,2018-07-03,989337,Metro Police,Metro Government Capital,Contractual Services,Travel, Out of Town,,,,,Metro GO 2015A - Tax Exempt Bond,,
213,2019,2018-06-29,1943238,557.4,DONNIE MASDEN,2018-07-03,989338,Metro Police,Metro Government Capital,Contractual Services,Travel, Out of Town,,,,,Metro GO 2015A - Tax Exempt Bond,,
214,2019,2018-06-18,1946758,19072.55,AXON ENTERPRISE INC,2018-07-26,992999,Metro Police,Metro Government Capital,Equipment/Capital Outlay,Computer Software,,,,,Metro GO 2015A - Tax Exempt Bond,,,19072.55
215,2019,2018-06-14,1945408,19072.55,AXON ENTERPRISE INC,2018-07-26,992999,Metro Police,Metro Government Capital,Equipment/Capital Outlay,Computer Software,,,,,Metro GO 2015A - Tax Exempt Bond,,,7972.55
216,2019,2018-06-14,1945408,19072.55,AXON ENTERPRISE INC,2018-07-26,992999,Metro Police,Metro Government Capital,Equipment/Capital Outlay,Computer Software,,,,,Metro GO 2015A - Tax Exempt Bond,,,-7972.55
217,2019,2018-06-14,1945408,19072.55,AXON ENTERPRISE INC,2018-07-26,992999,Metro Police,Metro Government Capital,Equipment/Capital Outlay,Computer Software,,,,,Metro GO 2015A - Tax Exempt Bond,,,19072.55
218,2019,2018-06-27,1945493,4704.27,FISHEL COMPANY,2018-07-23,992097,Metro Police,Metro Government Capital,Equipment/Capital Outlay,Law Enforcement Camera Equiment,,,,,Metro GO 2015A - Tax Exempt Bond,,,4704.27
219,2019,2018-06-30,1945935,90,HIGHWAY SAFETY SERVICES,2018-07-26,993078,Public Works & Assets Department,Metro Government Capital,Contractual Services,Bridge Construction/ Repair Services,,,,,County Road Aid,,,90
220,2019,2018-05-12,1935079,5370,STRAND ASSOCIATES INC,2018-07-17,991403,Public Works & Assets Department,Metro Government Capital,Contractual Services,Bridge Construction/ Repair Services,,,,,Municipal Aid,,,4226.99
221,2019,2018-06-15,1940563,4480,STRAND ASSOCIATES INC,2018-07-17,991403,Public Works & Assets Department,Metro Government Capital,Contractual Services,Bridge Construction/ Repair Services,,,,,Municipal Aid,,,-4226.99
222,2019,2018-06-15,1940563,4480,STRAND ASSOCIATES INC,2018-07-17,991403,Public Works & Assets Department,Metro Government Capital,Contractual Services,Bridge Construction/ Repair Services,,,,,Municipal Aid,,,4226.99
223,2019,2018-06-15,1940563,4480,STRAND ASSOCIATES INC,2018-07-17,991403,Public Works & Assets Department,Metro Government Capital,Contractual Services,Bridge Construction/ Repair Services,,,,,Municipal Aid,,,3526.43
224,2019,2018-07-17,1950130,7460,STRAND ASSOCIATES INC,2018-08-14,995707,Public Works & Assets Department,Metro Government Capital,Contractual Services,Road Construction/ Repair Services,,,,,Municipal Aid,,,7460
225,2019,2018-06-15,1941472,9670,STRAND ASSOCIATES INC,2018-07-17,991403,Public Works & Assets Department,Metro Government Capital,Contractual Services,Road Construction/ Repair Services,,,,,Municipal Aid,,,9670
226,2019,2018-05-25,1948624,3450,TETRA TECH INC,2018-07-26,993190,Office of Management & Budget,Metro Government Capital,Contractual Services,Environmental Services,,,,,Metro GO 2015A - Tax Exempt Bond,,,3450
227,2019,2018-05-30,1945524,6000,MSK2 LLC,2018-07-13,990998,Office of Management & Budget,Metro Government Capital,Contractual Services,Professional Services,,,,,Capital Project Fund,,,6000
228,2019,2018-02-28,1945529,12000,MSK2 LLC,2018-07-13,990998,Office of Management & Budget,Metro Government Capital,Contractual Services,Professional Services,,,,,Capital Project Fund,,,12000
229,2019,2018-06-25,1944656,5665.18,WALKER MECHANICAL CONTRACTORS INC,2018-07-24,992867,Parks & Recreation,Metro Government Capital,Contractual Services,Payments to Contractors,,,,,Metro GO 2015A - Tax Exempt Bond,,,2903.55
230,2019,2018-04-03,1946547,5000,ALLEGIANCE HEATING AIR CONDITIONING AND REFRIGERATION LLC,2018-07-26,993244,Develop Louisville,Metro Government Capital,Contractual Services,Grant Community Assistance,,,,,CDBG 2017,,,5000
231,2019,2018-04-30,1949193,5200,ALLEGIANCE HEATING AIR CONDITIONING AND REFRIGERATION LLC,2018-07-26,993244,Develop Louisville,Metro Government Capital,Contractual Services,Grant Community Assistance,,,,,CDBG 2017,,,5200
232,2019,2018-04-16,1947128,3800,ALLEGIANCE HEATING AIR CONDITIONING AND REFRIGERATION LLC,2018-07-19,991776,Develop Louisville,Metro Government Capital,Contractual Services,Grant Community Assistance,,,,,CDBG 2017,,,3800
233,2019,2018-03-19,1947130,5000,ALLEGIANCE HEATING AIR CONDITIONING AND REFRIGERATION LLC,2018-07-19,991776,Develop Louisville,Metro Government Capital,Contractual Services,Grant Community Assistance,,,,,CDBG 2017,,,5000
234,2019,2018-06-07,1945986,14694,AMERICAS FINEST CONCRETE REMOVAL COMPANY,2018-08-02,994076,Develop Louisville,Metro Government Capital,Contractual Services,Grant Community Assistance,,,,,CDBG 2017,,,14694
235,2019,2018-06-07,1945232,425,CIU LLC,2018-07-12,990729,Develop Louisville,Metro Government Capital,Contractual Services,Grant Community Assistance,,,,,CDBG 2017,,,425
236,2019,2018-06-13,1944650,667,CIU LLC,2018-07-12,990729,Develop Louisville,Metro Government Capital,Contractual Services,Grant Community Assistance,,,,,CDBG 2017,,,667
237,2019,2018-03-08,1945970,5000,DECKER & SONS HEATING & COOLING,2018-07-12,990736,Develop Louisville,Metro Government Capital,Contractual Services,Grant Community Assistance,,,,,CDBG 2017,,,5000
238,2019,2018-03-08,1942903,5000,DECKER & SONS HEATING & COOLING,2018-07-03,989435,Develop Louisville,Metro Government Capital,Contractual Services,Grant Community Assistance,,,,,CDBG 2017,,,5000
239,2019,2017-10-31,1859115,14000,WEBER GROUP INC,2018-08-09,995172,Louisville Zoo,Metro Government Capital,Contractual Services,Payments to Contractors,,,,,MISC SPECIAL REVENUE,,,181.28
240,2019,2018-04-04,1942906,5000,DECKER & SONS HEATING & COOLING,2018-07-03,989435,Develop Louisville,Metro Government Capital,Contractual Services,Grant Community Assistance,,,,,CDBG 2017,,,5000
241,2019,2018-04-17,1942908,3800,DECKER & SONS HEATING & COOLING,2018-07-03,989435,Develop Louisville,Metro Government Capital,Contractual Services,Grant Community Assistance,,,,,CDBG 2017,,,3800
242,2019,2017-08-21,1943717,837.62,DOUGLAS W PETERS & ASSOCIATES INC,2018-07-03,989442,Develop Louisville,Metro Government Capital,Contractual Services,Grant Community Assistance,,,,,CDBG 2017,,,837.62
243,2019,2017-12-21,1947836,643.55,DOUGLAS W PETERS & ASSOCIATES INC,2018-07-20,991905,Develop Louisville,Metro Government Capital,Contractual Services,Grant Community Assistance,,,,,CDBG 2017,,,643.55
244,2019,2017-08-15,1947837,346.48,DOUGLAS W PETERS & ASSOCIATES INC,2018-07-20,991905,Develop Louisville,Metro Government Capital,Contractual Services,Grant Community Assistance,,,,,CDBG 2017,,,346.48
245,2019,2018-06-20,1950415,1241.5,LEE MASONRY PRODUCTS INC,2018-08-02,994196,Office of Management & Budget,Metro Government Capital,Contractual Services,Building Construction Services,,,,,Metro GO Bonds 16A,,,1241.5
246,2019,2017-11-29,1947670,326.42,DOUGLAS W PETERS & ASSOCIATES INC,2018-07-20,991905,Develop Louisville,Metro Government Capital,Contractual Services,Grant Community Assistance,,,,,CDBG 2017,,,326.42
247,2019,2018-06-13,1949243,172.04,DOUGLAS W PETERS & ASSOCIATES INC,2018-07-27,993363,Develop Louisville,Metro Government Capital,Contractual Services,Grant Community Assistance,,,,,CDBG 2017,,,172.04
248,2019,2017-08-30,1949244,493.83,DOUGLAS W PETERS & ASSOCIATES INC,2018-07-26,993042,Develop Louisville,Metro Government Capital,Contractual Services,Grant Community Assistance,,,,,CDBG 2017,,,493.83
249,2019,2017-08-31,1949245,907.88,DOUGLAS W PETERS & ASSOCIATES INC,2018-07-26,993042,Develop Louisville,Metro Government Capital,Contractual Services,Grant Community Assistance,,,,,CDBG 2017,,,907.88
250,2019,2017-09-05,1949247,388.73,DOUGLAS W PETERS & ASSOCIATES INC,2018-07-26,993042,Develop Louisville,Metro Government Capital,Contractual Services,Grant Community Assistance,,,,,CDBG 2017,,,388.73
251,2019,2017-11-16,1949249,144.68,DOUGLAS W PETERS & ASSOCIATES INC,2018-07-26,993042,Develop Louisville,Metro Government Capital,Contractual Services,Grant Community Assistance,,,,,CDBG 2017,,,144.68
252,2019,2017-11-11,1949250,385.95,DOUGLAS W PETERS & ASSOCIATES INC,2018-07-26,993042,Develop Louisville,Metro Government Capital,Contractual Services,Grant Community Assistance,,,,,CDBG 2017,,,385.95
253,2019,2018-06-12,1945081,957.36,HANKA CONSULTING,2018-07-12,990755,Public Works & Assets Department,Metro Government Capital,Contractual Services,Sidewalk Construction/ Repair Services,,,,,Metro GO Bonds 17A,,,352.72
254,2019,2017-12-07,1949252,233.95,DOUGLAS W PETERS & ASSOCIATES INC,2018-07-26,993042,Develop Louisville,Metro Government Capital,Contractual Services,Grant Community Assistance,,,,,CDBG 2017,,,233.95
255,2019,2017-12-21,1949254,882.85,DOUGLAS W PETERS & ASSOCIATES INC,2018-07-26,993042,Develop Louisville,Metro Government Capital,Contractual Services,Grant Community Assistance,,,,,CDBG 2017,,,882.85
256,2019,2018-07-03,1947673,172.03,DOUGLAS W PETERS & ASSOCIATES INC,2018-07-23,992085,Develop Louisville,Metro Government Capital,Contractual Services,Grant Community Assistance,,,,,CDBG 2017,,,172.03
257,2019,2018-06-26,1947838,861.67,DOUGLAS W PETERS & ASSOCIATES INC,2018-07-23,992085,Develop Louisville,Metro Government Capital,Contractual Services,Grant Community Assistance,,,,,CDBG 2017,,,861.67
258,2019,2018-06-05,1939214,648.97,S WALK INC,2018-07-03,989587,Public Works & Assets Department,Metro Government Capital,Contractual Services,Sidewalk Construction/ Repair Services,,,,,Metro GO Bonds 17A,,,259.59
259,2019,2017-09-14,1947980,463.53,DOUGLAS W PETERS & ASSOCIATES INC,2018-07-23,992085,Develop Louisville,Metro Government Capital,Contractual Services,Grant Community Assistance,,,,,CDBG 2017,,,463.53
260,2019,2018-05-22,1945201,8950,J&M MECHANICAL,2018-07-12,990767,Develop Louisville,Metro Government Capital,Contractual Services,Grant Community Assistance,,,,,CDBG 2017,,,8950
261,2019,2018-03-09,1945234,8950,J&M MECHANICAL,2018-07-12,990767,Develop Louisville,Metro Government Capital,Contractual Services,Grant Community Assistance,,,,,CDBG 2017,,,8950
262,2019,2018-05-09,1945225,5000,J&M MECHANICAL,2018-07-12,990767,Develop Louisville,Metro Government Capital,Contractual Services,Grant Community Assistance,,,,,CDBG 2017,,,5000
263,2019,2018-04-09,1945230,5200,J&M MECHANICAL,2018-07-12,990767,Develop Louisville,Metro Government Capital,Contractual Services,Grant Community Assistance,,,,,CDBG 2017,,,5200
264,2019,2018-03-23,1942880,1500,LEANHART PLUMBING INC,2018-07-03,989524,Develop Louisville,Metro Government Capital,Contractual Services,Grant Community Assistance,,,,,CDBG 2017,,,1500
265,2019,2018-05-29,1944349,4800,LEANHART PLUMBING INC,2018-07-06,990046,Develop Louisville,Metro Government Capital,Contractual Services,Grant Community Assistance,,,,,CDBG 2017,,,4800
266,2019,2018-05-31,1938084,87074.84,EZ CONSTRUCTION COMPANY INC,2018-07-19,991655,Parks & Recreation,Metro Government Capital,Contractual Services,Rehab Renovation/Improvements,,,,,Metro GO Bonds 16A,,,87074.84
267,2019,2018-06-05,1939215,3099.21,S WALK INC,2018-07-03,989587,Public Works & Assets Department,Metro Government Capital,Contractual Services,Sidewalk Construction/ Repair Services,,,,,Metro GO Bonds 17A,,,1239.68
268,2019,2017-10-31,1859115,14000,WEBER GROUP INC,2018-08-09,995172,Louisville Zoo,Metro Government Capital,Contractual Services,Rehab Renovation/Improvements,,,,,Capital Project Fund,,,3718.51
269,2019,2018-05-16,1938225,273.44,KENTUCKY MIRROR & PLATE GLASS,2018-07-12,990775,Public Works & Assets Department,Metro Government Capital,Contractual Services,Road Construction/ Repair Services,,,,,Metro GO Bonds 16A,,,273.44
270,2019,2017-11-30,1875815,5650,QK4 INC,2018-07-26,993165,Public Works & Assets Department,Metro Government Capital,Contractual Services,Bridge Construction/ Repair Services,,,,,Municipal Aid,,,1.99
271,2019,2018-06-08,1945865,17385.63,HANKA CONSULTING,2018-07-13,990980,Public Works & Assets Department,Metro Government Capital,Contractual Services,Sidewalk Construction/ Repair Services,,,,,Metro GO Bonds 17A,,,6405.42
272,2019,2018-06-05,1939215,3099.21,S WALK INC,2018-07-03,989587,Public Works & Assets Department,Metro Government Capital,Contractual Services,Sidewalk Construction/ Repair Services,,,,,Metro GO Bonds 17A,,,1239.69
273,2019,2017-11-30,1875815,5650,QK4 INC,2018-07-26,993165,Public Works & Assets Department,Metro Government Capital,Contractual Services,Bridge Construction/ Repair Services,,,,,Municipal Aid,,,5648.01
274,2019,2018-03-12,1931954,5540.79,HANKA CONSULTING,2018-08-14,995603,Public Works & Assets Department,Metro Government Capital,Contractual Services,Sidewalk Construction/ Repair Services,,,,,Metro GO Bonds 17A,,,5540.79
275,2019,2018-06-05,1939216,593.09,S WALK INC,2018-07-03,989587,Public Works & Assets Department,Metro Government Capital,Contractual Services,Sidewalk Construction/ Repair Services,,,,,Metro GO Bonds 17A,,,237.24
276,2019,2018-06-15,1940565,6490,STRAND ASSOCIATES INC,2018-07-17,991403,Public Works & Assets Department,Metro Government Capital,Contractual Services,Bridge Construction/ Repair Services,,,,,Municipal Aid,,,6490
277,2019,2018-06-11,1946419,1475.02,HANKA CONSULTING,2018-07-26,993075,Public Works & Assets Department,Metro Government Capital,Contractual Services,Sidewalk Construction/ Repair Services,,,,,Metro GO Bonds 17A,,,543.44
278,2019,2018-06-05,1939216,593.09,S WALK INC,2018-07-03,989587,Public Works & Assets Department,Metro Government Capital,Contractual Services,Sidewalk Construction/ Repair Services,,,,,Metro GO Bonds 17A,,,237.23
279,2019,2018-05-12,1935079,5370,STRAND ASSOCIATES INC,2018-07-17,991403,Public Works & Assets Department,Metro Government Capital,Contractual Services,Bridge Construction/ Repair Services,,,,,Municipal Aid,,,1143.01
280,2019,2018-06-12,1946421,2692.63,HANKA CONSULTING,2018-07-26,993075,Public Works & Assets Department,Metro Government Capital,Contractual Services,Sidewalk Construction/ Repair Services,,,,,Metro GO Bonds 17A,,,992.05
281,2019,2018-05-31,1938084,87074.84,EZ CONSTRUCTION COMPANY INC,2018-07-19,991655,Parks & Recreation,Metro Government Capital,Contractual Services,Rehab Renovation/Improvements,,,,,Metro GO Bonds 16A,,,-23440.43
282,2019,2018-06-05,1939219,197.93,S WALK INC,2018-07-03,989587,Public Works & Assets Department,Metro Government Capital,Contractual Services,Sidewalk Construction/ Repair Services,,,,,Metro GO Bonds 17A,,,79.17
283,2019,2018-06-08,1948078,15171.99,HANKA CONSULTING,2018-07-26,993075,Public Works & Assets Department,Metro Government Capital,Contractual Services,Sidewalk Construction/ Repair Services,,,,,Metro GO Bonds 17A,,,5589.84
284,2019,2018-05-31,1938084,87074.84,EZ CONSTRUCTION COMPANY INC,2018-07-19,991655,Parks & Recreation,Metro Government Capital,Contractual Services,Rehab Renovation/Improvements,,,,,Metro GO Bonds 16A,,,23440.43
285,2019,2018-06-15,1940563,4480,STRAND ASSOCIATES INC,2018-07-17,991403,Public Works & Assets Department,Metro Government Capital,Contractual Services,Bridge Construction/ Repair Services,,,,,Municipal Aid,,,-1143.01
286,2019,2018-06-05,1939219,197.93,S WALK INC,2018-07-03,989587,Public Works & Assets Department,Metro Government Capital,Contractual Services,Sidewalk Construction/ Repair Services,,,,,Metro GO Bonds 17A,,,79.17
287,2019,2018-06-12,1947781,13063.61,HANKA CONSULTING,2018-07-26,993075,Public Works & Assets Department,Metro Government Capital,Contractual Services,Sidewalk Construction/ Repair Services,,,,,Metro GO Bonds 17A,,,4813.05
288,2019,2018-06-30,1944358,75107.25,EZ CONSTRUCTION COMPANY INC,2018-07-26,993050,Parks & Recreation,Metro Government Capital,Contractual Services,Rehab Renovation/Improvements,,,,,Metro GO Bonds 16A,,,75107.25
289,2019,2018-06-15,1940563,4480,STRAND ASSOCIATES INC,2018-07-17,991403,Public Works & Assets Department,Metro Government Capital,Contractual Services,Bridge Construction/ Repair Services,,,,,Municipal Aid,,,953.57
290,2019,2018-06-05,1939220,2030.01,S WALK INC,2018-07-03,989587,Public Works & Assets Department,Metro Government Capital,Contractual Services,Sidewalk Construction/ Repair Services,,,,,Metro GO Bonds 17A,,,812
291,2019,2018-06-05,1939220,2030.01,S WALK INC,2018-07-03,989587,Public Works & Assets Department,Metro Government Capital,Contractual Services,Sidewalk Construction/ Repair Services,,,,,Metro GO Bonds 17A,,,812.01
292,2019,2018-06-05,1939221,847.84,S WALK INC,2018-07-03,989587,Public Works & Assets Department,Metro Government Capital,Contractual Services,Sidewalk Construction/ Repair Services,,,,,Metro GO Bonds 17A,,,339.14
293,2019,2018-06-05,1939221,847.84,S WALK INC,2018-07-03,989587,Public Works & Assets Department,Metro Government Capital,Contractual Services,Sidewalk Construction/ Repair Services,,,,,Metro GO Bonds 17A,,,339.13
294,2019,2018-06-05,1939223,681.11,S WALK INC,2018-07-03,989587,Public Works & Assets Department,Metro Government Capital,Contractual Services,Sidewalk Construction/ Repair Services,,,,,Metro GO Bonds 17A,,,272.44
295,2019,2018-06-05,1939223,681.11,S WALK INC,2018-07-03,989587,Public Works & Assets Department,Metro Government Capital,Contractual Services,Sidewalk Construction/ Repair Services,,,,,Metro GO Bonds 17A,,,272.45
296,2019,2018-06-05,1939226,668.1,S WALK INC,2018-07-03,989587,Public Works & Assets Department,Metro Government Capital,Contractual Services,Sidewalk Construction/ Repair Services,,,,,Metro GO Bonds 17A,,,267.24
297,2019,2018-06-05,1939226,668.1,S WALK INC,2018-07-03,989587,Public Works & Assets Department,Metro Government Capital,Contractual Services,Sidewalk Construction/ Repair Services,,,,,Metro GO Bonds 17A,,,267.24
298,2019,2018-06-29,1944608,6150,HALL CONTRACTING OF KENTUCKY INC,2018-07-24,992769,Public Works & Assets Department,Metro Government Capital,Contractual Services,Payments to Contractors,,,,,Capital-Council Infrastructure Funds,,,6150
299,2019,2018-06-29,1944617,6150,HALL CONTRACTING OF KENTUCKY INC,2018-07-24,992769,Public Works & Assets Department,Metro Government Capital,Contractual Services,Payments to Contractors,,,,,Capital-Council Infrastructure Funds,,,6150
300,2019,2018-05-25,1949336,35700,ALLTERRAIN PAVING AND CONSTRUCTION LLC,2018-07-26,992984,Public Works & Assets Department,Metro Government Capital,Contractual Services,Sidewalk Construction/ Repair Services,,,,,Metro GO Bonds 17A,,,35700
301,2019,2018-05-31,1943797,10000,QK4 INC,2018-07-10,990445,Develop Louisville,Metro Government Capital,Contractual Services,Engineering & Architectural Services,,,,,Metro GO Bonds 17A,,,4786.96
302,2019,2018-06-29,1944813,69691.65,HALL CONTRACTING OF KENTUCKY INC,2018-07-24,992769,Public Works & Assets Department,Metro Government Capital,Contractual Services,Road Construction/ Repair Services,,,,,Metro GO Bonds 17A,,,26035.15
303,2019,2018-06-29,1944813,69691.65,HALL CONTRACTING OF KENTUCKY INC,2018-07-24,992769,Public Works & Assets Department,Metro Government Capital,Contractual Services,Road Construction/ Repair Services,,,,,Metro GO Bonds 17A,,,23538.88
304,2019,2018-06-20,1944353,49631.37,STANTEC CONSULTING SERVICES INC,2018-07-17,991401,Parks & Recreation,Metro Government Capital,Contractual Services,Professional Services,,,,,Capital-Council Infrastructure Funds,,,9926.27
305,2019,2018-06-27,1949919,265.86,CAUDILL SEED & WAREHOUSE COMPANY INC,2018-07-27,993346,Parks & Recreation,Metro Government Capital,Contractual Services,Payments to Contractors,,,,,Capital-Council Infrastructure Funds,,,265.86
306,2019,2018-03-12,1906192,3800,EZ CONSTRUCTION COMPANY INC,2018-07-03,989457,Public Works & Assets Department,Metro Government Capital,Contractual Services,Payments to Contractors,,,,,Capital-Council Infrastructure Funds,,,727.28
307,2019,2018-07-03,1945359,13.74,KROGER CO,2018-07-12,990782,Library,Metro Government Capital,Supplies,Miscellaneous Supplies,,,,,Capital Project Fund,,,13.74
308,2019,2018-04-17,1937244,473.41,ULAND SUPPLY CO INC,2018-07-26,993208,Public Works & Assets Department,Metro Government Capital,Contractual Services,Payments to Contractors,,,,,Capital Project Fund,,,473.41
309,2019,2018-07-19,1949922,2900,TETRA TECH INC,2018-07-31,993860,Parks & Recreation,Metro Government Capital,Contractual Services,Payments to Contractors,,,,,Metro GO Bonds 14D,,,2900
310,2019,2018-05-25,1939034,3523,TETRA TECH INC,2018-07-10,990487,Parks & Recreation,Metro Government Capital,Contractual Services,Payments to Contractors,,,,,Metro GO Bonds 14D,,,3523
311,2019,2018-06-20,1943461,710,TETRA TECH INC,2018-07-10,990487,Parks & Recreation,Metro Government Capital,Contractual Services,Payments to Contractors,,,,,Metro GO Bonds 14D,,,710
312,2019,2018-05-31,1938084,87074.84,EZ CONSTRUCTION COMPANY INC,2018-07-19,991655,Parks & Recreation,Metro Government Capital,Contractual Services,Rehab Renovation/Improvements,,,,,MISC SPECIAL REVENUE,,,63634.41
313,2019,2018-05-31,1938084,87074.84,EZ CONSTRUCTION COMPANY INC,2018-07-19,991655,Parks & Recreation,Metro Government Capital,Contractual Services,Rehab Renovation/Improvements,,,,,MISC SPECIAL REVENUE,,,-63634.41
314,2019,2018-06-27,1946092,4052.68,FISHEL COMPANY,2018-07-23,992097,Office of Management & Budget,Metro Government Capital,Contractual Services,Other Building Maintenance/Repair Services,,,,,Metro GO Bonds 14D,,,1190
315,2019,2018-06-11,1941209,5362.43,HANKA CONSULTING,2018-07-06,990037,Public Works & Assets Department,Metro Government Capital,Contractual Services,Sidewalk Construction/ Repair Services,,,,,Metro GO Bonds 17A,,,1975.69
316,2019,2018-06-29,1945548,11121.19,DEBRA KUEMPEL INC,2018-07-24,992748,Parks & Recreation,Metro Government Capital,Contractual Services,Other Building Maintenance/Repair Services,,,,,Capital Project Fund,,,11121.19
317,2019,2018-02-01,1949105,369.6,ALL PAINTING PLUS LLC,2018-07-26,992981,Parks & Recreation,Metro Government Capital,Contractual Services,Other Building Maintenance/Repair Services,,,,,Metro GO Notes 16A,,,369.6
318,2019,2018-06-14,1942161,3850,RIVERSIDE PAVING & CONTRACTING CO INC,2018-07-10,990459,Parks & Recreation,Metro Government Capital,Contractual Services,Other Building Maintenance/Repair Services,,,,,Metro GO Notes 16A,,,3850
319,2019,2018-06-15,1940563,4480,STRAND ASSOCIATES INC,2018-07-17,991403,Public Works & Assets Department,Metro Government Capital,Contractual Services,Bridge Construction/ Repair Services,,,,,Municipal Aid,,,1143.01
320,2019,2018-06-07,1945889,3422.8,PODGES ENT LLC,2018-07-19,991702,Public Works & Assets Department,Metro Government Capital,Contractual Services,Sidewalk Construction/ Repair Services,,,,,Metro GO Bonds 17A,,,3422.8
321,2019,2018-06-25,1944656,5665.18,WALKER MECHANICAL CONTRACTORS INC,2018-07-24,992867,Parks & Recreation,Metro Government Capital,Contractual Services,Other Building Maintenance/Repair Services,,,,,Metro GO Notes 16A,,,2761.63
322,2019,2018-06-13,1947674,175,TITLE AGENCY SUPPORT LLC,2018-07-20,991954,Develop Louisville,Metro Government Capital,Contractual Services,Payments to Contractors,,,,,CDBG 2016,,,175
323,2019,2018-04-09,1934921,53216.8,RIVERSIDE PAVING & CONTRACTING CO INC,2018-07-12,990822,Public Works & Assets Department,Metro Government Capital,Contractual Services,Sidewalk Construction/ Repair Services,,,,,Metro GO Bonds 17A,,,32108
324,2019,2018-06-04,1938332,122.5,HDR ENGINEERING INC,2018-07-03,989485,Parks & Recreation,Metro Government Capital,Contractual Services,Engineering & Architectural Services,,,,,Capital Project Fund,,,122.5
325,2019,2018-05-31,1941326,213331.32,PACE CONTRACTING LLC,2018-07-05,989826,Develop Louisville,Metro Government Capital,Contractual Services,Payments to Contractors,,,,,Capital Project Fund,,,102642.58
326,2019,2018-05-25,1947688,5658.1,S WALK INC,2018-07-19,991710,Public Works & Assets Department,Metro Government Capital,Contractual Services,Sidewalk Construction/ Repair Services,,,,,Metro GO Bonds 17A,,,5658.1
327,2019,2018-05-14,1945584,13500,LUCKETT & FARLEY ARCHITECTS ENGINEERS,2018-07-26,993127,Parks & Recreation,Metro Government Capital,Contractual Services,Payments to Contractors,,,,,Capital Project Fund,,,13500
328,2019,2018-05-31,1941326,213331.32,PACE CONTRACTING LLC,2018-07-05,989826,Develop Louisville,Metro Government Capital,Contractual Services,Payments to Contractors,,,,,Capital Project Fund,,,79441.1
329,2019,2018-05-25,1947693,1309.74,S WALK INC,2018-07-19,991710,Public Works & Assets Department,Metro Government Capital,Contractual Services,Sidewalk Construction/ Repair Services,,,,,Metro GO Bonds 17A,,,1309.74
330,2019,2018-06-07,1947357,50350,TRAFFIC AND PARKING CONTROL CO INC,2018-07-19,991726,Public Works & Assets Department,Metro Government Capital,Supplies,Traffic/Street Signs Hardware Supplies,,,,,Municipal Aid,,,20509
331,2019,2018-05-31,1941326,213331.32,PACE CONTRACTING LLC,2018-07-05,989826,Develop Louisville,Metro Government Capital,Contractual Services,Payments to Contractors,,,,,Capital Project Fund,,,-102642.58
332,2019,2018-05-31,1941326,213331.32,PACE CONTRACTING LLC,2018-07-05,989826,Develop Louisville,Metro Government Capital,Contractual Services,Professional Services,,,,,Pass Thru Federal,,,-110688.74
333,2019,2018-05-31,1941326,213331.32,PACE CONTRACTING LLC,2018-07-05,989826,Develop Louisville,Metro Government Capital,Contractual Services,Professional Services,,,,,Pass Thru Federal,,,107327.84
334,2019,2018-05-31,1941326,213331.32,PACE CONTRACTING LLC,2018-07-05,989826,Develop Louisville,Metro Government Capital,Contractual Services,Professional Services,,,,,Pass Thru Federal,,,110688.74
335,2019,2018-06-05,1937204,5895.2,TAYLOR SIEFKER WILLIAMS DESIGN GROUP LLC,2018-07-03,989605,Develop Louisville,Metro Government Capital,Contractual Services,Professional Services,,,,,Capital Project Fund,,,5895.2
336,2019,2018-05-31,1941326,213331.32,PACE CONTRACTING LLC,2018-07-05,989826,Develop Louisville,Metro Government Capital,Contractual Services,Professional Services,,,,,Metro GO Notes 16A,,,26562.38
337,2019,2018-06-12,1944090,19350.44,FISHEL COMPANY,2018-07-19,991657,Technology Services Department,Metro Government Capital,Contractual Services,Consulting Services,,,,,Metro GO Notes 16A,,,19350.44
338,2019,2018-06-19,1943876,3183.75,MADDEN ELEVATOR COMPANY,2018-07-06,990050,Office of Management & Budget,Metro Government Capital,Contractual Services,Elevators,,,,,Capital Project Fund,,,1741.93
339,2019,2018-05-25,1936944,1003.75,MADDEN ELEVATOR COMPANY,2018-07-10,990413,Office of Management & Budget,Metro Government Capital,Contractual Services,Elevators,,,,,Capital Project Fund,,,218.82
340,2019,2018-05-11,1938234,15108.75,MADDEN ELEVATOR COMPANY,2018-07-17,991339,Office of Management & Budget,Metro Government Capital,Contractual Services,Elevators,,,,,Capital Project Fund,,,8266.49
341,2019,2018-05-25,1938249,9033.75,MADDEN ELEVATOR COMPANY,2018-07-17,991339,Office of Management & Budget,Metro Government Capital,Contractual Services,Elevators,,,,,Metro GO Notes 16A,,,9033.75
342,2019,2018-06-19,1943876,3183.75,MADDEN ELEVATOR COMPANY,2018-07-06,990050,Office of Management & Budget,Metro Government Capital,Contractual Services,Elevators,,,,,Metro GO Notes 16A,,,1441.82
343,2019,2018-05-25,1936944,1003.75,MADDEN ELEVATOR COMPANY,2018-07-10,990413,Office of Management & Budget,Metro Government Capital,Contractual Services,Elevators,,,,,Metro GO Notes 16A,,,784.93
344,2019,2018-05-11,1938234,15108.75,MADDEN ELEVATOR COMPANY,2018-07-17,991339,Office of Management & Budget,Metro Government Capital,Contractual Services,Elevators,,,,,Metro GO Notes 16A,,,6842.26
345,2019,2018-04-30,1934504,4500,QK4 INC,2018-07-03,989572,Develop Louisville,Metro Government Capital,Contractual Services,Sidewalk Construction/ Repair Services,,,,,Capital Project Fund,,,4500
346,2019,2018-06-20,1942141,6700,COMSTOCK BROTHERS ELECTRIC CO LLC,2018-07-06,990014,Metro Corrections,Metro Government Capital,Contractual Services,Rehab Renovation/Improvements,,,,,Metro GO Bonds 16A,,,6700
347,2019,2018-07-19,1949462,4595.66,DEBRA KUEMPEL INC,2018-07-27,993359,Library,Metro Government Capital,Contractual Services,Payments to Contractors,,,,,Capital Project Fund,,,1674.2
348,2019,2018-07-06,1946518,72476.98,SCHNELL CONTRACTORS INC,2018-07-17,991390,Office of Management & Budget,Metro Government Capital,Contractual Services,Building/Office Renovation,,,,,Metro GO Bonds 16A,,,24164.93
349,2019,2018-07-06,1946518,72476.98,SCHNELL CONTRACTORS INC,2018-07-17,991390,Office of Management & Budget,Metro Government Capital,Contractual Services,Building/Office Renovation,,,,,Metro GO Bonds 16A,,,33848.15
350,2019,2018-07-06,1946518,72476.98,SCHNELL CONTRACTORS INC,2018-07-17,991390,Office of Management & Budget,Metro Government Capital,Contractual Services,Building/Office Renovation,,,,,Metro GO Bonds 16A,,,14463.9
351,2019,2018-06-11,1941209,5362.43,HANKA CONSULTING,2018-07-06,990037,Public Works & Assets Department,Metro Government Capital,Contractual Services,Sidewalk Construction/ Repair Services,,,,,Metro GO Bonds 16A,,,1298.27
352,2019,2018-06-11,1946372,1113.4,HANKA CONSULTING,2018-07-17,991305,Public Works & Assets Department,Metro Government Capital,Contractual Services,Sidewalk Construction/ Repair Services,,,,,Metro GO Bonds 16A,,,269.56
353,2019,2018-07-09,1947760,49.5,HANKA CONSULTING,2018-08-03,994396,Public Works & Assets Department,Metro Government Capital,Contractual Services,Sidewalk Construction/ Repair Services,,,,,Metro GO Bonds 16A,,,11.98
354,2019,2018-06-12,1947781,13063.61,HANKA CONSULTING,2018-07-26,993075,Public Works & Assets Department,Metro Government Capital,Contractual Services,Sidewalk Construction/ Repair Services,,,,,Metro GO Bonds 16A,,,3162.77
355,2019,2018-04-23,1947723,4560,S WALK INC,2018-07-19,991710,Public Works & Assets Department,Metro Government Capital,Contractual Services,Sidewalk Construction/ Repair Services,,,,,Metro GO Bonds 17A,,,4560
356,2019,2018-05-26,1941873,9020.2,PODGES ENT LLC,2018-07-03,989567,Develop Louisville,Metro Government Capital,Contractual Services,Landscaping Services,,,,,Capital Project Fund,,,9020.2
357,2019,2018-05-26,1947724,350,S WALK INC,2018-07-19,991710,Public Works & Assets Department,Metro Government Capital,Contractual Services,Sidewalk Construction/ Repair Services,,,,,Metro GO Bonds 17A,,,70
358,2019,2018-06-04,1946660,158827.5,ALLTERRAIN PAVING AND CONSTRUCTION LLC,2018-07-17,991219,Parks & Recreation,Metro Government Capital,Contractual Services,Payments to Contractors,,,,,CDBG 2016,,,129961.31
359,2019,2018-05-25,1947681,2758.83,S WALK INC,2018-07-19,991710,Public Works & Assets Department,Metro Government Capital,Contractual Services,Sidewalk Construction/ Repair Services,,,,,Metro GO Bonds 17A,,,2758.83
360,2019,2018-01-31,1945039,1378.3,COURIER JOURNAL,2018-07-12,990733,Parks & Recreation,Metro Government Capital,Contractual Services,Payments to Contractors,,,,,CDBG 2016,,,1378.3
361,2019,2018-05-15,1947687,418,S WALK INC,2018-07-19,991710,Public Works & Assets Department,Metro Government Capital,Contractual Services,Sidewalk Construction/ Repair Services,,,,,Metro GO Bonds 17A,,,83.6
362,2019,2018-06-22,1945272,197.5,FRANK OTTE NURSERY OF BARDSTOWN RD INC,2018-07-17,991297,Louisville Zoo,Metro Government Capital,Contractual Services,Payments to Contractors,,,,,MISC SPECIAL REVENUE,,,197.5
363,2019,2018-01-03,1947289,2107.21,S WALK INC,2018-07-23,992157,Public Works & Assets Department,Metro Government Capital,Contractual Services,Sidewalk Construction/ Repair Services,,,,,Metro GO Bonds 17A,,,2107.21
364,2019,2018-06-15,1947151,7625,GREENSIDE OUTDOOR SERVICES INC,2018-07-23,992106,Louisville Zoo,Metro Government Capital,Contractual Services,Payments to Contractors,,,,,MISC SPECIAL REVENUE,,,6680
365,2019,2018-05-14,1947695,755.05,S WALK INC,2018-07-23,992157,Public Works & Assets Department,Metro Government Capital,Contractual Services,Sidewalk Construction/ Repair Services,,,,,Metro GO Bonds 17A,,,151.01
366,2019,2018-06-15,1947151,7625,GREENSIDE OUTDOOR SERVICES INC,2018-07-23,992106,Louisville Zoo,Metro Government Capital,Contractual Services,Payments to Contractors,,,,,MISC SPECIAL REVENUE,,,945
367,2019,2018-05-25,1947726,6685.99,S WALK INC,2018-07-19,991710,Public Works & Assets Department,Metro Government Capital,Contractual Services,Sidewalk Construction/ Repair Services,,,,,Metro GO Bonds 17A,,,6685.99
368,2019,2018-05-11,1946917,350,KLYN NURSERIES INC,2018-07-27,993393,Louisville Zoo,Metro Government Capital,Contractual Services,Payments to Contractors,,,,,MISC SPECIAL REVENUE,,,350
369,2019,2018-04-23,1947613,1474.61,S WALK INC,2018-07-19,991710,Public Works & Assets Department,Metro Government Capital,Contractual Services,Sidewalk Construction/ Repair Services,,,,,Metro GO Bonds 17A,,,1474.61
370,2019,2018-06-22,1945283,272,SANDY ABRAMS LANDSCAPING COMPANY INC,2018-07-17,991389,Louisville Zoo,Metro Government Capital,Contractual Services,Payments to Contractors,,,,,MISC SPECIAL REVENUE,,,272
371,2019,2018-05-14,1947682,127.93,S WALK INC,2018-07-23,992157,Public Works & Assets Department,Metro Government Capital,Contractual Services,Sidewalk Construction/ Repair Services,,,,,Metro GO Bonds 17A,,,25.59
372,2019,2018-06-22,1941917,191.5,SITEONE LANDSCAPE SUPPLY HOLDING LLC,2018-07-17,991396,Louisville Zoo,Metro Government Capital,Contractual Services,Payments to Contractors,,,,,MISC SPECIAL REVENUE,,,191.5
373,2019,2018-06-25,1945765,28906.03,S WALK INC,2018-07-26,993175,Public Works & Assets Department,Metro Government Capital,Contractual Services,Sidewalk Construction/ Repair Services,,,,,Metro GO Bonds 17A,,,11613.77
374,2019,2018-06-06,1938531,1164.19,S WALK INC,2018-07-19,991710,Public Works & Assets Department,Metro Government Capital,Contractual Services,Sidewalk Construction/ Repair Services,,,,,Metro GO Bonds 17A,,,1164.19
375,2019,2018-05-25,1937602,4600.44,S WALK INC,2018-07-10,990465,Public Works & Assets Department,Metro Government Capital,Contractual Services,Sidewalk Construction/ Repair Services,,,,,Metro GO Bonds 17A,,,4600.44
376,2019,2018-05-25,1937196,5858.67,S WALK INC,2018-07-10,990465,Public Works & Assets Department,Metro Government Capital,Contractual Services,Sidewalk Construction/ Repair Services,,,,,Metro GO Bonds 17A,,,5858.67
377,2019,2018-05-25,1937202,4622.14,S WALK INC,2018-07-10,990465,Public Works & Assets Department,Metro Government Capital,Contractual Services,Sidewalk Construction/ Repair Services,,,,,Metro GO Bonds 17A,,,4622.14
378,2019,2018-05-15,1947677,333.99,S WALK INC,2018-07-19,991710,Public Works & Assets Department,Metro Government Capital,Contractual Services,Sidewalk Construction/ Repair Services,,,,,Metro GO Bonds 17A,,,66.8
379,2019,2018-06-05,1939213,4517.79,S WALK INC,2018-07-03,989587,Public Works & Assets Department,Metro Government Capital,Contractual Services,Sidewalk Construction/ Repair Services,,,,,Metro GO Bonds 17A,,,903.56
380,2019,2018-06-05,1939212,1358.73,S WALK INC,2018-07-03,989587,Public Works & Assets Department,Metro Government Capital,Contractual Services,Sidewalk Construction/ Repair Services,,,,,Metro GO Bonds 17A,,,271.75
381,2019,2018-06-06,1938420,6818.9,S WALK INC,2018-07-03,989587,Public Works & Assets Department,Metro Government Capital,Contractual Services,Sidewalk Construction/ Repair Services,,,,,Metro GO Bonds 17A,,,6818.9
382,2019,2018-06-06,1938422,3405.52,S WALK INC,2018-07-03,989587,Public Works & Assets Department,Metro Government Capital,Contractual Services,Sidewalk Construction/ Repair Services,,,,,Metro GO Bonds 17A,,,3405.52
383,2019,2018-06-05,1939211,197.93,S WALK INC,2018-07-03,989587,Public Works & Assets Department,Metro Government Capital,Contractual Services,Sidewalk Construction/ Repair Services,,,,,Metro GO Bonds 17A,,,39.59
384,2019,2018-06-05,1939396,877.31,S WALK INC,2018-07-03,989587,Public Works & Assets Department,Metro Government Capital,Contractual Services,Sidewalk Construction/ Repair Services,,,,,Metro GO Bonds 17A,,,175.46
385,2019,2018-06-05,1939341,2077.53,S WALK INC,2018-07-03,989587,Public Works & Assets Department,Metro Government Capital,Contractual Services,Sidewalk Construction/ Repair Services,,,,,Metro GO Bonds 17A,,,415.51
386,2019,2018-06-06,1939379,3290,S WALK INC,2018-07-03,989587,Public Works & Assets Department,Metro Government Capital,Contractual Services,Sidewalk Construction/ Repair Services,,,,,Metro GO Bonds 17A,,,3290
387,2019,2018-06-05,1939394,223.56,S WALK INC,2018-07-03,989587,Public Works & Assets Department,Metro Government Capital,Contractual Services,Sidewalk Construction/ Repair Services,,,,,Metro GO Bonds 17A,,,44.71
388,2019,2017-10-31,1859115,14000,WEBER GROUP INC,2018-08-09,995172,Louisville Zoo,Metro Government Capital,Contractual Services,Payments to Contractors,,,,,MISC SPECIAL REVENUE,,,7802.87
389,2019,2017-10-31,1859115,14000,WEBER GROUP INC,2018-08-09,995172,Louisville Zoo,Metro Government Capital,Contractual Services,Rehab Renovation/Improvements,,,,,Capital Project Fund,,,1145.49
390,2019,2018-06-15,1940570,10000,STRAND ASSOCIATES INC,2018-07-17,991403,Public Works & Assets Department,Metro Government Capital,Contractual Services,Bridge Construction/ Repair Services,,,,,Metro GO Bonds 17A,,,10000
391,2019,2018-06-29,1944712,29208.6,HIGHLAND ROOFING COMPANY INC,2018-07-24,992772,Metro Corrections,Metro Government Capital,Contractual Services,Roofing Project Services,,,,,Metro GO Notes 17A,,,19764.6
392,2019,2018-06-30,1946817,21330,ACCELA INC,2018-07-26,992975,Technology Services Department,Metro Government Capital,Contractual Services,Consulting Services,,,,,Metro GO Bonds 16A,,,137.96
393,2019,2018-06-30,1946817,21330,ACCELA INC,2018-07-26,992975,Technology Services Department,Metro Government Capital,Contractual Services,Consulting Services,,,,,Metro GO Bonds 16A,,,21192.04
394,2019,2018-06-13,1945806,35516.25,ACCELA INC,2018-07-17,991213,Technology Services Department,Metro Government Capital,Contractual Services,Consulting Services,,,,,Metro GO Bonds 16A,,,1516.25
395,2019,2018-06-13,1945806,35516.25,ACCELA INC,2018-07-17,991213,Technology Services Department,Metro Government Capital,Contractual Services,Consulting Services,,,,,Metro GO Bonds 16A,,,34000
396,2019,2017-11-19,1943745,7400.7,ACCELA INC,2018-07-17,991213,Technology Services Department,Metro Government Capital,Contractual Services,Consulting Services,,,,,Metro GO Bonds 16A,,,7400.7
397,2019,2017-11-19,1943745,7400.7,ACCELA INC,2018-07-17,991213,Technology Services Department,Metro Government Capital,Contractual Services,Consulting Services,,,,,Metro GO Bonds 16A,,,-7400.7
398,2019,2017-11-19,1943745,7400.7,ACCELA INC,2018-07-17,991213,Technology Services Department,Metro Government Capital,Contractual Services,Consulting Services,,,,,Metro GO Bonds 16A,,,7400.7
399,2019,2018-06-13,1942304,35516.25,ACCELA INC,2018-07-10,990288,Technology Services Department,Metro Government Capital,Contractual Services,Consulting Services,,,,,Metro GO Bonds 16A,,,35516.25
400,2019,2018-06-18,1942424,2540.93,ACCELA INC,2018-07-13,990934,Technology Services Department,Metro Government Capital,Contractual Services,Consulting Services,,,,,Metro GO Bonds 16A,,,2540.93
401,2019,2018-06-05,1939240,2606.43,S WALK INC,2018-07-03,989587,Public Works & Assets Department,Metro Government Capital,Contractual Services,Sidewalk Construction/ Repair Services,,,,,Metro GO Bonds 17A,,,521.29
402,2019,2018-06-05,1939238,2373.09,S WALK INC,2018-07-03,989587,Public Works & Assets Department,Metro Government Capital,Contractual Services,Sidewalk Construction/ Repair Services,,,,,Metro GO Bonds 17A,,,474.62
403,2019,2018-06-05,1938829,2499.37,S WALK INC,2018-07-03,989587,Public Works & Assets Department,Metro Government Capital,Contractual Services,Sidewalk Construction/ Repair Services,,,,,Metro GO Bonds 17A,,,499.87
404,2019,2018-06-05,1938826,3450.8,S WALK INC,2018-07-03,989587,Public Works & Assets Department,Metro Government Capital,Contractual Services,Sidewalk Construction/ Repair Services,,,,,Metro GO Bonds 17A,,,690.16
405,2019,2018-06-06,1938525,6938,S WALK INC,2018-07-03,989587,Public Works & Assets Department,Metro Government Capital,Contractual Services,Sidewalk Construction/ Repair Services,,,,,Metro GO Bonds 17A,,,6938
406,2019,2018-06-06,1938536,5501.91,S WALK INC,2018-07-03,989587,Public Works & Assets Department,Metro Government Capital,Contractual Services,Sidewalk Construction/ Repair Services,,,,,Metro GO Bonds 17A,,,5501.91
407,2019,2018-06-06,1938539,4849.76,S WALK INC,2018-07-03,989587,Public Works & Assets Department,Metro Government Capital,Contractual Services,Sidewalk Construction/ Repair Services,,,,,Metro GO Bonds 17A,,,4849.76
408,2019,2018-06-06,1938547,2239.11,S WALK INC,2018-07-03,989587,Public Works & Assets Department,Metro Government Capital,Contractual Services,Sidewalk Construction/ Repair Services,,,,,Metro GO Bonds 17A,,,2239.11
409,2019,2018-06-05,1938824,2562,S WALK INC,2018-07-03,989587,Public Works & Assets Department,Metro Government Capital,Contractual Services,Sidewalk Construction/ Repair Services,,,,,Metro GO Bonds 17A,,,512.4
410,2019,2018-06-05,1939226,668.1,S WALK INC,2018-07-03,989587,Public Works & Assets Department,Metro Government Capital,Contractual Services,Sidewalk Construction/ Repair Services,,,,,Metro GO Bonds 17A,,,133.62
411,2019,2018-06-05,1939223,681.11,S WALK INC,2018-07-03,989587,Public Works & Assets Department,Metro Government Capital,Contractual Services,Sidewalk Construction/ Repair Services,,,,,Metro GO Bonds 17A,,,136.22
412,2019,2018-06-20,1950955,1825.64,LOWES COMPANIES INC,2018-08-02,994204,Parks & Recreation,Metro Government Capital,Contractual Services,Other Building Maintenance/Repair Services,,,,,Metro GO Notes 17A,,,1825.64
413,2019,2018-06-30,1947801,31050,EZ CONSTRUCTION COMPANY INC,2018-07-26,993050,Public Works & Assets Department,Metro Government Capital,Contractual Services,Sidewalk Construction/ Repair Services,,,,,Capital Project Fund,,,31050
414,2019,2018-06-05,1940287,7,BEST STAMP & SEAL CO INC,2018-07-03,989396,Louisville Metro Council,Metro Government Operations,Supplies,Office Supplies,,,,,General Fund,,,7
415,2019,2017-11-30,1946447,33776,PACE CONTRACTING LLC,2018-07-17,991360,Parks & Recreation,Metro Government Capital,Contractual Services,Payments to Contractors,,,,,General Obligation Bonds 2009,,,-5897.93
416,2019,2018-06-05,1939221,847.84,S WALK INC,2018-07-03,989587,Public Works & Assets Department,Metro Government Capital,Contractual Services,Sidewalk Construction/ Repair Services,,,,,Metro GO Bonds 17A,,,169.57
417,2019,2018-06-05,1939220,2030.01,S WALK INC,2018-07-03,989587,Public Works & Assets Department,Metro Government Capital,Contractual Services,Sidewalk Construction/ Repair Services,,,,,Metro GO Bonds 17A,,,406
418,2019,2018-06-05,1939219,197.93,S WALK INC,2018-07-03,989587,Public Works & Assets Department,Metro Government Capital,Contractual Services,Sidewalk Construction/ Repair Services,,,,,Metro GO Bonds 17A,,,39.59
419,2019,2018-06-05,1939216,593.09,S WALK INC,2018-07-03,989587,Public Works & Assets Department,Metro Government Capital,Contractual Services,Sidewalk Construction/ Repair Services,,,,,Metro GO Bonds 17A,,,118.62
420,2019,2018-06-05,1939215,3099.21,S WALK INC,2018-07-03,989587,Public Works & Assets Department,Metro Government Capital,Contractual Services,Sidewalk Construction/ Repair Services,,,,,Metro GO Bonds 17A,,,619.84
421,2019,2018-06-05,1939214,648.97,S WALK INC,2018-07-03,989587,Public Works & Assets Department,Metro Government Capital,Contractual Services,Sidewalk Construction/ Repair Services,,,,,Metro GO Bonds 17A,,,129.79
422,2019,2018-06-06,1938485,4952.7,FLYNN BROTHERS CONTRACTING INC,2018-07-03,989466,Public Works & Assets Department,Metro Government Capital,Contractual Services,Road Construction/ Repair Services,,,,,Metro GO Bonds 17A,,,4952.7
423,2019,2018-07-09,1945681,1674.66,FLYNN BROTHERS CONTRACTING INC,2018-08-03,994390,Public Works & Assets Department,Metro Government Capital,Contractual Services,Road Construction/ Repair Services,,,,,Metro GO Bonds 17A,,,1674.66
424,2019,2018-06-30,1945685,2815.24,FLYNN BROTHERS CONTRACTING INC,2018-07-26,993063,Public Works & Assets Department,Metro Government Capital,Contractual Services,Road Construction/ Repair Services,,,,,Metro GO Bonds 17A,,,2815.24
425,2019,2018-06-30,1945688,28753.1,FLYNN BROTHERS CONTRACTING INC,2018-07-26,993063,Public Works & Assets Department,Metro Government Capital,Contractual Services,Road Construction/ Repair Services,,,,,Metro GO Bonds 17A,,,28753.1
426,2019,2018-06-30,1948088,23557.68,HALL CONTRACTING OF KENTUCKY INC,2018-07-26,993074,Public Works & Assets Department,Metro Government Capital,Contractual Services,Road Construction/ Repair Services,,,,,Metro GO Bonds 17A,,,23557.68
427,2019,2018-06-29,1944628,5474.72,HALL CONTRACTING OF KENTUCKY INC,2018-07-24,992769,Public Works & Assets Department,Metro Government Capital,Contractual Services,Road Construction/ Repair Services,,,,,Metro GO Bonds 17A,,,5474.72
428,2019,2018-06-29,1944630,204.61,HALL CONTRACTING OF KENTUCKY INC,2018-07-24,992769,Public Works & Assets Department,Metro Government Capital,Contractual Services,Road Construction/ Repair Services,,,,,Metro GO Bonds 17A,,,204.61
429,2019,2018-06-29,1944626,55533.04,HALL CONTRACTING OF KENTUCKY INC,2018-07-24,992769,Public Works & Assets Department,Metro Government Capital,Contractual Services,Road Construction/ Repair Services,,,,,Metro GO Bonds 17A,,,55533.04
430,2019,2018-06-29,1944632,85013.46,HALL CONTRACTING OF KENTUCKY INC,2018-07-24,992769,Public Works & Assets Department,Metro Government Capital,Contractual Services,Road Construction/ Repair Services,,,,,Metro GO Bonds 17A,,,63081.15
431,2019,2018-06-29,1944632,85013.46,HALL CONTRACTING OF KENTUCKY INC,2018-07-24,992769,Public Works & Assets Department,Metro Government Capital,Contractual Services,Road Construction/ Repair Services,,,,,Metro GO Bonds 17A,,,21932.31
432,2019,2018-06-29,1944620,49929.89,HALL CONTRACTING OF KENTUCKY INC,2018-07-24,992769,Public Works & Assets Department,Metro Government Capital,Contractual Services,Road Construction/ Repair Services,,,,,Metro GO Bonds 17A,,,19394.42
433,2019,2018-06-29,1944620,49929.89,HALL CONTRACTING OF KENTUCKY INC,2018-07-24,992769,Public Works & Assets Department,Metro Government Capital,Contractual Services,Road Construction/ Repair Services,,,,,Metro GO Bonds 17A,,,30535.47
434,2019,2018-07-01,1946832,5470,PALADIN INC,2018-07-20,991943,Library,Metro Government Capital,Contractual Services,Payments to Contractors,,,,,Metro GO Bonds 17A,,,5470
435,2019,2018-04-27,1939246,55167.48,URS CORPORATION,2018-07-03,989626,Parks & Recreation,Metro Government Capital,Contractual Services,Engineering & Architectural Services,,,,,Pass Thru Federal,,,44133.98
436,2019,2018-06-27,1950378,8015.64,B&S ELECTRIC SUPPLY COMPANY INC,2018-07-31,993716,Louisville Zoo,Metro Government Capital,Contractual Services,Payments to Contractors,,,,,Capital Project Fund,,,4714.29
437,2019,2018-06-29,1944623,3955.5,HALL CONTRACTING OF KENTUCKY INC,2018-07-24,992769,Public Works & Assets Department,Metro Government Capital,Contractual Services,Road Construction/ Repair Services,,,,,Metro GO Bonds 17A,,,3955.5
438,2019,2018-06-29,1944614,228909.71,HALL CONTRACTING OF KENTUCKY INC,2018-07-10,990379,Public Works & Assets Department,Metro Government Capital,Contractual Services,Road Construction/ Repair Services,,,,,Metro GO Bonds 17A,,,228909.71
439,2019,2018-06-29,1944633,214740.56,HALL CONTRACTING OF KENTUCKY INC,2018-07-24,992769,Public Works & Assets Department,Metro Government Capital,Contractual Services,Road Construction/ Repair Services,,,,,Metro GO Bonds 17A,,,138240.56
440,2019,2018-06-29,1944634,25416.25,HALL CONTRACTING OF KENTUCKY INC,2018-07-24,992769,Public Works & Assets Department,Metro Government Capital,Contractual Services,Road Construction/ Repair Services,,,,,Metro GO Bonds 17A,,,25416.25
441,2019,2018-06-29,1944813,69691.65,HALL CONTRACTING OF KENTUCKY INC,2018-07-24,992769,Public Works & Assets Department,Metro Government Capital,Contractual Services,Road Construction/ Repair Services,,,,,Metro GO Bonds 17A,,,20117.62
442,2019,2018-04-27,1944120,50215,RIVERSIDE PAVING & CONTRACTING CO INC,2018-07-10,990459,Public Works & Assets Department,Metro Government Capital,Contractual Services,Road Construction/ Repair Services,,,,,Metro GO Bonds 17A,,,50215
443,2019,2018-05-31,1942284,213100.02,LOUISVILLE PAVING COMPANY INC,2018-07-05,989810,Public Works & Assets Department,Metro Government Capital,Contractual Services,Road Construction/ Repair Services,,,,,Municipal Aid,,,213100.02
444,2019,2018-05-31,1939408,2070,QK4 INC,2018-07-26,993165,Public Works & Assets Department,Metro Government Capital,Contractual Services,Road Construction/ Repair Services,,,,,Municipal Aid,,,2070
445,2019,2018-05-31,1943797,10000,QK4 INC,2018-07-10,990445,Develop Louisville,Metro Government Capital,Contractual Services,Engineering & Architectural Services,,,,,Capital Project Fund,,,5213.04
446,2019,2018-06-14,1939742,30606,COMSTOCK BROTHERS ELECTRIC CO LLC,2018-07-05,989779,Public Works & Assets Department,Metro Government Capital,Contractual Services,Payments to Contractors,,,,,Metro GO Bonds 17A,,,29000
447,2019,2018-06-14,1939742,30606,COMSTOCK BROTHERS ELECTRIC CO LLC,2018-07-05,989779,Public Works & Assets Department,Metro Government Capital,Contractual Services,Payments to Contractors,,,,,Metro GO Bonds 17A,,,1606
448,2019,2018-01-31,1890758,1214.87,DEBRA KUEMPEL INC,2018-07-13,990961,Parks & Recreation,Metro Government Capital,Contractual Services,Other Building Maintenance/Repair Services,,,,,Metro GO Bonds 17A,,,1214.87
449,2019,2018-01-31,1890758,1214.87,DEBRA KUEMPEL INC,2018-07-13,990961,Parks & Recreation,Metro Government Capital,Contractual Services,Other Building Maintenance/Repair Services,,,,,Metro GO Bonds 17A,,,-1214.87
450,2019,2018-05-29,1941324,11038.66,DEBRA KUEMPEL INC,2018-07-17,991276,Parks & Recreation,Metro Government Capital,Contractual Services,Other Building Maintenance/Repair Services,,,,,Metro GO Bonds 17A,,,11038.66
451,2019,2018-05-29,1941324,11038.66,DEBRA KUEMPEL INC,2018-07-17,991276,Parks & Recreation,Metro Government Capital,Contractual Services,Other Building Maintenance/Repair Services,,,,,Metro GO Bonds 17A,,,-11038.66
452,2019,2018-05-29,1941324,11038.66,DEBRA KUEMPEL INC,2018-07-17,991276,Parks & Recreation,Metro Government Capital,Contractual Services,Other Building Maintenance/Repair Services,,,,,Metro GO Bonds 17A,,,11038.66
453,2019,2018-05-25,1944057,23318,RIVERSIDE PAVING & CONTRACTING CO INC,2018-07-31,993833,Parks & Recreation,Metro Government Capital,Contractual Services,Other Building Maintenance/Repair Services,,,,,Metro GO Bonds 17A,,,23318
454,2019,2018-06-04,1946660,158827.5,ALLTERRAIN PAVING AND CONSTRUCTION LLC,2018-07-17,991219,Parks & Recreation,Metro Government Capital,Contractual Services,Other Building Maintenance/Repair Services,,,,,Metro GO Notes 17A,,,6877.28
455,2019,2018-05-03,1932134,4510,BOYD COMPANY,2018-07-17,991445,Parks & Recreation,Metro Government Capital,Contractual Services,Other Building Maintenance/Repair Services,,,,,Metro GO Notes 17A,,,4510
456,2019,2018-05-03,1931185,1936.45,HPP INDUSTRIAL INC,2018-09-20,1001668,Parks & Recreation,Metro Government Capital,Contractual Services,Other Building Maintenance/Repair Services,,,,,Metro GO Notes 17A,,,1936.45
457,2019,2018-06-28,1950945,1914.42,LOWES COMPANIES INC,2018-08-02,994204,Parks & Recreation,Metro Government Capital,Contractual Services,Other Building Maintenance/Repair Services,,,,,Metro GO Notes 17A,,,1914.42
458,2019,2018-06-20,1942743,17.84,GENEVIEVE FIRST,2018-07-10,990255,Louisville Metro Council,Metro Government Operations,Supplies,Office Supplies,,,,,General Fund,,,17.84
459,2019,2018-06-21,1942164,239.6,CDW LLC,2018-07-17,991261,Public Works & Assets Department,Metro Government Capital,Equipment/Capital Outlay,Computer Hardware,,,,,Capital Project Fund,,,67.01
460,2019,2018-06-08,1947092,222.72,KONICA MINOLTA BUSINESS SOLUTIONS,2018-07-17,991114,Criminal Justice Commission,Metro Government Operations,Contractual Services,Equipment Rental,,,,,General Fund,,,222.72
461,2019,2018-04-11,1923033,-83.9,N GLANTZ & SON LLC,2018-08-10,995358,Parks & Recreation,Metro Government Capital,Contractual Services,Other Building Maintenance/Repair Services,,,,,Metro GO Notes 17A,,,-83.9
462,2019,2018-06-13,1941022,599,CDW LLC,2018-07-10,990328,Public Works & Assets Department,Metro Government Capital,Equipment/Capital Outlay,Computer Hardware,,,,,Capital Project Fund,,,167.51
463,2019,2017-11-30,1946447,33776,PACE CONTRACTING LLC,2018-07-17,991360,Parks & Recreation,Metro Government Capital,Contractual Services,Payments to Contractors,,,,,General Obligation Bonds 2009,,,5897.93
464,2019,2018-07-10,1946255,272.71,KONICA MINOLTA BUSINESS SOLUTIONS,2018-07-19,991783,Criminal Justice Commission,Metro Government Operations,Contractual Services,Equipment Rental,,,,,General Fund,,,272.71
465,2019,2018-07-10,1948698,29500,RIVERSIDE PAVING & CONTRACTING CO INC,2018-08-07,994692,Parks & Recreation,Metro Government Capital,Contractual Services,Other Building Maintenance/Repair Services,,,,,Metro GO Notes 17A,,,14750
466,2019,2018-05-23,1949045,10546.89,B&S ELECTRIC SUPPLY COMPANY INC,2018-07-24,992727,Louisville Zoo,Metro Government Capital,Contractual Services,Payments to Contractors,,,,,Capital Project Fund,,,10546.89
467,2019,2018-07-01,1946832,5470,PALADIN INC,2018-07-20,991943,Library,Metro Government Capital,Contractual Services,Payments to Contractors,,,,,Metro GO Bonds 17A,,,-5470
468,2019,2018-04-27,1939246,55167.48,URS CORPORATION,2018-07-03,989626,Parks & Recreation,Metro Government Capital,Contractual Services,Payments to Contractors,,,,,Capital Project Fund,,,3188.2
469,2019,2017-11-30,1946447,33776,PACE CONTRACTING LLC,2018-07-17,991360,Parks & Recreation,Metro Government Capital,Contractual Services,Payments to Contractors,,,,,General Obligation Bonds 2009,,,5897.93
470,2019,2018-06-20,1944355,33200,RIVERSIDE PAVING & CONTRACTING CO INC,2018-07-17,991380,Parks & Recreation,Metro Government Capital,Contractual Services,Other Building Maintenance/Repair Services,,,,,Metro GO Notes 17A,,,33200
471,2019,2018-04-19,1943321,14353.02,UNIVERSITY OF LOUISVILLE RESEARCH FOUNDATION INC,2018-07-17,991434,Criminal Justice Commission,Metro Government Operations,Contractual Services,Professional Services,,,,,Federally Funded,,,14353.02
472,2019,2018-06-12,1941024,119.8,CDW LLC,2018-07-10,990328,Public Works & Assets Department,Metro Government Capital,Equipment/Capital Outlay,Computer Hardware,,,,,Capital Project Fund,,,33.5
473,2019,2018-03-22,1941175,39446.22,C3 CONSTRUCTION,2018-07-05,989772,Public Works & Assets Department,Metro Government Capital,Contractual Services,Sidewalk Construction/ Repair Services,,,,,Capital Project Fund,,,13664.83
474,2019,2018-06-05,1949684,64384,SHAFFNER HEANEY ASSOCIATES INC,2018-07-27,993438,Library,Metro Government Capital,Contractual Services,Payments to Contractors,,,,,Metro GO Bonds 17A,,,64384
475,2019,2018-06-05,1937209,3489.2,GREEN 3 LLC,2018-07-10,990377,Parks & Recreation,Metro Government Capital,Contractual Services,Engineering & Architectural Services,,,,,Capital Project Fund,,,697.84
476,2019,2018-06-22,1949593,2299.99,B&S ELECTRIC SUPPLY COMPANY INC,2018-07-27,993335,Louisville Zoo,Metro Government Capital,Contractual Services,Payments to Contractors,,,,,Capital Project Fund,,,2299.99
477,2019,2018-05-02,1944037,3530.4,RIVERSIDE PAVING & CONTRACTING CO INC,2018-07-05,989834,Parks & Recreation,Metro Government Capital,Contractual Services,Other Building Maintenance/Repair Services,,,,,Metro GO Notes 17A,,,3530.4
478,2019,2018-05-10,1943325,4784.34,UNIVERSITY OF LOUISVILLE RESEARCH FOUNDATION INC,2018-07-03,989624,Criminal Justice Commission,Metro Government Operations,Contractual Services,Professional Services,,,,,Federally Funded,,,4784.34
479,2019,2018-06-20,1944353,49631.37,STANTEC CONSULTING SERVICES INC,2018-07-17,991401,Parks & Recreation,Metro Government Capital,Contractual Services,Professional Services,,,,,Pass Thru Federal,,,39705.1
480,2019,2018-02-16,1927740,79892.89,PACE CONTRACTING LLC,2018-08-17,996263,Public Works & Assets Department,Metro Government Capital,Contractual Services,Sidewalk Construction/ Repair Services,,,,,Municipal Aid,,,79892.89
481,2019,2018-05-31,1944009,693381.26,SULLIVAN & COZART INC,2018-07-05,989845,Library,Metro Government Capital,Contractual Services,Payments to Contractors,,,,,Metro GO Bonds 17A,,,693381.26
482,2019,2018-06-08,1945633,3093.51,GREEN 3 LLC,2018-07-13,990978,Parks & Recreation,Metro Government Capital,Contractual Services,Engineering & Architectural Services,,,,,Capital Project Fund,,,618.7
483,2019,2018-06-08,1945633,3093.51,GREEN 3 LLC,2018-07-13,990978,Parks & Recreation,Metro Government Capital,Contractual Services,Engineering & Architectural Services,,,,,Pass Thru Federal,,,2474.81
484,2019,2018-06-05,1937209,3489.2,GREEN 3 LLC,2018-07-10,990377,Parks & Recreation,Metro Government Capital,Contractual Services,Engineering & Architectural Services,,,,,Pass Thru Federal,,,2791.36
485,2019,2018-04-04,1921147,2800,ANDREW W UNSELD AND KELLY K UNSELD,2018-08-30,998459,Public Works & Assets Department,Metro Government Capital,Equipment/Capital Outlay,Right of Way Land,,,,,Pass Thru Federal,,,2800
486,2019,2018-04-04,1921122,5725,JAMES D AND CLEO ROBINSON,2018-07-20,991968,Public Works & Assets Department,Metro Government Capital,Equipment/Capital Outlay,Right of Way Land,,,,,Pass Thru Federal,,,5725
487,2019,2018-06-05,1939085,1423.15,QK4 INC,2018-07-03,989572,Public Works & Assets Department,Metro Government Capital,Equipment/Capital Outlay,Right of Way Land,,,,,Pass Thru Federal,,,1423.15
488,2019,2018-07-12,1949349,1423.15,QK4 INC,2018-08-07,994689,Public Works & Assets Department,Metro Government Capital,Equipment/Capital Outlay,Right of Way Land,,,,,Pass Thru Federal,,,1423.15
489,2019,2018-07-11,1948630,1860,BROWN WOOD PRESERVING COMPANY INC,2018-08-07,994626,Emergency Management Agency/MetroSafe,Metro Government Capital,Equipment/Capital Outlay,Safety and Security Equipment,,,,,State Funding,,,1860
490,2019,2018-07-11,1948630,1860,BROWN WOOD PRESERVING COMPANY INC,2018-08-07,994626,Emergency Management Agency/MetroSafe,Metro Government Capital,Equipment/Capital Outlay,Safety and Security Equipment,,,,,State Funding,,,-1860
491,2019,2018-07-11,1948630,1860,BROWN WOOD PRESERVING COMPANY INC,2018-08-07,994626,Emergency Management Agency/MetroSafe,Metro Government Capital,Equipment/Capital Outlay,Safety and Security Equipment,,,,,State Funding,,,1860
492,2019,2018-07-10,1948645,930,BROWN WOOD PRESERVING COMPANY INC,2018-08-07,994626,Emergency Management Agency/MetroSafe,Metro Government Capital,Equipment/Capital Outlay,Safety and Security Equipment,,,,,State Funding,,,930
493,2019,2018-06-21,1947027,50417.64,FEDERAL SIGNAL CORP,2018-07-24,992759,Emergency Management Agency/MetroSafe,Metro Government Capital,Equipment/Capital Outlay,Safety and Security Equipment,,,,,State Funding,,,50417.64
494,2019,2018-03-23,1916829,16206.32,DEBRA KUEMPEL INC,2018-07-17,991276,Parks & Recreation,Metro Government Capital,Contractual Services,Other Project Expenditure,,,,,Capital Project Fund,,,11352.01
495,2019,2018-03-23,1916829,16206.32,DEBRA KUEMPEL INC,2018-07-17,991276,Parks & Recreation,Metro Government Capital,Contractual Services,Rehab Renovation/Improvements,,,,,MISC SPECIAL REVENUE,,,1964.99
496,2019,2018-03-23,1916829,16206.32,DEBRA KUEMPEL INC,2018-07-17,991276,Parks & Recreation,Metro Government Capital,Contractual Services,Rehab Renovation/Improvements,,,,,MISC SPECIAL REVENUE,,,2889.32
497,2019,2018-06-30,1947685,89.16,JACQUELINE WILSON-RUDY,2018-07-19,991752,Develop Louisville,Metro Government Capital,Contractual Services,Payments to Contractors,,,,,CDBG 2016,,,15.87
498,2019,2017-10-31,1859115,14000,WEBER GROUP INC,2018-08-09,995172,Louisville Zoo,Metro Government Capital,Contractual Services,Payments to Contractors,,,,,Capital Project Fund,,,469.08
499,2019,2018-06-30,1946810,5553.89,FISHEL COMPANY,2018-07-26,993060,Metro Police,Metro Government Capital,Equipment/Capital Outlay,Law Enforcement Camera Equiment,,,,,Federal Forfeitures,,,5553.89
500,2019,2018-06-30,1946812,5553.89,FISHEL COMPANY,2018-07-26,993060,Metro Police,Metro Government Capital,Equipment/Capital Outlay,Law Enforcement Camera Equiment,,,,,Federal Forfeitures,,,5553.89
501,2019,2018-06-27,1943583,6736.58,FISHEL COMPANY,2018-07-23,992097,Metro Police,Metro Government Capital,Equipment/Capital Outlay,Law Enforcement Camera Equiment,,,,,Federal Forfeitures,,,6736.58
502,2019,2018-06-26,1943742,8886.99,FISHEL COMPANY,2018-07-23,992097,Metro Police,Metro Government Capital,Equipment/Capital Outlay,Law Enforcement Camera Equiment,,,,,Federal Forfeitures,,,8886.99
503,2019,2018-06-15,1944450,11677.2,FISHEL COMPANY,2018-08-02,994173,Metro Police,Metro Government Capital,Equipment/Capital Outlay,Law Enforcement Camera Equiment,,,,,Federal Forfeitures,,,11677.2
504,2019,2018-06-12,1943569,6264.95,FISHEL COMPANY,2018-07-13,990969,Metro Police,Metro Government Capital,Equipment/Capital Outlay,Law Enforcement Camera Equiment,,,,,Federal Forfeitures,,,6264.95
505,2019,2018-06-09,1938185,15079.49,FISHEL COMPANY,2018-07-05,989793,Metro Police,Metro Government Capital,Equipment/Capital Outlay,Law Enforcement Camera Equiment,,,,,Federal Forfeitures,,,15079.49
506,2019,2018-06-06,1937232,642.58,TACTICAL ARMOR GROUP,2018-07-03,989603,Metro Police,Metro Government Capital,Equipment/Capital Outlay,Law Enforcement Equipment,,,,,State Forfeitures,,,642.58
507,2019,2018-06-07,1937242,1417.76,TACTICAL ARMOR GROUP,2018-07-03,989603,Metro Police,Metro Government Capital,Equipment/Capital Outlay,Law Enforcement Equipment,,,,,State Forfeitures,,,1417.76
508,2019,2018-07-06,1945391,642.58,TACTICAL ARMOR GROUP,2018-07-31,993856,Metro Police,Metro Government Capital,Equipment/Capital Outlay,Law Enforcement Equipment,,,,,State Forfeitures,,,642.58
509,2019,2018-07-06,1945391,642.58,TACTICAL ARMOR GROUP,2018-07-31,993856,Metro Police,Metro Government Capital,Equipment/Capital Outlay,Law Enforcement Equipment,,,,,State Forfeitures,,,-642.58
510,2019,2018-07-06,1945391,642.58,TACTICAL ARMOR GROUP,2018-07-31,993856,Metro Police,Metro Government Capital,Equipment/Capital Outlay,Law Enforcement Equipment,,,,,State Forfeitures,,,642.58
511,2019,2018-06-22,1943401,642.58,TACTICAL ARMOR GROUP,2018-07-17,991409,Metro Police,Metro Government Capital,Equipment/Capital Outlay,Law Enforcement Equipment,,,,,State Forfeitures,,,642.58
512,2019,2018-06-22,1943402,642.58,TACTICAL ARMOR GROUP,2018-07-17,991409,Metro Police,Metro Government Capital,Equipment/Capital Outlay,Law Enforcement Equipment,,,,,State Forfeitures,,,642.58
513,2019,2018-06-22,1943403,642.58,TACTICAL ARMOR GROUP,2018-07-17,991409,Metro Police,Metro Government Capital,Equipment/Capital Outlay,Law Enforcement Equipment,,,,,State Forfeitures,,,642.58
514,2019,2018-06-13,1939193,1285.16,TACTICAL ARMOR GROUP,2018-07-10,990484,Metro Police,Metro Government Capital,Equipment/Capital Outlay,Law Enforcement Equipment,,,,,State Forfeitures,,,1285.16
515,2019,2018-06-13,1939414,1927.74,TACTICAL ARMOR GROUP,2018-07-10,990484,Metro Police,Metro Government Capital,Equipment/Capital Outlay,Law Enforcement Equipment,,,,,State Forfeitures,,,1927.74
516,2019,2018-04-27,1939246,55167.48,URS CORPORATION,2018-07-03,989626,Parks & Recreation,Metro Government Capital,Contractual Services,Payments to Contractors,,,,,Capital Project Fund,,,7845.3
517,2019,2018-06-08,1950260,761.4,QK4 INC,2018-07-31,993827,Parks & Recreation,Metro Government Capital,Contractual Services,Professional Services,,,,,Pass Thru Federal,,,761.4
518,2019,2018-07-08,1948710,12310,GRESHAM SMITH,2018-07-23,992107,Parks & Recreation,Metro Government Capital,Contractual Services,Professional Services,,,,,State Funding,,,4833.31
519,2019,2018-07-08,1948710,12310,GRESHAM SMITH,2018-07-23,992107,Parks & Recreation,Metro Government Capital,Contractual Services,Professional Services,,,,,State Funding,,,7476.69
520,2019,2018-07-08,1948706,448,GRESHAM SMITH,2018-07-23,992107,Parks & Recreation,Metro Government Capital,Contractual Services,Payments to Contractors,,,,,State Funding,,,33.04
521,2019,2018-07-08,1948706,448,GRESHAM SMITH,2018-07-23,992107,Parks & Recreation,Metro Government Capital,Contractual Services,Payments to Contractors,,,,,State Funding,,,-33.04
522,2019,2018-07-08,1948706,448,GRESHAM SMITH,2018-07-23,992107,Parks & Recreation,Metro Government Capital,Contractual Services,Payments to Contractors,,,,,State Funding,,,448
523,2019,2018-07-08,1948706,448,GRESHAM SMITH,2018-07-23,992107,Parks & Recreation,Metro Government Capital,Contractual Services,Road Construction/ Repair Services,,,,,State Funding,,,414.96
524,2019,2018-07-08,1948706,448,GRESHAM SMITH,2018-07-23,992107,Parks & Recreation,Metro Government Capital,Contractual Services,Road Construction/ Repair Services,,,,,State Funding,,,-414.96
525,2019,2018-07-08,1948708,295.24,GRESHAM SMITH,2018-07-23,992107,Parks & Recreation,Metro Government Capital,Contractual Services,Road Construction/ Repair Services,,,,,State Funding,,,295.24
526,2019,2018-04-27,1939246,55167.48,URS CORPORATION,2018-07-03,989626,Parks & Recreation,Metro Government Capital,Contractual Services,Engineering & Architectural Services,,,,,Pass Thru Federal,,,55167.48
527,2019,2018-04-27,1939246,55167.48,URS CORPORATION,2018-07-03,989626,Parks & Recreation,Metro Government Capital,Contractual Services,Engineering & Architectural Services,,,,,Pass Thru Federal,,,-55167.48
528,2019,2018-06-20,1943329,4784.34,UNIVERSITY OF LOUISVILLE RESEARCH FOUNDATION INC,2018-07-03,989624,Criminal Justice Commission,Metro Government Operations,Contractual Services,Professional Services,,,,,Federally Funded,,,4784.34
529,2019,2018-04-25,1930250,420,PROFESSIONAL FENCE HOLDINGS LLC,2018-07-03,989571,Parks & Recreation,Metro Government Capital,Contractual Services,Life Safety,,,,,Metro GO Notes 17A,,,420
530,2019,2018-06-30,1949773,913363.67,SULLIVAN & COZART INC,2018-07-31,993851,Library,Metro Government Capital,Contractual Services,Payments to Contractors,,,,,Metro GO Bonds 17A,,,913363.67
531,2019,2018-06-11,1942515,21032.95,HDR ENGINEERING INC,2018-07-03,989485,Public Works & Assets Department,Metro Government Capital,Contractual Services,Road Construction/ Repair Services,,,,,Municipal Aid,,,4207.19
532,2019,2018-06-19,1941961,188.84,OFFICE DEPOT INC,2018-07-19,991699,Criminal Justice Commission,Metro Government Operations,Supplies,Office Supplies,,,,,General Fund,,,188.84
533,2019,2018-02-16,1927760,-69464.44,PACE CONTRACTING LLC,2018-08-17,996263,Public Works & Assets Department,Metro Government Capital,Contractual Services,Sidewalk Construction/ Repair Services,,,,,Municipal Aid,,,-69464.44
534,2019,2018-04-20,1950397,621.87,B&S ELECTRIC SUPPLY COMPANY INC,2018-07-31,993716,Louisville Zoo,Metro Government Capital,Contractual Services,Payments to Contractors,,,,,Capital Project Fund,,,621.87
535,2019,2018-06-22,1949851,6770,YKK AP AMERICA INC,2018-07-27,993472,Library,Metro Government Capital,Contractual Services,Payments to Contractors,,,,,Metro GO Bonds 17A,,,6770
536,2019,2018-06-22,1949705,16998.3,SEVEN COUNTIES SERVICES INC,2018-07-27,993348,Criminal Justice Commission,Metro Government Operations,Contractual Services,Professional Services,,,,,Federally Funded,,,16998.3
537,2019,2018-07-24,1949641,5000,COMSTOCK BROTHERS ELECTRIC CO LLC,2018-07-26,993027,Parks & Recreation,Metro Government Capital,Contractual Services,Other Building Maintenance/Repair Services,,,,,Metro GO Notes 17A,,,5000
538,2019,2018-05-14,1945070,50219.14,YKK AP AMERICA INC,2018-07-12,990856,Library,Metro Government Capital,Contractual Services,Payments to Contractors,,,,,Metro GO Bonds 17A,,,50219.14
539,2019,2018-04-20,1950397,621.87,B&S ELECTRIC SUPPLY COMPANY INC,2018-07-31,993716,Louisville Zoo,Metro Government Capital,Contractual Services,Payments to Contractors,,,,,Capital Project Fund,,,-318.69
540,2019,2018-06-29,1946805,9284.54,BENTLEY SYSTEMS INC,2018-07-19,991633,Technology Services Department,Metro Government Capital,Contractual Services,Consulting Services,,,,,Capital Project Fund,,,9284.54
541,2019,2018-05-15,1949695,14933.47,SEVEN COUNTIES SERVICES INC,2018-07-27,993348,Criminal Justice Commission,Metro Government Operations,Contractual Services,Professional Services,,,,,Federally Funded,,,14933.47
542,2019,2018-06-22,1944366,2597.45,DEBRA KUEMPEL INC,2018-07-06,990017,Parks & Recreation,Metro Government Capital,Contractual Services,Other Building Maintenance/Repair Services,,,,,Metro GO Notes 17A,,,2597.45
543,2019,2018-05-25,1945499,17607.86,YKK AP AMERICA INC,2018-07-12,990856,Library,Metro Government Capital,Contractual Services,Payments to Contractors,,,,,Metro GO Bonds 17A,,,17607.86
544,2019,2018-04-20,1950397,621.87,B&S ELECTRIC SUPPLY COMPANY INC,2018-07-31,993716,Louisville Zoo,Metro Government Capital,Contractual Services,Payments to Contractors,,,,,Capital Project Fund,,,318.69
545,2019,2018-06-11,1942515,21032.95,HDR ENGINEERING INC,2018-07-03,989485,Public Works & Assets Department,Metro Government Capital,Contractual Services,Road Construction/ Repair Services,,,,,Municipal Aid,,,-4207.19
546,2019,2018-06-22,1943267,5040,EIGHT ELEVEN GROUP LLC,2018-07-19,991720,Technology Services Department,Metro Government Capital,Contractual Services,Payments to Contractors,,,,,Capital Project Fund,,,5040
547,2019,2018-06-11,1943141,453.6,PSYCHOLOGICAL ASSESSMENT RESOURCES INC,2018-07-10,990444,Department of Corrections,Metro Government Operations,Contractual Services,Training & Educational Fees,,,,,General Fund,,,453.6
548,2019,2018-05-22,1936712,12087.83,DEBRA KUEMPEL INC,2018-07-06,990017,Parks & Recreation,Metro Government Capital,Contractual Services,Other Building Maintenance/Repair Services,,,,,Metro GO Notes 17A,,,12087.83
549,2019,2018-05-29,1945500,66804,YKK AP AMERICA INC,2018-07-12,990856,Library,Metro Government Capital,Contractual Services,Payments to Contractors,,,,,Metro GO Bonds 17A,,,66804
550,2019,2018-04-27,1950396,7100,B&S ELECTRIC SUPPLY COMPANY INC,2018-07-31,993716,Louisville Zoo,Metro Government Capital,Contractual Services,Payments to Contractors,,,,,Capital Project Fund,,,7100
551,2019,2018-05-08,1946165,8411.02,CERTEX-USA INC,2018-07-20,991891,Louisville Zoo,Metro Government Capital,Contractual Services,Payments to Contractors,,,,,Capital Project Fund,,,911.02
552,2019,2018-05-31,1946248,1500,CLR DESIGN INC,2018-07-20,991897,Louisville Zoo,Metro Government Capital,Contractual Services,Payments to Contractors,,,,,Capital Project Fund,,,719.77
553,2019,2018-05-31,1946245,9698.93,CLR DESIGN INC,2018-07-20,991897,Louisville Zoo,Metro Government Capital,Contractual Services,Payments to Contractors,,,,,Capital Project Fund,,,4654.01
554,2019,2018-04-27,1950827,5000,MACHINING CONCEPTS INC,2018-08-09,995104,Louisville Zoo,Metro Government Capital,Contractual Services,Payments to Contractors,,,,,Capital Project Fund,,,2500
555,2019,2018-07-08,1946866,700,MVK LTD,2018-07-27,993412,Louisville Zoo,Metro Government Capital,Contractual Services,Payments to Contractors,,,,,Capital Project Fund,,,455
556,2019,2018-06-21,1946174,12460,NOARK ENTERPRISES INC,2018-07-24,992810,Louisville Zoo,Metro Government Capital,Contractual Services,Payments to Contractors,,,,,Capital Project Fund,,,12460
557,2019,2018-06-08,1946175,6774.25,NORMAN INDUSTRIAL,2018-07-24,992811,Louisville Zoo,Metro Government Capital,Contractual Services,Payments to Contractors,,,,,Capital Project Fund,,,6774.25
558,2019,2018-06-13,1939597,33567.76,ONEAL INDUSTRIES INC,2018-07-10,990433,Louisville Zoo,Metro Government Capital,Contractual Services,Payments to Contractors,,,,,Capital Project Fund,,,20333.87
559,2019,2018-05-24,1950501,3835.2,ONEAL INDUSTRIES INC,2018-07-31,993815,Louisville Zoo,Metro Government Capital,Contractual Services,Payments to Contractors,,,,,Capital Project Fund,,,3835.2
560,2019,2018-03-13,1946213,68.39,PLUMBERS SUPPLY COMPANY,2018-07-24,992227,Louisville Zoo,Metro Government Capital,Contractual Services,Payments to Contractors,,,,,Capital Project Fund,,,68.39
561,2019,2018-06-29,1946240,184.75,PLUMBERS SUPPLY COMPANY,2018-07-24,992227,Louisville Zoo,Metro Government Capital,Contractual Services,Payments to Contractors,,,,,Capital Project Fund,,,184.75
562,2019,2018-06-29,1946378,396.83,PLUMBERS SUPPLY COMPANY,2018-07-24,992227,Louisville Zoo,Metro Government Capital,Contractual Services,Payments to Contractors,,,,,Capital Project Fund,,,396.83
563,2019,2018-04-11,1946230,1198.35,PLUMBERS SUPPLY COMPANY,2018-07-24,992227,Louisville Zoo,Metro Government Capital,Contractual Services,Payments to Contractors,,,,,Capital Project Fund,,,1198.35
564,2019,2018-03-13,1946236,991.97,PLUMBERS SUPPLY COMPANY,2018-07-24,992227,Louisville Zoo,Metro Government Capital,Contractual Services,Payments to Contractors,,,,,Capital Project Fund,,,991.97
565,2019,2018-07-12,1950671,158.47,PLUMBERS SUPPLY COMPANY,2018-08-07,994579,Louisville Zoo,Metro Government Capital,Contractual Services,Payments to Contractors,,,,,Capital Project Fund,,,158.47
566,2019,2018-07-10,1950672,492.9,PLUMBERS SUPPLY COMPANY,2018-08-07,994579,Louisville Zoo,Metro Government Capital,Contractual Services,Payments to Contractors,,,,,Capital Project Fund,,,492.9
567,2019,2018-07-10,1950672,492.9,PLUMBERS SUPPLY COMPANY,2018-08-07,994579,Louisville Zoo,Metro Government Capital,Contractual Services,Payments to Contractors,,,,,Capital Project Fund,,,-492.9
568,2019,2018-07-10,1950672,492.9,PLUMBERS SUPPLY COMPANY,2018-08-07,994579,Louisville Zoo,Metro Government Capital,Contractual Services,Payments to Contractors,,,,,Capital Project Fund,,,492.9
569,2019,2018-07-10,1950675,336.14,PLUMBERS SUPPLY COMPANY,2018-08-07,994579,Louisville Zoo,Metro Government Capital,Contractual Services,Payments to Contractors,,,,,Capital Project Fund,,,336.14
570,2019,2018-07-10,1950821,6.96,PLUMBERS SUPPLY COMPANY,2018-08-07,994579,Louisville Zoo,Metro Government Capital,Contractual Services,Payments to Contractors,,,,,Capital Project Fund,,,6.96
571,2019,2018-06-14,1941082,11346.5,RLD FABRICATING COMPANY INC,2018-07-10,990460,Louisville Zoo,Metro Government Capital,Contractual Services,Payments to Contractors,,,,,Capital Project Fund,,,11346.5
572,2019,2018-06-04,1947029,25541.5,ROBERT HARAGAN INC,2018-08-14,995692,Louisville Zoo,Metro Government Capital,Contractual Services,Payments to Contractors,,,,,Capital Project Fund,,,25541.5
573,2019,2018-06-27,1946238,354098.75,WHITTENBERG CONSTRUCTION COMPANY,2018-07-24,992870,Louisville Zoo,Metro Government Capital,Contractual Services,Payments to Contractors,,,,,Capital Project Fund,,,278435.51
574,2019,2018-07-12,1947163,10416.98,WOOD ENVIRONMENTAL & INFRASTRUCTURE SOLUTION INC,2018-07-27,993470,Louisville Zoo,Metro Government Capital,Contractual Services,Payments to Contractors,,,,,Capital Project Fund,,,6771.04
575,2019,2018-03-22,1941175,39446.22,C3 CONSTRUCTION,2018-07-05,989772,Public Works & Assets Department,Metro Government Capital,Contractual Services,Sidewalk Construction/ Repair Services,,,,,Capital Project Fund,,,7500
576,2019,2018-03-12,1906192,3800,EZ CONSTRUCTION COMPANY INC,2018-07-03,989457,Public Works & Assets Department,Metro Government Capital,Contractual Services,Sidewalk Construction/ Repair Services,,,,,Capital Project Fund,,,3072.72
577,2019,2018-05-29,1938252,650,EZ CONSTRUCTION COMPANY INC,2018-07-05,989791,Public Works & Assets Department,Metro Government Capital,Contractual Services,Sidewalk Construction/ Repair Services,,,,,Capital Project Fund,,,650
578,2019,2018-05-29,1938266,26873.29,EZ CONSTRUCTION COMPANY INC,2018-07-03,989457,Public Works & Assets Department,Metro Government Capital,Contractual Services,Sidewalk Construction/ Repair Services,,,,,Capital Project Fund,,,-26873.29
579,2019,2018-05-29,1938266,26873.29,EZ CONSTRUCTION COMPANY INC,2018-07-03,989457,Public Works & Assets Department,Metro Government Capital,Contractual Services,Sidewalk Construction/ Repair Services,,,,,Capital Project Fund,,,22879.93
580,2019,2018-05-29,1938266,26873.29,EZ CONSTRUCTION COMPANY INC,2018-07-03,989457,Public Works & Assets Department,Metro Government Capital,Contractual Services,Sidewalk Construction/ Repair Services,,,,,Capital Project Fund,,,26873.29
581,2019,2018-03-12,1915074,17100,EZ CONSTRUCTION COMPANY INC,2018-07-05,989791,Public Works & Assets Department,Metro Government Capital,Contractual Services,Sidewalk Construction/ Repair Services,,,,,Capital Project Fund,,,126.71
582,2019,2018-03-12,1915074,17100,EZ CONSTRUCTION COMPANY INC,2018-07-05,989791,Public Works & Assets Department,Metro Government Capital,Contractual Services,Sidewalk Construction/ Repair Services,,,,,Capital Project Fund,,,16973.39
583,2019,2018-03-12,1915074,17100,EZ CONSTRUCTION COMPANY INC,2018-07-05,989791,Public Works & Assets Department,Metro Government Capital,Contractual Services,Sidewalk Construction/ Repair Services,,,,,Capital Project Fund,,,-16973.39
584,2019,2018-03-12,1915074,17100,EZ CONSTRUCTION COMPANY INC,2018-07-05,989791,Public Works & Assets Department,Metro Government Capital,Contractual Services,Sidewalk Construction/ Repair Services,,,,,Capital Project Fund,,,-126.71
585,2019,2018-03-12,1915074,17100,EZ CONSTRUCTION COMPANY INC,2018-07-05,989791,Public Works & Assets Department,Metro Government Capital,Contractual Services,Sidewalk Construction/ Repair Services,,,,,Capital Project Fund,,,126.71
586,2019,2018-03-12,1915074,17100,EZ CONSTRUCTION COMPANY INC,2018-07-05,989791,Public Works & Assets Department,Metro Government Capital,Contractual Services,Sidewalk Construction/ Repair Services,,,,,Capital Project Fund,,,16973.39
587,2019,2018-03-12,1915074,17100,EZ CONSTRUCTION COMPANY INC,2018-07-05,989791,Public Works & Assets Department,Metro Government Capital,Contractual Services,Sidewalk Construction/ Repair Services,,,,,Capital Project Fund,,,-16973.39
588,2019,2018-03-12,1915074,17100,EZ CONSTRUCTION COMPANY INC,2018-07-05,989791,Public Works & Assets Department,Metro Government Capital,Contractual Services,Sidewalk Construction/ Repair Services,,,,,Capital Project Fund,,,-126.71
589,2019,2018-03-12,1915074,17100,EZ CONSTRUCTION COMPANY INC,2018-07-05,989791,Public Works & Assets Department,Metro Government Capital,Contractual Services,Sidewalk Construction/ Repair Services,,,,,Capital Project Fund,,,126.71
590,2019,2018-03-12,1915074,17100,EZ CONSTRUCTION COMPANY INC,2018-07-05,989791,Public Works & Assets Department,Metro Government Capital,Contractual Services,Sidewalk Construction/ Repair Services,,,,,Capital Project Fund,,,16973.39
591,2019,2018-03-12,1915074,17100,EZ CONSTRUCTION COMPANY INC,2018-07-05,989791,Public Works & Assets Department,Metro Government Capital,Contractual Services,Sidewalk Construction/ Repair Services,,,,,Capital Project Fund,,,-16973.39
592,2019,2018-03-12,1915074,17100,EZ CONSTRUCTION COMPANY INC,2018-07-05,989791,Public Works & Assets Department,Metro Government Capital,Contractual Services,Sidewalk Construction/ Repair Services,,,,,Capital Project Fund,,,16973.29
593,2019,2018-06-22,1944259,920,EZ CONSTRUCTION COMPANY INC,2018-07-26,993050,Public Works & Assets Department,Metro Government Capital,Contractual Services,Sidewalk Construction/ Repair Services,,,,,Capital Project Fund,,,460
594,2019,2018-06-11,1942515,21032.95,HDR ENGINEERING INC,2018-07-03,989485,Public Works & Assets Department,Metro Government Capital,Contractual Services,Road Construction/ Repair Services,,,,,Municipal Aid,,,16826.36
595,2019,2018-06-22,1943267,5040,EIGHT ELEVEN GROUP LLC,2018-07-19,991720,Technology Services Department,Metro Government Capital,Contractual Services,Payments to Contractors,,,,,Capital Project Fund,,,-5040
596,2019,2018-06-11,1943143,1500,PSYCHOLOGICAL ASSESSMENT RESOURCES INC,2018-07-26,993162,Department of Corrections,Metro Government Operations,Contractual Services,Training & Educational Fees,,,,,General Fund,,,1500
597,2019,2018-06-01,1949138,40000,FERNO WASHINGTON INC,2018-07-26,993056,Office of Management & Budget,Metro Government Capital,Equipment/Capital Outlay,Ambulances,,,,,Metro GO Notes 16A,,,22423.88
598,2019,2018-06-01,1945200,-161.33,VERIZON WIRELESS,2018-07-17,991437,Public Health & Wellness,Metro Government Operations,Contractual Services,Air Cards,,,,,General Fund,,,-161.33
599,2019,2018-05-21,1934931,3368.56,DEBRA KUEMPEL INC,2018-07-03,989434,Parks & Recreation,Metro Government Capital,Contractual Services,Other Building Maintenance/Repair Services,,,,,Metro GO Notes 17A,,,3368.56
600,2019,2018-02-14,1949417,196312,LIFE LINE EMERGENCY VEHICLES INC,2018-07-26,993113,Office of Management & Budget,Metro Government Capital,Equipment/Capital Outlay,Ambulances,,,,,Metro GO Notes 16A,,,34325.12
601,2019,2018-06-08,1938972,4536,EIGHT ELEVEN GROUP LLC,2018-07-19,991720,Technology Services Department,Metro Government Capital,Contractual Services,Payments to Contractors,,,,,Capital Project Fund,,,4300
602,2019,2018-01-12,1887138,1237.69,VERIZON WIRELESS,2018-07-27,993466,Public Health & Wellness,Metro Government Operations,Contractual Services,Air Cards,,,,,General Fund,,,1237.69
603,2019,2018-06-30,1947364,355266.74,LOUISVILLE PAVING COMPANY INC,2018-07-19,991686,Public Works & Assets Department,Metro Government Capital,Contractual Services,Road Construction/ Repair Services,,,,,Municipal Aid,,,71053.35
604,2019,2018-06-27,1945242,2153,PREMIER GRAPHICS OF LOUISVILLE INC,2018-07-23,992148,Office of Management & Budget,Metro Government Capital,Equipment/Capital Outlay,Ambulances,,,,,Metro GO Notes 16A,,,2153
605,2019,2018-05-21,1934934,2973.27,DEBRA KUEMPEL INC,2018-07-06,990017,Parks & Recreation,Metro Government Capital,Contractual Services,Other Building Maintenance/Repair Services,,,,,Metro GO Notes 17A,,,2973.27
606,2019,2018-06-08,1938972,4536,EIGHT ELEVEN GROUP LLC,2018-07-19,991720,Technology Services Department,Metro Government Capital,Contractual Services,Payments to Contractors,,,,,Capital Project Fund,,,-4300
607,2019,2018-01-12,1887138,1237.69,VERIZON WIRELESS,2018-07-27,993466,Public Health & Wellness,Metro Government Operations,Contractual Services,Air Cards,,,,,General Fund,,,1237.69
608,2019,2018-06-11,1942515,21032.95,HDR ENGINEERING INC,2018-07-03,989485,Public Works & Assets Department,Metro Government Capital,Contractual Services,Road Construction/ Repair Services,,,,,Pass Thru Federal,,,4206.59
609,2019,2018-06-08,1937667,29790.1,PAUL EQUIPMENT COMPANY,2018-07-03,989564,Office of Management & Budget,Metro Government Capital,Equipment/Capital Outlay,Cars, General Transportation Use,,,,,Metro GO 2015A - Tax Exempt Bond,,
610,2019,2018-01-23,1896378,6697.65,DEBRA KUEMPEL INC,2018-07-13,990961,Parks & Recreation,Metro Government Capital,Contractual Services,Other Building Maintenance/Repair Services,,,,,Metro GO Notes 17A,,,6697.65
611,2019,2018-06-08,1938972,4536,EIGHT ELEVEN GROUP LLC,2018-07-19,991720,Technology Services Department,Metro Government Capital,Contractual Services,Payments to Contractors,,,,,Capital Project Fund,,,4536
612,2019,2018-01-12,1887138,1237.69,VERIZON WIRELESS,2018-07-27,993466,Public Health & Wellness,Metro Government Operations,Contractual Services,Air Cards,,,,,General Fund,,,-1237.69
613,2019,2018-06-11,1942515,21032.95,HDR ENGINEERING INC,2018-07-03,989485,Public Works & Assets Department,Metro Government Capital,Contractual Services,Road Construction/ Repair Services,,,,,Pass Thru Federal,,,16825.76
614,2019,2017-10-31,1859115,14000,WEBER GROUP INC,2018-08-09,995172,Louisville Zoo,Metro Government Capital,Contractual Services,Payments to Contractors,,,,,Capital Project Fund,,,682.77
615,2019,2018-05-17,1947727,1202.31,A L HANSEN PAINT & METAL SHOP INC,2018-07-19,991775,Public Works & Assets Department,Metro Government Capital,Equipment/Capital Outlay,Ambulances,,,,,Metro GO Notes 17A,,,1202.31
616,2019,2018-06-01,1949138,40000,FERNO WASHINGTON INC,2018-07-26,993056,Public Works & Assets Department,Metro Government Capital,Equipment/Capital Outlay,Ambulances,,,,,Metro GO Notes 17A,,,17576.12
617,2019,2018-06-29,1948109,3051.15,FIRE & SPECIALTY EQUIPMENT REPAIR CO,2018-07-26,993058,Public Works & Assets Department,Metro Government Capital,Equipment/Capital Outlay,Ambulances,,,,,Metro GO Notes 17A,,,3051.15
618,2019,2018-06-06,1937569,6750.24,FIRE & SPECIALTY EQUIPMENT REPAIR CO,2018-07-03,989462,Public Works & Assets Department,Metro Government Capital,Equipment/Capital Outlay,Ambulances,,,,,Metro GO Notes 17A,,,6750.24
619,2019,2018-06-12,1941193,150,LIFE LINE EMERGENCY VEHICLES INC,2018-07-17,991329,Public Works & Assets Department,Metro Government Capital,Equipment/Capital Outlay,Ambulances,,,,,Metro GO Notes 17A,,,150
620,2019,2018-02-14,1949417,196312,LIFE LINE EMERGENCY VEHICLES INC,2018-07-26,993113,Public Works & Assets Department,Metro Government Capital,Equipment/Capital Outlay,Ambulances,,,,,Metro GO Notes 17A,,,112031.88
621,2019,2018-02-14,1949417,196312,LIFE LINE EMERGENCY VEHICLES INC,2018-07-26,993113,Public Works & Assets Department,Metro Government Capital,Equipment/Capital Outlay,Ambulances,,,,,Metro GO Notes 17A,,,49955
622,2019,2018-06-21,1943142,4757.21,A L HANSEN PAINT & METAL SHOP INC,2018-07-17,991103,Public Works & Assets Department,Metro Government Capital,Equipment/Capital Outlay,Fire Apparatus Trucks,,,,,Metro GO Notes 17A,,,4757.21
623,2019,2018-05-10,1944607,13605,ADVENTURE MOTOR SPORTS LLC,2018-07-10,990290,Public Works & Assets Department,Metro Government Capital,Equipment/Capital Outlay,Fire Apparatus Trucks,,,,,Metro GO Notes 17A,,,13605
624,2019,2018-07-10,1946585,50933.16,PAUL MILLER FORD INC DBA PAUL MILLER FORD MAZDA,2018-07-17,991361,Public Works & Assets Department,Metro Government Capital,Equipment/Capital Outlay,Cars, Police & Emergency Use,,,,,Metro GO Notes 17A,,
625,2019,2018-07-03,1949220,800,COOPER PROPERTY MAINTENANCE AND DEVELOPMENT,2018-07-26,993029,Housing & Family Services,Metro Government Capital,Contractual Services,Rehab Renovation/Improvements,,,,,CDBG Year 2010,,,800
626,2019,2018-06-06,1941373,999.4,NATIONAL ENVIRONMENTAL CONTRACTING INC,2018-07-13,990999,Develop Louisville,Metro Government Capital,Contractual Services,Asbestos Removal,,,,,CDBG 2016,,,999.4
627,2019,2018-06-25,1942992,4800,AESTHETIC INDUSTRIAL CONTRACTING INC,2018-07-06,989995,Develop Louisville,Metro Government Capital,Contractual Services,Demolition Services,,,,,CDBG 2016,,,4800
628,2019,2018-06-25,1943787,3808,AESTHETIC INDUSTRIAL CONTRACTING INC,2018-07-06,989995,Develop Louisville,Metro Government Capital,Contractual Services,Demolition Services,,,,,CDBG 2016,,,3808
629,2019,2018-06-18,1943846,8368,AESTHETIC INDUSTRIAL CONTRACTING INC,2018-07-06,989995,Develop Louisville,Metro Government Capital,Contractual Services,Demolition Services,,,,,CDBG 2016,,,8368
630,2019,2018-06-25,1942989,4464,AESTHETIC INDUSTRIAL CONTRACTING INC,2018-07-26,992977,Develop Louisville,Metro Government Capital,Contractual Services,Demolition Services,,,,,CDBG 2016,,,4464
631,2019,2017-12-27,1948032,6524,AESTHETIC INDUSTRIAL CONTRACTING INC,2018-07-26,992977,Develop Louisville,Metro Government Capital,Contractual Services,Demolition Services,,,,,CDBG 2016,,,6524
632,2019,2018-06-28,1950113,500,CONCEPTS21 PLLC,2018-07-27,993355,Develop Louisville,Metro Government Capital,Contractual Services,Demolition Services,,,,,CDBG 2016,,,500
633,2019,2018-06-30,1946410,17685,BADGETT CONSTRUCTORS LLC,2018-07-17,991246,Youth Detention Services,Metro Government Capital,Contractual Services,Other Building Maintenance/Repair Services,,,,,Capital Project Fund,,,17685
634,2019,2018-07-10,1948698,29500,RIVERSIDE PAVING & CONTRACTING CO INC,2018-08-07,994692,Parks & Recreation,Metro Government Capital,Contractual Services,Payments to Contractors,,,,,Capital Project Fund,,,14750
635,2019,2018-06-08,1945605,16290,TERRY A GINKINS,2018-07-12,990832,Develop Louisville,Metro Government Capital,Contractual Services,Rehab Renovation/Improvements,,,,,CDBG 2015,,,16290
636,2019,2018-07-17,1948040,3500,J MICHAEL JONES & ASSOCIATES,2018-07-23,992116,Parks & Recreation,Metro Government Capital,Contractual Services,Rehab Renovation/Improvements,,,,,MISC SPECIAL REVENUE,,,3500
637,2019,2018-06-20,1944346,405.08,WILCOX AUTO PARTS INC-USE SUPPLIER # 198730,2018-07-24,992871,Emergency Management Agency/MetroSafe,Metro Government Capital,Equipment/Capital Outlay,Miscellaneous Equipment,,,,,Capital Project Fund,,,405.08
638,2019,2018-06-20,1944327,101.27,WILCOX AUTO PARTS INC-USE SUPPLIER # 198730,2018-07-24,992871,Emergency Management Agency/MetroSafe,Metro Government Capital,Equipment/Capital Outlay,Miscellaneous Equipment,,,,,Capital Project Fund,,,101.27
639,2019,2018-06-20,1942300,405.08,WILCOX AUTO PARTS INC-USE SUPPLIER # 198730,2018-07-17,991446,Emergency Management Agency/MetroSafe,Metro Government Capital,Equipment/Capital Outlay,Miscellaneous Equipment,,,,,Capital Project Fund,,,405.08
640,2019,2018-06-08,1946271,2910,ADVANCE READY MIX CONCRETE INC,2018-07-13,990935,Louisville Zoo,Metro Government Capital,Contractual Services,Payments to Contractors,,,,,Capital Project Fund,,,2910
641,2019,2018-06-14,1946353,1674,ADVANCE READY MIX CONCRETE INC,2018-07-13,990935,Louisville Zoo,Metro Government Capital,Contractual Services,Payments to Contractors,,,,,Capital Project Fund,,,1674
642,2019,2018-06-27,1949041,930,ADVANCE READY MIX CONCRETE INC,2018-07-24,992710,Louisville Zoo,Metro Government Capital,Contractual Services,Payments to Contractors,,,,,Capital Project Fund,,,930
643,2019,2018-05-01,1946399,186,ADVANCE READY MIX CONCRETE INC,2018-07-20,991874,Louisville Zoo,Metro Government Capital,Contractual Services,Payments to Contractors,,,,,Capital Project Fund,,,186
644,2019,2018-06-12,1946417,279,ADVANCE READY MIX CONCRETE INC,2018-07-20,991874,Louisville Zoo,Metro Government Capital,Contractual Services,Payments to Contractors,,,,,Capital Project Fund,,,279
645,2019,2018-04-30,1946414,2790,ADVANCE READY MIX CONCRETE INC,2018-07-20,991874,Louisville Zoo,Metro Government Capital,Contractual Services,Payments to Contractors,,,,,Capital Project Fund,,,2790
646,2019,2018-05-03,1946331,465,ADVANCE READY MIX CONCRETE INC,2018-07-20,991874,Louisville Zoo,Metro Government Capital,Contractual Services,Payments to Contractors,,,,,Capital Project Fund,,,465
647,2019,2018-06-18,1946342,533.5,ADVANCE READY MIX CONCRETE INC,2018-07-20,991874,Louisville Zoo,Metro Government Capital,Contractual Services,Payments to Contractors,,,,,Capital Project Fund,,,533.5
648,2019,2018-06-19,1946252,837,ADVANCE READY MIX CONCRETE INC,2018-07-17,991215,Louisville Zoo,Metro Government Capital,Contractual Services,Payments to Contractors,,,,,Capital Project Fund,,,837
649,2019,2018-06-21,1950390,558,ADVANCE READY MIX CONCRETE INC,2018-07-31,993699,Louisville Zoo,Metro Government Capital,Contractual Services,Payments to Contractors,,,,,Capital Project Fund,,,558
650,2019,2018-06-27,1950378,8015.64,B&S ELECTRIC SUPPLY COMPANY INC,2018-07-31,993716,Louisville Zoo,Metro Government Capital,Contractual Services,Payments to Contractors,,,,,Capital Project Fund,,,3301.35
651,2019,2018-06-12,1942210,1237.77,VERIZON WIRELESS,2018-07-26,993221,Public Health & Wellness,Metro Government Operations,Contractual Services,Air Cards,,,,,General Fund,,,1237.77
652,2019,2018-01-23,1896378,6697.65,DEBRA KUEMPEL INC,2018-07-13,990961,Parks & Recreation,Metro Government Capital,Contractual Services,Other Building Maintenance/Repair Services,,,,,Metro GO Notes 17A,,,-6697.65
653,2019,2018-05-01,1931548,13.11,VERIZON WIRELESS,2018-07-26,993221,Public Health & Wellness,Metro Government Operations,Contractual Services,Cellular Telephone Services,,,,,General Fund,,,13.11
654,2019,2018-01-31,1890088,1180.45,DEBRA KUEMPEL INC,2018-07-13,990961,Parks & Recreation,Metro Government Capital,Contractual Services,Other Building Maintenance/Repair Services,,,,,Metro GO Notes 17A,,,1180.45
655,2019,2018-06-11,1942515,21032.95,HDR ENGINEERING INC,2018-07-03,989485,Public Works & Assets Department,Metro Government Capital,Contractual Services,Road Construction/ Repair Services,,,,,Pass Thru Federal,,,-16825.76
656,2019,2018-06-24,1943434,1069.96,BEE LINE COURIER SERVICE INC,2018-07-26,993001,Public Health & Wellness,Metro Government Operations,Contractual Services,Courier Service,,,,,General Fund,,,1069.96
657,2019,2018-06-10,1939178,1069.96,BEE LINE COURIER SERVICE INC,2018-07-26,993001,Public Health & Wellness,Metro Government Operations,Contractual Services,Courier Service,,,,,General Fund,,,1069.96
658,2019,2018-06-17,1940542,1069.96,BEE LINE COURIER SERVICE INC,2018-07-26,993001,Public Health & Wellness,Metro Government Operations,Contractual Services,Courier Service,,,,,General Fund,,,1069.96
659,2019,2018-06-03,1944969,874.12,BEE LINE COURIER SERVICE INC,2018-07-26,993001,Public Health & Wellness,Metro Government Operations,Contractual Services,Courier Service,,,,,General Fund,,,874.12
660,2019,2018-07-01,1944648,1069.96,BEE LINE COURIER SERVICE INC,2018-07-26,993001,Public Health & Wellness,Metro Government Operations,Contractual Services,Courier Service,,,,,General Fund,,,1069.96
661,2019,2018-05-06,1945436,1069.96,BEE LINE COURIER SERVICE INC,2018-07-17,991249,Public Health & Wellness,Metro Government Operations,Contractual Services,Courier Service,,,,,General Fund,,,1069.96
662,2019,2018-05-04,1949631,251.9,TIME WARNER CABLE ENTERPRISES LLC,2018-07-27,993450,Public Health & Wellness,Metro Government Operations,Contractual Services,Data Communication Services,,,,,General Fund,,,251.9
663,2019,2018-04-04,1923743,251.9,TIME WARNER CABLE ENTERPRISES LLC,2018-07-27,993450,Public Health & Wellness,Metro Government Operations,Contractual Services,Data Communication Services,,,,,General Fund,,,251.9
664,2019,2018-06-23,1943005,145.1,VERIZON WIRELESS,2018-07-31,993881,Public Health & Wellness,Metro Government Operations,Contractual Services,Data Communication Services,,,,,General Fund,,,145.1
665,2019,2018-07-26,1950076,274.39,BENNETT KNOX,2018-07-27,993473,Public Health & Wellness,Metro Government Operations,Contractual Services,Grant Payments to Contractors,,,,,Misc Agreements,,,274.39
666,2019,2018-06-14,1941535,46704.73,CCS GROUP HOLDINGS LLC,2018-07-19,991638,Public Health & Wellness,Metro Government Operations,Contractual Services,Medical Services,,,,,General Fund,,,46704.73
667,2019,2018-06-14,1941533,610285.92,CCS GROUP HOLDINGS LLC,2018-07-26,993019,Public Health & Wellness,Metro Government Operations,Contractual Services,Medical Services,,,,,General Fund,,,387373.42
668,2019,2018-06-14,1941533,610285.92,CCS GROUP HOLDINGS LLC,2018-07-26,993019,Public Health & Wellness,Metro Government Operations,Contractual Services,Medical Services,,,,,General Fund,,,222912.5
669,2019,2018-06-01,1943838,2002.5,DAROB INC,2018-07-26,993036,Public Health & Wellness,Metro Government Operations,Contractual Services,Miscellaneous Services,,,,,General Fund,,,-2002.5
670,2019,2018-06-01,1943838,2002.5,DAROB INC,2018-07-26,993036,Public Health & Wellness,Metro Government Operations,Contractual Services,Miscellaneous Services,,,,,General Fund,,,2002.5
671,2019,2018-06-01,1943838,2002.5,DAROB INC,2018-07-26,993036,Public Health & Wellness,Metro Government Operations,Contractual Services,Miscellaneous Services,,,,,General Fund,,,2002.5
672,2019,2018-03-01,1929844,170,MEDIA LIBRARY INC,2018-07-27,993406,Public Health & Wellness,Metro Government Operations,Contractual Services,Subscriptions,,,,,General Fund,,,70
673,2019,2018-03-01,1929844,170,MEDIA LIBRARY INC,2018-07-27,993406,Public Health & Wellness,Metro Government Operations,Contractual Services,Subscriptions,,,,,General Fund,,,100
674,2019,2018-07-26,1949906,2,BRIANA FORSYTHE,2018-07-27,993279,Public Health & Wellness,Metro Government Operations,Contractual Services,Travel, Local Travel Costs,,,,,General Fund,,
675,2019,2018-02-20,1899925,43.01,BRIANA FORSYTHE,2018-07-17,991138,Public Health & Wellness,Metro Government Operations,Contractual Services,Travel, Local Travel Costs,,,,,General Fund,,
676,2019,2018-06-27,1942592,40,DANIELLE WAGNER,2018-07-26,992930,Public Health & Wellness,Metro Government Operations,Contractual Services,Travel, Local Travel Costs,,,,,General Fund,,
677,2019,2018-04-13,1923464,5040,EIGHT ELEVEN GROUP LLC,2018-07-19,991720,Technology Services Department,Metro Government Capital,Contractual Services,Payments to Contractors,,,,,Capital Project Fund,,,5040
678,2019,2018-06-22,1942689,251.24,AMAZON COM,2018-07-26,992988,Public Health & Wellness,Metro Government Operations,Supplies,Office Equipment,,,,,General Fund,,,251.24
679,2019,2018-06-23,1942726,33.1,AMAZON COM,2018-07-26,992988,Public Health & Wellness,Metro Government Operations,Supplies,Office Supplies,,,,,General Fund,,,33.1
680,2019,2018-06-18,1941998,1505.92,OFFICE DEPOT INC,2018-07-12,990808,Public Health & Wellness,Metro Government Operations,Supplies,Office Supplies,,,,,General Fund,,,5.92
681,2019,2018-06-18,1941998,1505.92,OFFICE DEPOT INC,2018-07-12,990808,Public Health & Wellness,Metro Government Operations,Supplies,Office Supplies,,,,,General Fund,,,1500
682,2019,2018-06-22,1943923,22,PARKWAY SOUTHERN CO,2018-07-26,993154,Public Health & Wellness,Metro Government Operations,Supplies,Office Supplies,,,,,General Fund,,,22
683,2019,2018-04-24,1943442,1020.02,TWI SERVICES INC,2018-07-26,993206,Public Health & Wellness,Metro Government Operations,Supplies,Office Supplies,,,,,General Fund,,,1020.02
684,2019,2018-04-27,1943444,635.8,TWI SERVICES INC,2018-07-26,993206,Public Health & Wellness,Metro Government Operations,Supplies,Office Supplies,,,,,General Fund,,,635.8
685,2019,2018-04-27,1943445,252.4,TWI SERVICES INC,2018-07-26,993206,Public Health & Wellness,Metro Government Operations,Supplies,Office Supplies,,,,,General Fund,,,252.4
686,2019,2018-01-30,1943349,644.58,AMERICAN LAB SERVICE INC,2018-07-05,989763,Public Health & Wellness,Metro Government Operations,Contractual Services,Medical Equipment Repair,,,,,General Fund,,,644.58
687,2019,2018-02-27,1943419,2605.48,CEPHEID,2018-07-05,989775,Public Health & Wellness,Metro Government Operations,Contractual Services,Medical Equipment Repair,,,,,General Fund,,,2605.48
688,2019,2018-06-06,1944609,38308.86,UNIVERSITY OF LOUISVILLE,2018-07-10,990502,Public Health & Wellness,Metro Government Operations,Contractual Services,Payments to Contractors,,,,,General Fund,,,38308.86
689,2019,2018-01-31,1890088,1180.45,DEBRA KUEMPEL INC,2018-07-13,990961,Parks & Recreation,Metro Government Capital,Contractual Services,Other Building Maintenance/Repair Services,,,,,Metro GO Notes 17A,,,-1180.45
690,2019,2018-06-30,1947364,355266.74,LOUISVILLE PAVING COMPANY INC,2018-07-19,991686,Public Works & Assets Department,Metro Government Capital,Contractual Services,Road Construction/ Repair Services,,,,,Pass Thru Federal,,,284213.39
691,2019,2018-06-28,1944952,52,AUDREY L COTTEN,2018-07-12,990649,Economic Development,Metro Government Capital,Contractual Services,Other Project Expenditure,,,,,New Market Tax Credit,,,13
692,2019,2018-07-03,1945632,2229.03,RECREONICS INC,2018-07-31,993830,Parks & Recreation,Metro Government Capital,Contractual Services,Other Building Maintenance/Repair Services,,,,,Metro GO Notes 17A,,,2229.03
693,2019,2018-03-22,1941175,39446.22,C3 CONSTRUCTION,2018-07-05,989772,Economic Development,Metro Government Capital,Contractual Services,Payments to Contractors,,,,,General Obligation Bonds 2009,,,18281.39
694,2019,2018-05-22,1937683,5382.65,WALKER MECHANICAL CONTRACTORS INC,2018-07-06,990094,Parks & Recreation,Metro Government Capital,Contractual Services,Other Building Maintenance/Repair Services,,,,,Metro GO Notes 17A,,,5382.65
695,2019,2018-06-28,1944952,52,AUDREY L COTTEN,2018-07-12,990649,Economic Development,Metro Government Capital,Contractual Services,Other Project Expenditure,,,,,New Market Tax Credit,,,4
696,2019,2018-06-04,1946660,158827.5,ALLTERRAIN PAVING AND CONSTRUCTION LLC,2018-07-17,991219,Parks & Recreation,Metro Government Capital,Contractual Services,Rehab Renovation/Improvements,,,,,Capital Project Fund,,,8918.84
697,2019,2018-05-22,1937690,2570.71,WALKER MECHANICAL CONTRACTORS INC,2018-07-06,990094,Parks & Recreation,Metro Government Capital,Contractual Services,Other Building Maintenance/Repair Services,,,,,Metro GO Notes 17A,,,2507.71
698,2019,2018-06-28,1945029,26,JEFFERSON COUNTY CLERK,2018-07-10,990256,Economic Development,Metro Government Capital,Contractual Services,Other Project Expenditure,,,,,New Market Tax Credit,,,26
699,2019,2018-06-12,1942519,789.88,VERIZON WIRELESS,2018-07-03,989630,Develop Louisville,Metro Government Operations,Contractual Services,Cellular Telephone Services,,,,,General Fund,,,40.01
700,2019,2018-06-25,1946833,348.41,BAKER AND TAYLOR INC,2018-07-20,991885,Library,Metro Government Capital,Supplies,Books,,,,,Capital Project Fund,,,348.41
701,2019,2018-05-22,1937690,2570.71,WALKER MECHANICAL CONTRACTORS INC,2018-07-06,990094,Parks & Recreation,Metro Government Capital,Contractual Services,Other Building Maintenance/Repair Services,,,,,Metro GO Notes 17A,,,-2507.71
702,2019,2018-06-25,1945808,612.28,BAKER AND TAYLOR INC,2018-07-17,991247,Library,Metro Government Capital,Supplies,Books,,,,,Capital Project Fund,,,612.28
703,2019,2018-07-10,1949362,3040.56,KONICA MINOLTA BUSINESS SOLUTIONS,2018-07-26,993256,Develop Louisville,Metro Government Operations,Contractual Services,Equipment Rental,,,,,General Fund,,,824.62
704,2019,2018-06-26,1946415,961.27,BAKER AND TAYLOR INC,2018-07-17,991247,Library,Metro Government Capital,Supplies,Books,,,,,Capital Project Fund,,,961.27
705,2019,2018-05-22,1937690,2570.71,WALKER MECHANICAL CONTRACTORS INC,2018-07-06,990094,Parks & Recreation,Metro Government Capital,Contractual Services,Other Building Maintenance/Repair Services,,,,,Metro GO Notes 17A,,,2507.71
706,2019,2018-06-08,1938909,3382.4,KONICA MINOLTA BUSINESS SOLUTIONS,2018-07-12,990641,Develop Louisville,Metro Government Operations,Contractual Services,Equipment Rental,,,,,General Fund,,,1218.81
707,2019,2018-06-22,1946205,915.38,BAKER AND TAYLOR INC,2018-07-17,991247,Library,Metro Government Capital,Supplies,Books,,,,,Capital Project Fund,,,915.38
708,2019,2018-05-22,1937690,2570.71,WALKER MECHANICAL CONTRACTORS INC,2018-07-06,990094,Parks & Recreation,Metro Government Capital,Contractual Services,Other Building Maintenance/Repair Services,,,,,Metro GO Notes 17A,,,-2507.71
709,2019,2018-07-25,1950116,38112,HDR ENGINEERING INC,2018-07-27,993380,Develop Louisville,Metro Government Operations,Contractual Services,Professional Services,,,,,General Fund,,,13112
710,2019,2018-06-25,1946225,283.46,BAKER AND TAYLOR INC,2018-07-17,991247,Library,Metro Government Capital,Supplies,Books,,,,,Capital Project Fund,,,283.46
711,2019,2018-05-22,1937690,2570.71,WALKER MECHANICAL CONTRACTORS INC,2018-07-06,990094,Parks & Recreation,Metro Government Capital,Contractual Services,Other Building Maintenance/Repair Services,,,,,Metro GO Notes 17A,,,2570.71
712,2019,2018-06-28,1942762,50000,KIPDA,2018-07-03,989517,Develop Louisville,Metro Government Operations,Contractual Services,Professional Services,,,,,General Fund,,,50000
713,2019,2018-06-28,1946229,53.68,BAKER AND TAYLOR INC,2018-07-17,991247,Library,Metro Government Capital,Supplies,Books,,,,,Capital Project Fund,,,53.68
714,2019,2018-06-05,1939770,6538.61,WALKER MECHANICAL CONTRACTORS INC,2018-07-03,989634,Parks & Recreation,Metro Government Capital,Contractual Services,Other Building Maintenance/Repair Services,,,,,Metro GO Notes 17A,,,6538.61
715,2019,2018-06-01,1936724,145,MEDIA LIBRARY INC,2018-07-06,990054,Develop Louisville,Metro Government Operations,Contractual Services,Professional Services,,,,,General Fund,,,145
716,2019,2018-06-27,1946231,34.5,BAKER AND TAYLOR INC,2018-07-17,991247,Library,Metro Government Capital,Supplies,Books,,,,,Capital Project Fund,,,34.5
717,2019,2018-05-22,1935522,4333.66,WALKER MECHANICAL CONTRACTORS INC,2018-07-31,993883,Parks & Recreation,Metro Government Capital,Contractual Services,Other Building Maintenance/Repair Services,,,,,Metro GO Notes 17A,,,4333.66
718,2019,2018-07-13,1950929,5452.57,C CESARIO MEDICAL CONSULTING LLC,2018-08-02,994150,Department of Corrections,Metro Government Operations,Contractual Services,Consulting Services,,,,,General Fund,,,5452.57
719,2019,2018-06-25,1945360,809.89,BAKER AND TAYLOR INC,2018-07-17,991247,Library,Metro Government Capital,Supplies,Books,,,,,Capital Project Fund,,,809.89
720,2019,2018-06-12,1941066,4035.69,WALKER MECHANICAL CONTRACTORS INC,2018-07-10,990513,Parks & Recreation,Metro Government Capital,Contractual Services,Other Building Maintenance/Repair Services,,,,,Metro GO Notes 17A,,,4035.69
721,2019,2018-03-05,1941273,2834,US HEALTHWORKS MEDICAL GROUP OF KY INC,2018-07-12,990647,Department of Corrections,Metro Government Operations,Contractual Services,Lab Service Miscellaneous,,,,,General Fund,,,1250
722,2019,2018-03-05,1941273,2834,US HEALTHWORKS MEDICAL GROUP OF KY INC,2018-07-12,990647,Department of Corrections,Metro Government Operations,Contractual Services,Lab Service Miscellaneous,,,,,General Fund,,,1584
723,2019,2018-06-02,1941189,94.02,UNITED PARCEL SERVICE,2018-07-06,990084,Department of Corrections,Metro Government Operations,Contractual Services,Mail & Shipping,,,,,General Fund,,,94.02
724,2019,2018-06-02,1941189,94.02,UNITED PARCEL SERVICE,2018-07-06,990084,Department of Corrections,Metro Government Operations,Contractual Services,Mail & Shipping,,,,,General Fund,,,11.04
725,2019,2018-06-02,1941189,94.02,UNITED PARCEL SERVICE,2018-07-06,990084,Department of Corrections,Metro Government Operations,Contractual Services,Mail & Shipping,,,,,General Fund,,,-94.02
726,2019,2018-06-16,1943734,9.23,UNITED PARCEL SERVICE,2018-07-24,992859,Department of Corrections,Metro Government Operations,Contractual Services,Mail & Shipping,,,,,General Fund,,,-9.23
727,2019,2018-06-16,1943734,9.23,UNITED PARCEL SERVICE,2018-07-24,992859,Department of Corrections,Metro Government Operations,Contractual Services,Mail & Shipping,,,,,General Fund,,,-9.23
728,2019,2018-06-16,1943734,9.23,UNITED PARCEL SERVICE,2018-07-24,992859,Department of Corrections,Metro Government Operations,Contractual Services,Mail & Shipping,,,,,General Fund,,,9.23
729,2019,2018-06-16,1943734,9.23,UNITED PARCEL SERVICE,2018-07-24,992859,Department of Corrections,Metro Government Operations,Contractual Services,Mail & Shipping,,,,,General Fund,,,9.23
730,2019,2018-06-23,1945780,86.9,UNITED PARCEL SERVICE,2018-07-23,992177,Department of Corrections,Metro Government Operations,Contractual Services,Mail & Shipping,,,,,General Fund,,,86.9
731,2019,2018-06-30,1948081,13.18,UNITED PARCEL SERVICE,2018-07-26,993211,Department of Corrections,Metro Government Operations,Contractual Services,Mail & Shipping,,,,,General Fund,,,6.61
732,2019,2018-06-30,1948081,13.18,UNITED PARCEL SERVICE,2018-07-26,993211,Department of Corrections,Metro Government Operations,Contractual Services,Mail & Shipping,,,,,General Fund,,,6.57
733,2019,2018-07-05,1946133,590.8,AHEAD HUMAN RESOURCES,2018-07-26,992978,Department of Corrections,Metro Government Operations,Contractual Services,Professional Services,,,,,General Fund,,,590.8
734,2019,2018-06-20,1942149,472.64,AHEAD HUMAN RESOURCES,2018-07-10,990292,Department of Corrections,Metro Government Operations,Contractual Services,Professional Services,,,,,General Fund,,,472.64
735,2019,2018-05-24,1941376,432,TRINITY SERVICES GROUP INC DBA TRINITY,2018-07-10,990493,Department of Corrections,Metro Government Operations,Supplies,Food,,,,,General Fund,,,329.16
736,2019,2018-05-24,1941376,432,TRINITY SERVICES GROUP INC DBA TRINITY,2018-07-10,990493,Department of Corrections,Metro Government Operations,Supplies,Food,,,,,General Fund,,,102.84
737,2019,2018-07-11,1946050,757.98,DONALD GRIFFIN,2018-07-12,990858,Department of Corrections,Metro Government Operations,Contractual Services,Travel, Out of Town,,,,,Federally Funded,,
738,2019,2018-03-12,1942012,5942.8,SEVEN COUNTIES SERVICES INC,2018-07-03,989416,Criminal Justice Commission,Metro Government Operations,Contractual Services,Professional Services,,,,,Federally Funded,,,5942.8
739,2019,2018-06-22,1949703,1642.66,SEVEN COUNTIES SERVICES INC,2018-07-27,993348,Criminal Justice Commission,Metro Government Operations,Contractual Services,Professional Services,,,,,Federally Funded,,,1642.66
740,2019,2018-06-21,1941686,2115.93,SEVEN COUNTIES SERVICES INC,2018-07-20,991890,Criminal Justice Commission,Metro Government Operations,Contractual Services,Professional Services,,,,,Federally Funded,,,2115.93
741,2019,2018-03-07,1942566,1515.73,KONICA MINOLTA BUSINESS SOLUTIONS,2018-07-10,990235,Louisville Metro Council,Metro Government Operations,Contractual Services,Equipment Rental,,,,,General Fund,,,1515.73
742,2019,2018-05-31,1942804,878,QUICKCAPTION,2018-07-10,990446,Louisville Metro Council,Metro Government Operations,Contractual Services,Professional Services,,,,,General Fund,,,878
743,2019,2018-06-28,1942800,14298.08,RICKETTS LAW OFFICES PLLC,2018-07-10,990457,Louisville Metro Council,Metro Government Operations,Contractual Services,Professional Services,,,,,General Fund,,,-5291.25
744,2019,2018-06-28,1942800,14298.08,RICKETTS LAW OFFICES PLLC,2018-07-10,990457,Louisville Metro Council,Metro Government Operations,Contractual Services,Professional Services,,,,,General Fund,,,14298.08
745,2019,2018-06-28,1942800,14298.08,RICKETTS LAW OFFICES PLLC,2018-07-10,990457,Louisville Metro Council,Metro Government Operations,Contractual Services,Professional Services,,,,,General Fund,,,5291.25
746,2019,2018-02-06,1949259,96.6,CDW LLC,2018-07-26,993020,Louisville Metro Council,Metro Government Operations,Equipment/Capital Outlay,Computer Hardware,,,,,General Fund,,,96.6
747,2019,2018-06-11,1940289,200,AXXIS LEASING INC,2018-07-06,990005,Louisville Metro Council,Metro Government Operations,Equipment/Capital Outlay,Furniture and Office Equipment,,,,,General Fund,,,200
748,2019,2018-06-26,1942632,18.5,BEST STAMP & SEAL CO INC,2018-07-23,992053,Louisville Metro Council,Metro Government Operations,Supplies,Office Supplies,,,,,General Fund,,,18.5
749,2019,2018-06-25,1945502,1290.05,BAKER AND TAYLOR INC,2018-07-17,991247,Library,Metro Government Capital,Supplies,Books,,,,,Capital Project Fund,,,1290.05
750,2019,2018-06-27,1945735,1215.96,BAKER AND TAYLOR INC,2018-07-17,991247,Library,Metro Government Capital,Supplies,Books,,,,,Capital Project Fund,,,1215.96
751,2019,2018-06-12,1941067,1203.84,WALKER MECHANICAL CONTRACTORS INC,2018-07-10,990513,Parks & Recreation,Metro Government Capital,Contractual Services,Other Building Maintenance/Repair Services,,,,,Metro GO Notes 17A,,,1203.84
752,2019,2018-06-29,1947764,384.8,BAKER AND TAYLOR INC,2018-07-20,991885,Library,Metro Government Capital,Supplies,Books,,,,,Capital Project Fund,,,384.8
753,2019,2018-07-02,1947765,532.21,BAKER AND TAYLOR INC,2018-07-20,991885,Library,Metro Government Capital,Supplies,Books,,,,,Capital Project Fund,,,532.21
754,2019,2018-06-12,1941069,1235.04,WALKER MECHANICAL CONTRACTORS INC,2018-07-10,990513,Parks & Recreation,Metro Government Capital,Contractual Services,Other Building Maintenance/Repair Services,,,,,Metro GO Notes 17A,,,1235.04
755,2019,2018-06-29,1947766,475.31,BAKER AND TAYLOR INC,2018-07-20,991885,Library,Metro Government Capital,Supplies,Books,,,,,Capital Project Fund,,,475.31
756,2019,2018-05-08,1949645,399,WOOD ENVIRONMENTAL & INFRASTRUCTURE SOLUTION INC,2018-07-27,993470,Parks & Recreation,Metro Government Capital,Contractual Services,Other Building Maintenance/Repair Services,,,,,Metro GO Notes 17A,,,399
757,2019,2018-07-02,1947767,696.86,BAKER AND TAYLOR INC,2018-07-20,991885,Library,Metro Government Capital,Supplies,Books,,,,,Capital Project Fund,,,696.86
758,2019,2018-03-28,1946180,556.8,WOOD ENVIRONMENTAL & INFRASTRUCTURE SOLUTION INC,2018-07-17,991447,Parks & Recreation,Metro Government Capital,Contractual Services,Other Building Maintenance/Repair Services,,,,,Metro GO Notes 17A,,,556.8
759,2019,2018-07-02,1947768,76.58,BAKER AND TAYLOR INC,2018-07-20,991885,Library,Metro Government Capital,Supplies,Books,,,,,Capital Project Fund,,,76.58
760,2019,2018-06-11,1940532,969,WOOD ENVIRONMENTAL & INFRASTRUCTURE SOLUTION INC,2018-07-03,989639,Parks & Recreation,Metro Government Capital,Contractual Services,Other Building Maintenance/Repair Services,,,,,Metro GO Notes 17A,,,969
761,2019,2018-07-02,1947769,168.68,BAKER AND TAYLOR INC,2018-07-20,991885,Library,Metro Government Capital,Supplies,Books,,,,,Capital Project Fund,,,168.68
762,2019,2018-06-28,1947748,3410.66,TRAFFIC AND PARKING CONTROL CO INC,2018-07-27,993452,Public Works & Assets Department,Metro Government Capital,Supplies,Traffic/Street Signs Hardware Supplies,,,,,County Road Aid,,,3410.66
763,2019,2018-06-29,1947770,356.58,BAKER AND TAYLOR INC,2018-07-20,991885,Library,Metro Government Capital,Supplies,Books,,,,,Capital Project Fund,,,356.58
764,2019,2018-06-28,1944824,374.9,CONSOLIDATED ELECTRICAL DISTRIBUTORS,2018-07-24,992207,Public Works & Assets Department,Metro Government Capital,Supplies,Traffic/Street Signs Hardware Supplies,,,,,Municipal Aid,,,374.9
765,2019,2018-07-01,1946832,5470,PALADIN INC,2018-07-20,991943,Library,Metro Government Capital,Contractual Services,Engineering & Architectural Services,,,,,Capital Project Fund,,,699.5
766,2019,2018-06-25,1943198,21438.58,JRA INC,2018-07-03,989506,Library,Metro Government Capital,Contractual Services,Engineering & Architectural Services,,,,,Metro GO Bonds 17A,,,8.58
767,2019,2018-06-25,1943198,21438.58,JRA INC,2018-07-03,989506,Library,Metro Government Capital,Contractual Services,Engineering & Architectural Services,,,,,Metro GO Bonds 17A,,,21430
768,2019,2018-07-01,1946832,5470,PALADIN INC,2018-07-20,991943,Library,Metro Government Capital,Contractual Services,Payments to Contractors,,,,,Capital Project Fund,,,490
769,2019,2018-07-01,1946832,5470,PALADIN INC,2018-07-20,991943,Library,Metro Government Capital,Contractual Services,Payments to Contractors,,,,,Capital Project Fund,,,-490
770,2019,2018-05-01,1945202,6115.4,BRIDGESTONE AMERICAS INC,2018-07-12,990723,Library,Metro Government Capital,Contractual Services,Payments to Contractors,,,,,Metro GO Bonds 17A,,,6115.4
771,2019,2018-04-27,1945203,34722.28,BRIDGESTONE AMERICAS INC,2018-07-12,990723,Library,Metro Government Capital,Contractual Services,Payments to Contractors,,,,,Metro GO Bonds 17A,,,34722.28
772,2019,2018-04-27,1945204,8986.6,BRIDGESTONE AMERICAS INC,2018-07-12,990723,Library,Metro Government Capital,Contractual Services,Payments to Contractors,,,,,Metro GO Bonds 17A,,,8986.6
773,2019,2018-04-27,1945205,8986.6,BRIDGESTONE AMERICAS INC,2018-07-12,990723,Library,Metro Government Capital,Contractual Services,Payments to Contractors,,,,,Metro GO Bonds 17A,,,8986.6
774,2019,2018-04-27,1945206,8986.6,BRIDGESTONE AMERICAS INC,2018-07-12,990723,Library,Metro Government Capital,Contractual Services,Payments to Contractors,,,,,Metro GO Bonds 17A,,,8986.6
775,2019,2018-04-27,1945208,4153,BRIDGESTONE AMERICAS INC,2018-07-12,990723,Library,Metro Government Capital,Contractual Services,Payments to Contractors,,,,,Metro GO Bonds 17A,,,4153
776,2019,2018-04-27,1945209,8986.6,BRIDGESTONE AMERICAS INC,2018-07-12,990723,Library,Metro Government Capital,Contractual Services,Payments to Contractors,,,,,Metro GO Bonds 17A,,,8986.6
777,2019,2018-04-30,1945092,8986.6,BRIDGESTONE AMERICAS INC,2018-07-12,990723,Library,Metro Government Capital,Contractual Services,Payments to Contractors,,,,,Metro GO Bonds 17A,,,-8988.6
778,2019,2018-04-30,1945092,8986.6,BRIDGESTONE AMERICAS INC,2018-07-12,990723,Library,Metro Government Capital,Contractual Services,Payments to Contractors,,,,,Metro GO Bonds 17A,,,8986.6
779,2019,2018-04-30,1945092,8986.6,BRIDGESTONE AMERICAS INC,2018-07-12,990723,Library,Metro Government Capital,Contractual Services,Payments to Contractors,,,,,Metro GO Bonds 17A,,,8988.6
780,2019,2018-04-27,1945508,3158.6,BRIDGESTONE AMERICAS INC,2018-07-12,990723,Library,Metro Government Capital,Contractual Services,Payments to Contractors,,,,,Metro GO Bonds 17A,,,3158.6
781,2019,2018-04-26,1944785,38000,OAKLAND METAL SALES INC,2018-07-06,990097,Library,Metro Government Capital,Contractual Services,Payments to Contractors,,,,,Metro GO Bonds 17A,,,38000
782,2019,2018-07-01,1946832,5470,PALADIN INC,2018-07-20,991943,Library,Metro Government Capital,Contractual Services,Payments to Contractors,,,,,Metro GO Bonds 17A,,,4770.5
783,2019,2018-06-21,1943982,2688.9,CONSOLIDATED ELECTRICAL DISTRIBUTORS,2018-07-17,991110,Public Works & Assets Department,Metro Government Capital,Supplies,Traffic/Street Signs Hardware Supplies,,,,,Municipal Aid,,,2688.9
784,2019,2018-05-17,1934916,112.95,REIS ENVIRONMENTAL INC,2018-07-31,993831,Public Works & Assets Department,Metro Government Capital,Supplies,Traffic/Street Signs Hardware Supplies,,,,,Municipal Aid,,,53
785,2019,2018-05-17,1934916,112.95,REIS ENVIRONMENTAL INC,2018-07-31,993831,Public Works & Assets Department,Metro Government Capital,Supplies,Traffic/Street Signs Hardware Supplies,,,,,Municipal Aid,,,59.95
786,2019,2018-06-14,1941003,3239.5,SAF TI CO INC,2018-07-10,990466,Public Works & Assets Department,Metro Government Capital,Supplies,Traffic/Street Signs Hardware Supplies,,,,,Municipal Aid,,,3239.5
787,2019,2018-06-22,1943841,19800,SAF TI CO INC,2018-07-17,991386,Public Works & Assets Department,Metro Government Capital,Supplies,Traffic/Street Signs Hardware Supplies,,,,,Municipal Aid,,,19800
788,2019,2018-06-20,1943719,1315,SPECIALTY PARTS DISTRIBUTORS,2018-07-03,989595,Public Works & Assets Department,Metro Government Capital,Supplies,Traffic/Street Signs Hardware Supplies,,,,,Municipal Aid,,,1315
789,2019,2018-06-20,1943719,1315,SPECIALTY PARTS DISTRIBUTORS,2018-07-03,989595,Public Works & Assets Department,Metro Government Capital,Supplies,Traffic/Street Signs Hardware Supplies,,,,,Municipal Aid,,,-1315
790,2019,2018-06-20,1943719,1315,SPECIALTY PARTS DISTRIBUTORS,2018-07-03,989595,Public Works & Assets Department,Metro Government Capital,Supplies,Traffic/Street Signs Hardware Supplies,,,,,Municipal Aid,,,1315
791,2019,2018-07-03,1945862,594,TOTAL TOOL SUPPLY INC,2018-07-12,990838,Public Works & Assets Department,Metro Government Capital,Supplies,Traffic/Street Signs Hardware Supplies,,,,,Municipal Aid,,,594
792,2019,2018-06-25,1944299,86.88,TOTAL TOOL SUPPLY INC,2018-07-20,991955,Public Works & Assets Department,Metro Government Capital,Supplies,Traffic/Street Signs Hardware Supplies,,,,,Municipal Aid,,,86.88
793,2019,2018-06-25,1944772,400,TOTAL TOOL SUPPLY INC,2018-07-20,991955,Public Works & Assets Department,Metro Government Capital,Supplies,Traffic/Street Signs Hardware Supplies,,,,,Municipal Aid,,,400
794,2019,2018-06-07,1947357,50350,TRAFFIC AND PARKING CONTROL CO INC,2018-07-19,991726,Public Works & Assets Department,Metro Government Capital,Supplies,Traffic/Street Signs Hardware Supplies,,,,,Municipal Aid,,,29841
795,2019,2018-06-07,1947358,6194,TRAFFIC AND PARKING CONTROL CO INC,2018-07-27,993452,Public Works & Assets Department,Metro Government Capital,Supplies,Traffic/Street Signs Hardware Supplies,,,,,Municipal Aid,,,6194
796,2019,2018-05-18,1944039,43245,RIVERSIDE PAVING & CONTRACTING CO INC,2018-07-05,989834,Parks & Recreation,Metro Government Capital,Contractual Services,Payments to Contractors,,,,,Metro GO Bonds 17A,,,42000
797,2019,2018-05-18,1944039,43245,RIVERSIDE PAVING & CONTRACTING CO INC,2018-07-05,989834,Parks & Recreation,Metro Government Capital,Contractual Services,Payments to Contractors,,,,,Metro GO Bonds 17A,,,1245
798,2019,2017-11-30,1946447,33776,PACE CONTRACTING LLC,2018-07-17,991360,Parks & Recreation,Metro Government Capital,Contractual Services,Payments to Contractors,,,,,Capital Project Fund,,,4488.31
799,2019,2017-11-30,1946447,33776,PACE CONTRACTING LLC,2018-07-17,991360,Parks & Recreation,Metro Government Capital,Contractual Services,Payments to Contractors,,,,,Capital Project Fund,,,-4488.31
800,2019,2017-11-30,1946447,33776,PACE CONTRACTING LLC,2018-07-17,991360,Parks & Recreation,Metro Government Capital,Contractual Services,Payments to Contractors,,,,,Capital Project Fund,,,4488.31
801,2019,2018-03-28,1943135,1090,MPC PROMOTIONS,2018-07-13,990892,Louisville Metro Police Department,Metro Government Operations,Supplies,Clothing/Uniform supplies,,,,,General Fund,,,1090
802,2019,2018-03-28,1943130,1250,MPC PROMOTIONS,2018-08-02,994291,Louisville Metro Police Department,Metro Government Operations,Supplies,Clothing/Uniform supplies,,,,,General Fund,,,1250
803,2019,2018-05-29,1937702,55.4,RUMPKE OF KENTUCKY INC,2018-07-13,991013,Louisville Metro Police Department,Metro Government Operations,Supplies,Sanitation Operation Supplies,,,,,General Fund,,,50.81
804,2019,2018-05-29,1937702,55.4,RUMPKE OF KENTUCKY INC,2018-07-13,991013,Louisville Metro Police Department,Metro Government Operations,Supplies,Sanitation Operation Supplies,,,,,General Fund,,,4.59
805,2019,2018-06-21,1945077,1050,CDW LLC,2018-07-19,991639,Louisville Zoo,Metro Government Operations,Contractual Services,Equipment Maintenance/Repair Services,,,,,General Fund,,,1050
806,2019,2018-05-31,1947626,19.62,AMERICAN WELDING & GAS INC,2018-07-26,992991,Public Health & Wellness,Metro Government Operations,Contractual Services,Pressurized Tank Services,,,,,General Fund,,,11.81
807,2019,2018-06-27,1943591,39200,MOTOROLA SOLUTIONS INC,2018-07-23,992142,Louisville Metro Police Department,Metro Government Operations,Contractual Services,2 way Radio/Pager Services,,,,,General Fund,,,1000
808,2019,2018-04-01,1921403,544,CUSTOM DATA PROCESSING INC,2018-07-03,989429,Public Health & Wellness,Metro Government Operations,Contractual Services,Landfill/Sanitation Services,,,,,General Fund,,,544
809,2019,2018-06-26,1942102,50.6,LOGAN LAVELLE HUNT INSURANCE AGENCY LLC,2018-07-03,989344,Louisville Metro Police Department,Metro Government Operations,Contractual Services,Dues,,,,,General Fund,,,50.6
810,2019,2018-06-20,1941621,3150,CDW LLC,2018-07-19,991639,Louisville Zoo,Metro Government Operations,Contractual Services,Equipment Maintenance/Repair Services,,,,,General Fund,,,3150
811,2019,2018-06-12,1945381,240.06,VERIZON WIRELESS,2018-07-27,993466,Louisville Zoo,Metro Government Operations,Contractual Services,Equipment Maintenance/Repair Services,,,,,General Fund,,,240.06
812,2019,2018-06-08,1938001,1685.4,KONICA MINOLTA BUSINESS SOLUTIONS,2018-08-31,998868,Louisville Zoo,Metro Government Operations,Contractual Services,Equipment Rental,,,,,General Fund,,,-1095.23
813,2019,2018-06-08,1938001,1685.4,KONICA MINOLTA BUSINESS SOLUTIONS,2018-08-31,998868,Louisville Zoo,Metro Government Operations,Contractual Services,Equipment Rental,,,,,General Fund,,,1095.23
814,2019,2018-06-08,1938001,1685.4,KONICA MINOLTA BUSINESS SOLUTIONS,2018-08-31,998868,Louisville Zoo,Metro Government Operations,Contractual Services,Equipment Rental,,,,,General Fund,,,103.86
815,2019,2018-06-08,1938001,1685.4,KONICA MINOLTA BUSINESS SOLUTIONS,2018-08-31,998868,Louisville Zoo,Metro Government Operations,Contractual Services,Equipment Rental,,,,,General Fund,,,-103.86
816,2019,2018-06-08,1938001,1685.4,KONICA MINOLTA BUSINESS SOLUTIONS,2018-08-31,998868,Louisville Zoo,Metro Government Operations,Contractual Services,Equipment Rental,,,,,General Fund,,,1095.23
817,2019,2018-06-08,1938001,1685.4,KONICA MINOLTA BUSINESS SOLUTIONS,2018-08-31,998868,Louisville Zoo,Metro Government Operations,Contractual Services,Equipment Rental,,,,,General Fund,,,103.86
818,2019,2018-07-10,1947150,1979.1,KONICA MINOLTA BUSINESS SOLUTIONS,2018-08-30,998522,Louisville Zoo,Metro Government Operations,Contractual Services,Equipment Rental,,,,,General Fund,,,-118.05
819,2019,2018-07-10,1947150,1979.1,KONICA MINOLTA BUSINESS SOLUTIONS,2018-08-30,998522,Louisville Zoo,Metro Government Operations,Contractual Services,Equipment Rental,,,,,General Fund,,,118.05
820,2019,2018-07-10,1947150,1979.1,KONICA MINOLTA BUSINESS SOLUTIONS,2018-08-30,998522,Louisville Zoo,Metro Government Operations,Contractual Services,Equipment Rental,,,,,General Fund,,,-1412.06
821,2019,2018-07-10,1947150,1979.1,KONICA MINOLTA BUSINESS SOLUTIONS,2018-08-30,998522,Louisville Zoo,Metro Government Operations,Contractual Services,Equipment Rental,,,,,General Fund,,,1412.06
822,2019,2018-07-10,1947150,1979.1,KONICA MINOLTA BUSINESS SOLUTIONS,2018-08-30,998522,Louisville Zoo,Metro Government Operations,Contractual Services,Equipment Rental,,,,,General Fund,,,1412.06
823,2019,2018-07-10,1947150,1979.1,KONICA MINOLTA BUSINESS SOLUTIONS,2018-08-30,998522,Louisville Zoo,Metro Government Operations,Contractual Services,Equipment Rental,,,,,General Fund,,,118.05
824,2019,2018-07-09,1945649,475,CHEST MEDICINE ASSOCIATES PSC,2018-07-13,990955,Louisville Zoo,Metro Government Operations,Contractual Services,Professional Services,,,,,General Fund,,,475
825,2019,2018-07-13,1949348,465,KENTUCKYONE HEALTH,2018-08-07,994661,Louisville Zoo,Metro Government Operations,Contractual Services,Professional Services,,,,,General Fund,,,465
826,2019,2018-06-13,1939528,1202.7,CDW LLC,2018-07-19,991639,Louisville Zoo,Metro Government Operations,Equipment/Capital Outlay,Computer Hardware,,,,,General Fund,,,1202.7
827,2019,2018-06-20,1941863,1223.28,CDW LLC,2018-07-19,991639,Louisville Zoo,Metro Government Operations,Equipment/Capital Outlay,Computer Hardware,,,,,General Fund,,,1223.28
828,2019,2018-06-19,1941385,301.9,CDW LLC,2018-07-19,991639,Louisville Zoo,Metro Government Operations,Equipment/Capital Outlay,Computer Software,,,,,General Fund,,,301.9
829,2019,2018-06-30,1947614,197.55,MARY BUCHTER,2018-07-20,991971,Louisville Zoo,Metro Government Operations,Supplies,Office Supplies,,,,,General Fund,,,10.47
830,2019,2018-06-30,1947614,197.55,MARY BUCHTER,2018-07-20,991971,Louisville Zoo,Metro Government Operations,Supplies,Office Supplies,,,,,General Fund,,,8
831,2019,2018-06-12,1939667,159.99,OFFICE DEPOT INC,2018-07-12,990808,Louisville Zoo,Metro Government Operations,Supplies,Office Supplies,,,,,General Fund,,,159.99
832,2019,2018-06-28,1945530,3266.15,LSC COMMUNICATIONS INC,2018-07-23,992131,Louisville Zoo,Metro Government Operations,Supplies,Printing/Copier/Reproduction Supplies,,,,,General Fund,,,24.33
833,2019,2018-06-29,1945364,30,PARKWAY SOUTHERN CO,2018-07-13,991004,Louisville Metro Police Department,Metro Government Operations,Supplies,Office Supplies,,,,,General Fund,,,30
834,2019,2018-06-20,1943151,66,MPC PROMOTIONS,2018-07-03,989329,Louisville Metro Police Department,Metro Government Operations,Supplies,Clothing/Uniform supplies,,,,,General Fund,,,66
835,2019,2018-06-30,1947614,197.55,MARY BUCHTER,2018-07-20,991971,Louisville Zoo,Metro Government Operations,Supplies,Public & Community Relations Supplies,,,,,General Fund,,,14.84
836,2019,2018-06-15,1939291,1372.22,HLP INC,2018-07-10,990385,Metro Animal Services,Metro Government Operations,Contractual Services,Computer Software Licenses,,,,,General Fund,,,1372.22
837,2019,2018-07-15,1947979,1130.69,HLP INC,2018-08-09,995077,Metro Animal Services,Metro Government Operations,Contractual Services,Computer Software Licenses,,,,,General Fund,,,1130.69
838,2019,2018-07-06,1944866,178.29,ADAM HAMILTON,2018-07-10,990251,Metro Animal Services,Metro Government Operations,Contractual Services,Mail & Shipping,,,,,General Fund,,,13.4
839,2019,2018-04-06,1950097,100,SHIVELY ANIMAL CLINIC,2018-07-27,993440,Metro Animal Services,Metro Government Operations,Contractual Services,Spay/Neuter,,,,,Misc Agreements,,,100
840,2019,2018-06-28,1944460,1407.07,UNITED MAIL LLC,2018-07-06,990083,Metro Animal Services,Metro Government Operations,Contractual Services,Mail & Shipping,,,,,General Fund,,,1186.58
841,2019,2018-06-28,1944460,1407.07,UNITED MAIL LLC,2018-07-06,990083,Metro Animal Services,Metro Government Operations,Contractual Services,Mail & Shipping,,,,,General Fund,,,220.49
842,2019,2018-07-02,1946386,75,INTEGRATED PEST MANAGEMENT SERVICES LLC,2018-07-17,991314,Metro Animal Services,Metro Government Operations,Contractual Services,Miscellaneous Services,,,,,General Fund,,,75
843,2019,2018-05-04,1929402,1076.48,KONICA MINOLTA BUSINESS SOLUTIONS,2018-07-19,991783,Metro Animal Services,Metro Government Operations,Contractual Services,Printing/Copying,,,,,General Fund,,,1076.48
844,2019,2018-07-01,1946725,737.06,XEROX CORPORATION,2018-07-19,991742,Metro Animal Services,Metro Government Operations,Contractual Services,Printing/Copying,,,,,General Fund,,,737.06
845,2019,2018-06-09,1942262,1973.37,XEROX CORPORATION,2018-07-10,990521,Metro Animal Services,Metro Government Operations,Contractual Services,Printing/Copying,,,,,General Fund,,,1973.37
846,2019,2018-06-06,1942269,1289.87,XEROX CORPORATION,2018-07-10,990521,Metro Animal Services,Metro Government Operations,Contractual Services,Printing/Copying,,,,,General Fund,,,1289.87
847,2019,2018-06-21,1942223,322.5,CURRIE SOUND & SECURITY SYSTEMS INC,2018-07-06,990016,Metro Animal Services,Metro Government Operations,Contractual Services,Security Services,,,,,General Fund,,,245
848,2019,2018-06-21,1942223,322.5,CURRIE SOUND & SECURITY SYSTEMS INC,2018-07-06,990016,Metro Animal Services,Metro Government Operations,Contractual Services,Security Services,,,,,General Fund,,,77.5
849,2019,2018-06-26,1945358,100,FAIRLEIGH PET CENTER,2018-07-17,991289,Metro Animal Services,Metro Government Operations,Contractual Services,Spay/Neuter,,,,,Misc Agreements,,,100
850,2019,2018-06-29,1945385,100,FAIRLEIGH PET CENTER,2018-07-24,992755,Metro Animal Services,Metro Government Operations,Contractual Services,Spay/Neuter,,,,,Misc Agreements,,,100
851,2019,2018-06-05,1943244,145,H PATRICK KING JR PSC,2018-07-03,989482,Metro Animal Services,Metro Government Operations,Contractual Services,Spay/Neuter,,,,,Misc Agreements,,,100
852,2019,2018-06-15,1942237,100,JOHNSON ANIMAL CLINIC INC,2018-07-03,989504,Metro Animal Services,Metro Government Operations,Contractual Services,Spay/Neuter,,,,,Misc Agreements,,,100
853,2019,2018-06-15,1943254,76,RAYMOND T SCHAAF,2018-07-10,990451,Metro Animal Services,Metro Government Operations,Contractual Services,Spay/Neuter,,,,,Misc Agreements,,,76
854,2019,2018-06-13,1940903,176.45,SHIVELY ANIMAL CLINIC,2018-07-10,990472,Metro Animal Services,Metro Government Operations,Contractual Services,Spay/Neuter,,,,,Misc Agreements,,,176.45
855,2019,2018-06-08,1940914,100,SHIVELY ANIMAL CLINIC,2018-07-03,989591,Metro Animal Services,Metro Government Operations,Contractual Services,Spay/Neuter,,,,,Misc Agreements,,,100
856,2019,2018-06-05,1940920,100,SHIVELY ANIMAL CLINIC,2018-07-03,989591,Metro Animal Services,Metro Government Operations,Contractual Services,Spay/Neuter,,,,,Misc Agreements,,,100
857,2019,2018-06-19,1943253,100,SHIVELY ANIMAL CLINIC,2018-07-17,991392,Metro Animal Services,Metro Government Operations,Contractual Services,Spay/Neuter,,,,,Misc Agreements,,,100
858,2019,2018-04-01,1921405,287.1,CUSTOM DATA PROCESSING INC,2018-07-03,989429,Public Health & Wellness,Metro Government Operations,Contractual Services,Landfill/Sanitation Services,,,,,General Fund,,,287.1
859,2019,2018-06-12,1943153,46078.15,VERIZON WIRELESS,2018-07-03,989630,Louisville Metro Police Department,Metro Government Operations,Contractual Services,Air Cards,,,,,General Fund,,,46078.5
860,2019,2018-04-30,1929081,18.99,AMERICAN WELDING & GAS INC,2018-07-26,992991,Public Health & Wellness,Metro Government Operations,Contractual Services,Pressurized Tank Services,,,,,General Fund,,,11.43
861,2019,2018-06-07,1940916,97.5,UNITED VETERINARY CARE BLOCKER IN,2018-07-03,989472,Metro Animal Services,Metro Government Operations,Contractual Services,Spay/Neuter,,,,,Misc Agreements,,,97.5
862,2019,2018-05-22,1943024,76,CROWN TROPHY OF LOUISVILLE,2018-07-03,989428,Louisville Metro Police Department,Metro Government Operations,Supplies,Public & Community Relations Supplies,,,,,General Fund,,,76
863,2019,2018-06-12,1943768,98.33,MATTHEW BENDER & COMPANY INC,2018-07-10,990416,Louisville Metro Police Department,Metro Government Operations,Contractual Services,Dues,,,,,General Fund,,,98.33
864,2019,2018-06-11,1947156,123.83,BLUEGRASS LAWN & GARDEN,2018-07-23,992057,Public Health & Wellness,Metro Government Operations,Contractual Services,Miscellaneous Services,,,,,General Fund,,,123.83
865,2019,2018-06-19,1946266,97.08,KROGER CO,2018-07-17,991327,Louisville Metro Police Department,Metro Government Operations,Supplies,Public & Community Relations Supplies,,,,,General Fund,,,97.08
866,2019,2018-02-20,1899925,43.01,BRIANA FORSYTHE,2018-07-17,991138,Public Health & Wellness,Metro Government Operations,Contractual Services,Travel, Local Travel Costs,,,,,General Fund,,
867,2019,2018-06-28,1943249,100,UNITED VETERINARY CARE BLOCKER IN,2018-07-23,992100,Metro Animal Services,Metro Government Operations,Contractual Services,Spay/Neuter,,,,,Misc Agreements,,,100
868,2019,2018-06-12,1943153,46078.15,VERIZON WIRELESS,2018-07-03,989630,Louisville Metro Police Department,Metro Government Operations,Contractual Services,Air Cards,,,,,General Fund,,,46078.15
869,2019,2018-06-22,1945574,791.52,SNELLING MEDICAL STAFFING LLC,2018-08-31,998822,Public Health & Wellness,Metro Government Operations,Contractual Services,Miscellaneous Services,,,,,General Fund,,,-791.52
870,2019,2018-06-13,1939398,1942.35,MPC PROMOTIONS,2018-07-10,990243,Louisville Metro Police Department,Metro Government Operations,Supplies,Clothing/Uniform supplies,,,,,General Fund,,,1942.35
871,2019,2018-06-25,1943007,1931.96,VWR INTERNATIONAL INC,2018-07-26,993272,Public Health & Wellness,Metro Government Operations,Equipment/Capital Outlay,Laboratory Equipment,,,,,General Fund,,,1931.96
872,2019,2018-06-08,1943656,16744.49,KONICA MINOLTA BUSINESS SOLUTIONS,2018-07-03,989326,Louisville Metro Police Department,Metro Government Operations,Contractual Services,Equipment Rental,,,,,General Fund,,,271.46
873,2019,2018-06-12,1943153,46078.15,VERIZON WIRELESS,2018-07-03,989630,Louisville Metro Police Department,Metro Government Operations,Contractual Services,Air Cards,,,,,General Fund,,,-46078.5
874,2019,2018-06-19,1943619,618.46,MATTHEW BENDER & COMPANY INC,2018-07-17,991342,Louisville Metro Police Department,Metro Government Operations,Contractual Services,Dues,,,,,General Fund,,,618.46
875,2019,2018-06-22,1945574,791.52,SNELLING MEDICAL STAFFING LLC,2018-08-31,998822,Public Health & Wellness,Metro Government Operations,Contractual Services,Miscellaneous Services,,,,,General Fund,,,791.52
876,2019,2018-06-21,1943185,16806.05,MPC PROMOTIONS,2018-07-17,991119,Louisville Metro Police Department,Metro Government Operations,Supplies,Clothing/Uniform supplies,,,,,General Fund,,,16806.05
877,2019,2018-07-04,1946714,3898.5,KENTUCKY HUMANE SOCIETY,2018-07-17,991111,Metro Animal Services,Metro Government Operations,Contractual Services,Spay/Neuter,,,,,State Fund,,,1000
878,2019,2018-06-18,1947287,1275,ALERE NORTH AMERICA,2018-07-23,992037,Public Health & Wellness,Metro Government Operations,Supplies,Lab Supplies,,,,,General Fund,,,1275
879,2019,2018-07-10,1946491,18147.28,KONICA MINOLTA BUSINESS SOLUTIONS,2018-07-24,992215,Louisville Metro Police Department,Metro Government Operations,Contractual Services,Equipment Rental,,,,,General Fund,,,644.58
880,2019,2018-06-23,1946761,17900.1,VERIZON WIRELESS,2018-07-19,991737,Louisville Metro Police Department,Metro Government Operations,Contractual Services,Cellular Telephone Services,,,,,General Fund,,,17900.1
881,2019,2018-06-28,1945279,76.08,MATTHEW BENDER & COMPANY INC,2018-07-23,992135,Louisville Metro Police Department,Metro Government Operations,Contractual Services,Dues,,,,,General Fund,,,76.08
882,2019,2018-06-27,1943786,330,CDW LLC,2018-08-02,994153,Public Health & Wellness,Metro Government Operations,Contractual Services,Payments to Contractors,,,,,General Fund,,,-330
883,2019,2018-06-21,1943188,33,MPC PROMOTIONS,2018-07-17,991119,Louisville Metro Police Department,Metro Government Operations,Supplies,Clothing/Uniform supplies,,,,,General Fund,,,33
884,2019,2018-07-04,1946714,3898.5,KENTUCKY HUMANE SOCIETY,2018-07-17,991111,Metro Animal Services,Metro Government Operations,Contractual Services,Spay/Neuter,,,,,State Fund,,,109
885,2019,2018-06-22,1943849,63.25,FISHER HEALTHCARE,2018-07-10,990364,Public Health & Wellness,Metro Government Operations,Supplies,Lab Supplies,,,,,General Fund,,,63.25
886,2019,2018-04-19,1930534,187.32,FISHER HEALTHCARE,2018-07-26,993061,Public Health & Wellness,Metro Government Operations,Supplies,Lab Supplies,,,,,General Fund,,,187.32
887,2019,2018-06-07,1937407,312.5,HOLOGIC INC,2018-07-03,989487,Public Health & Wellness,Metro Government Operations,Supplies,Lab Supplies,,,,,General Fund,,,312.5
888,2019,2018-06-23,1942984,8837.5,HOLOGIC INC,2018-07-19,991666,Public Health & Wellness,Metro Government Operations,Supplies,Lab Supplies,,,,,General Fund,,,8837.5
889,2019,2018-06-08,1937782,4567.33,IDEXX DISTRIBUTION INC,2018-07-03,989489,Public Health & Wellness,Metro Government Operations,Supplies,Lab Supplies,,,,,General Fund,,,4567.33
890,2019,2018-06-11,1939094,331.4,IDEXX DISTRIBUTION INC,2018-07-06,990039,Public Health & Wellness,Metro Government Operations,Supplies,Lab Supplies,,,,,General Fund,,,331.4
891,2019,2018-06-21,1944729,1215.35,INTEGRATED DNA TECHNOLOGIES INC,2018-07-26,993085,Public Health & Wellness,Metro Government Operations,Supplies,Lab Supplies,,,,,General Fund,,,1215.35
892,2019,2018-05-07,1931602,1153,QIAGEN INC,2018-07-17,991370,Public Health & Wellness,Metro Government Operations,Supplies,Lab Supplies,,,,,General Fund,,,1153
893,2019,2018-06-06,1939463,233.31,THOMAS SCIENTIFIC,2018-07-27,993449,Public Health & Wellness,Metro Government Operations,Supplies,Lab Supplies,,,,,General Fund,,,233.31
894,2019,2018-06-23,1943008,145.39,VWR INTERNATIONAL INC,2018-07-05,989735,Public Health & Wellness,Metro Government Operations,Supplies,Lab Supplies,,,,,General Fund,,,145.39
895,2019,2018-06-21,1943010,287.44,VWR INTERNATIONAL INC,2018-07-05,989735,Public Health & Wellness,Metro Government Operations,Supplies,Lab Supplies,,,,,General Fund,,,287.44
896,2019,2018-04-19,1929848,2301.01,QIAGEN INC,2018-07-26,993164,Public Health & Wellness,Metro Government Operations,Supplies,Lab Supplies,,,,,Misc Agreements,,,2301.01
897,2019,2018-05-29,1936577,437.5,HOLOGIC INC,2018-07-26,993080,Public Health & Wellness,Metro Government Operations,Supplies,Lab Supplies,,,,,State Fund,,,437.5
898,2019,2018-05-17,1940420,15.52,UNIFIRST CORPORATION,2018-08-02,994246,Public Health & Wellness,Metro Government Operations,Supplies,Clothing/Uniform supplies,,,,,General Fund,,,15.52
899,2019,2018-05-17,1942477,32.79,UNIFIRST CORPORATION,2018-07-26,993209,Public Health & Wellness,Metro Government Operations,Supplies,Clothing/Uniform supplies,,,,,General Fund,,,-34.55
900,2019,2018-05-17,1942477,32.79,UNIFIRST CORPORATION,2018-07-26,993209,Public Health & Wellness,Metro Government Operations,Supplies,Clothing/Uniform supplies,,,,,General Fund,,,32.79
901,2019,2018-05-17,1942477,32.79,UNIFIRST CORPORATION,2018-07-26,993209,Public Health & Wellness,Metro Government Operations,Supplies,Clothing/Uniform supplies,,,,,General Fund,,,34.55
902,2019,2018-05-17,1942478,2563.22,UNIFIRST CORPORATION,2018-07-26,993209,Public Health & Wellness,Metro Government Operations,Supplies,Clothing/Uniform supplies,,,,,General Fund,,,2563.22
903,2019,2018-05-17,1942478,2563.22,UNIFIRST CORPORATION,2018-07-26,993209,Public Health & Wellness,Metro Government Operations,Supplies,Clothing/Uniform supplies,,,,,General Fund,,,-2563.22
904,2019,2018-05-17,1942478,2563.22,UNIFIRST CORPORATION,2018-07-26,993209,Public Health & Wellness,Metro Government Operations,Supplies,Clothing/Uniform supplies,,,,,General Fund,,,2563.22
905,2019,2018-05-17,1942479,124.2,UNIFIRST CORPORATION,2018-07-26,993209,Public Health & Wellness,Metro Government Operations,Supplies,Clothing/Uniform supplies,,,,,General Fund,,,124.2
906,2019,2018-05-17,1942480,131.16,UNIFIRST CORPORATION,2018-07-26,993209,Public Health & Wellness,Metro Government Operations,Supplies,Clothing/Uniform supplies,,,,,General Fund,,,131.16
907,2019,2018-05-30,1940426,105.44,UNIFIRST CORPORATION,2018-08-09,995162,Public Health & Wellness,Metro Government Operations,Supplies,Clothing/Uniform supplies,,,,,General Fund,,,-116.81
908,2019,2018-05-30,1940426,105.44,UNIFIRST CORPORATION,2018-08-09,995162,Public Health & Wellness,Metro Government Operations,Supplies,Clothing/Uniform supplies,,,,,General Fund,,,116.81
909,2019,2018-05-30,1940426,105.44,UNIFIRST CORPORATION,2018-08-09,995162,Public Health & Wellness,Metro Government Operations,Supplies,Clothing/Uniform supplies,,,,,General Fund,,,105.44
910,2019,2018-05-17,1940429,25.5,UNIFIRST CORPORATION,2018-08-09,995162,Public Health & Wellness,Metro Government Operations,Supplies,Clothing/Uniform supplies,,,,,General Fund,,,-28.24
911,2019,2018-05-17,1940429,25.5,UNIFIRST CORPORATION,2018-08-09,995162,Public Health & Wellness,Metro Government Operations,Supplies,Clothing/Uniform supplies,,,,,General Fund,,,28.24
912,2019,2018-05-17,1940429,25.5,UNIFIRST CORPORATION,2018-08-09,995162,Public Health & Wellness,Metro Government Operations,Supplies,Clothing/Uniform supplies,,,,,General Fund,,,25.5
913,2019,2018-05-30,1944612,14.16,UNIFIRST CORPORATION,2018-07-26,993209,Public Health & Wellness,Metro Government Operations,Supplies,Clothing/Uniform supplies,,,,,General Fund,,,14.16
914,2019,2018-06-06,1940432,57.9,UNIFIRST CORPORATION,2018-07-06,990082,Public Health & Wellness,Metro Government Operations,Supplies,Clothing/Uniform supplies,,,,,General Fund,,,-63.8
915,2019,2018-06-06,1940432,57.9,UNIFIRST CORPORATION,2018-07-06,990082,Public Health & Wellness,Metro Government Operations,Supplies,Clothing/Uniform supplies,,,,,General Fund,,,57.9
916,2019,2018-06-06,1940432,57.9,UNIFIRST CORPORATION,2018-07-06,990082,Public Health & Wellness,Metro Government Operations,Supplies,Clothing/Uniform supplies,,,,,General Fund,,,63.8
917,2019,2018-06-06,1940417,83.34,UNIFIRST CORPORATION,2018-07-06,990082,Public Health & Wellness,Metro Government Operations,Supplies,Clothing/Uniform supplies,,,,,General Fund,,,83.34
918,2019,2018-06-06,1940417,83.34,UNIFIRST CORPORATION,2018-07-06,990082,Public Health & Wellness,Metro Government Operations,Supplies,Clothing/Uniform supplies,,,,,General Fund,,,-91.54
919,2019,2018-06-06,1940417,83.34,UNIFIRST CORPORATION,2018-07-06,990082,Public Health & Wellness,Metro Government Operations,Supplies,Clothing/Uniform supplies,,,,,General Fund,,,91.54
920,2019,2018-06-06,1940445,98.61,UNIFIRST CORPORATION,2018-07-06,990082,Public Health & Wellness,Metro Government Operations,Supplies,Clothing/Uniform supplies,,,,,General Fund,,,98.61
921,2019,2018-06-06,1940445,98.61,UNIFIRST CORPORATION,2018-07-06,990082,Public Health & Wellness,Metro Government Operations,Supplies,Clothing/Uniform supplies,,,,,General Fund,,,-108.7
922,2019,2018-06-06,1940445,98.61,UNIFIRST CORPORATION,2018-07-06,990082,Public Health & Wellness,Metro Government Operations,Supplies,Clothing/Uniform supplies,,,,,General Fund,,,108.7
923,2019,2018-06-06,1940448,201.66,UNIFIRST CORPORATION,2018-07-06,990082,Public Health & Wellness,Metro Government Operations,Supplies,Clothing/Uniform supplies,,,,,General Fund,,,-221.97
924,2019,2018-06-06,1940448,201.66,UNIFIRST CORPORATION,2018-07-06,990082,Public Health & Wellness,Metro Government Operations,Supplies,Clothing/Uniform supplies,,,,,General Fund,,,201.66
925,2019,2018-06-06,1940448,201.66,UNIFIRST CORPORATION,2018-07-06,990082,Public Health & Wellness,Metro Government Operations,Supplies,Clothing/Uniform supplies,,,,,General Fund,,,221.97
926,2019,2018-07-01,1944306,420,CUSTOM DATA PROCESSING INC,2018-07-26,993033,Public Health & Wellness,Metro Government Operations,Contractual Services,Landfill/Sanitation Services,,,,,General Fund,,,420
927,2019,2018-05-01,1935865,544,CUSTOM DATA PROCESSING INC,2018-07-03,989429,Public Health & Wellness,Metro Government Operations,Contractual Services,Landfill/Sanitation Services,,,,,General Fund,,,-544
928,2019,2018-05-01,1935865,544,CUSTOM DATA PROCESSING INC,2018-07-03,989429,Public Health & Wellness,Metro Government Operations,Contractual Services,Landfill/Sanitation Services,,,,,General Fund,,,544
929,2019,2018-05-01,1935865,544,CUSTOM DATA PROCESSING INC,2018-07-03,989429,Public Health & Wellness,Metro Government Operations,Contractual Services,Landfill/Sanitation Services,,,,,General Fund,,,544
930,2019,2018-07-01,1947797,881.7,THOMSON REUTERS SCIENTIFIC INC,2018-07-26,993195,Louisville Metro Police Department,Metro Government Operations,Contractual Services,Dues,,,,,General Fund,,,881.7
931,2019,2018-06-04,1936761,229.77,CDW LLC,2018-07-03,989414,Louisville Metro Police Department,Metro Government Operations,Contractual Services,Computer Software Rental,,,,,General Fund,,,229.77
932,2019,2018-06-27,1943786,330,CDW LLC,2018-08-02,994153,Public Health & Wellness,Metro Government Operations,Contractual Services,Payments to Contractors,,,,,General Fund,,,330
933,2019,2018-06-29,1943613,750,HEALTHPOINT ASSOCIATES INC,2018-08-02,994179,Louisville Metro Police Department,Metro Government Operations,Contractual Services,Professional Services,,,,,General Fund,,,750
934,2019,2018-07-04,1946720,891,KENTUCKY HUMANE SOCIETY,2018-07-17,991111,Metro Animal Services,Metro Government Operations,Contractual Services,Spay/Neuter,,,,,State Fund,,,891
935,2019,2018-06-25,1943152,52.11,LOWES COMPANIES INC,2018-07-03,989533,Louisville Metro Police Department,Metro Government Operations,Supplies,Educational/Training Supplies,,,,,General Fund,,,52.11
936,2019,2018-07-09,1950392,30,SHRED IT US JV LLC,2018-08-03,994419,Louisville Metro Police Department,Metro Government Operations,Contractual Services,Contractual Non Professional Service Agreements,,,,,General Fund,,,30
937,2019,2018-06-21,1942236,382.99,CDW LLC,2018-07-19,991639,Louisville Metro Police Department,Metro Government Operations,Contractual Services,Dues,,,,,General Fund,,,382.99
938,2019,2018-06-11,1943101,50,INTERNATIONAL ASSOC OF LAW ENFORCEMENT INTEL ANALYST,2018-07-03,989493,Louisville Metro Police Department,Metro Government Operations,Contractual Services,Dues,,,,,General Fund,,,50
939,2019,2018-05-18,1947616,25,INTERNATIONAL ASSOCIATION OF CRIME ANALYSTS INC,2018-07-26,993086,Louisville Metro Police Department,Metro Government Operations,Contractual Services,Dues,,,,,General Fund,,,25
940,2019,2018-07-10,1946491,18147.28,KONICA MINOLTA BUSINESS SOLUTIONS,2018-07-24,992215,Louisville Metro Police Department,Metro Government Operations,Contractual Services,Equipment Rental,,,,,General Fund,,,346.12
941,2019,2018-07-10,1946491,18147.28,KONICA MINOLTA BUSINESS SOLUTIONS,2018-07-24,992215,Louisville Metro Police Department,Metro Government Operations,Contractual Services,Equipment Rental,,,,,General Fund,,,160.19
942,2019,2018-07-10,1946491,18147.28,KONICA MINOLTA BUSINESS SOLUTIONS,2018-07-24,992215,Louisville Metro Police Department,Metro Government Operations,Contractual Services,Equipment Rental,,,,,General Fund,,,324.79
943,2019,2018-06-08,1943656,16744.49,KONICA MINOLTA BUSINESS SOLUTIONS,2018-07-03,989326,Louisville Metro Police Department,Metro Government Operations,Contractual Services,Equipment Rental,,,,,General Fund,,,129.85
944,2019,2018-06-08,1943656,16744.49,KONICA MINOLTA BUSINESS SOLUTIONS,2018-07-03,989326,Louisville Metro Police Department,Metro Government Operations,Contractual Services,Equipment Rental,,,,,General Fund,,,270
945,2019,2018-06-08,1943656,16744.49,KONICA MINOLTA BUSINESS SOLUTIONS,2018-07-03,989326,Louisville Metro Police Department,Metro Government Operations,Contractual Services,Equipment Rental,,,,,General Fund,,,344.4
946,2019,2018-05-14,1933865,104,US BANK EQUIPMENT FINANCE,2018-08-23,997578,Louisville Metro Police Department,Metro Government Operations,Contractual Services,Equipment Rental,,,,,General Fund,,,62.8
947,2019,2018-05-14,1933865,104,US BANK EQUIPMENT FINANCE,2018-08-23,997578,Louisville Metro Police Department,Metro Government Operations,Contractual Services,Equipment Rental,,,,,General Fund,,,41.2
948,2019,2018-06-01,1942965,517.71,LOUISVILLE GAS & ELECTRIC COMPANY,2018-07-03,989530,Louisville Metro Police Department,Metro Government Operations,Contractual Services,Gas/Electric Utility Services,,,,,General Fund,,,517.71
949,2019,2018-06-01,1942943,292.94,LOUISVILLE GAS & ELECTRIC COMPANY,2018-07-03,989530,Louisville Metro Police Department,Metro Government Operations,Contractual Services,Gas/Electric Utility Services,,,,,General Fund,,,292.94
950,2019,2018-06-13,1941645,48.04,OFFICE DEPOT INC,2018-07-12,990808,Louisville Metro Police Department,Metro Government Operations,Supplies,Office Supplies,,,,,General Fund,,,48.04
951,2019,2018-06-11,1941400,252.21,OFFICE DEPOT INC,2018-07-06,990059,Louisville Metro Police Department,Metro Government Operations,Supplies,Office Supplies,,,,,General Fund,,,252.21
952,2019,2018-06-15,1941407,24.75,OFFICE DEPOT INC,2018-07-03,989556,Louisville Metro Police Department,Metro Government Operations,Supplies,Office Supplies,,,,,General Fund,,,24.75
953,2019,2018-06-22,1943567,2457,KENTUCKY CORRECTIONAL INDUSTRIES (KCI),2018-07-26,993095,Louisville Metro Police Department,Metro Government Operations,Contractual Services,Hazardous Materials Response Supplies,,,,,General Fund,,,2457
954,2019,2018-06-27,1943608,922.59,OFFICE DEPOT INC,2018-07-05,989822,Louisville Metro Police Department,Metro Government Operations,Supplies,Office Supplies,,,,,General Fund,,,779.11
955,2019,2018-06-25,1943603,354.99,OFFICE DEPOT INC,2018-07-05,989822,Louisville Metro Police Department,Metro Government Operations,Supplies,Office Supplies,,,,,General Fund,,,354.99
956,2019,2018-06-27,1943598,168.18,OFFICE DEPOT INC,2018-07-05,989822,Louisville Metro Police Department,Metro Government Operations,Supplies,Office Supplies,,,,,General Fund,,,168.18
957,2019,2018-06-26,1943610,107.45,OFFICE DEPOT INC,2018-07-05,989822,Louisville Metro Police Department,Metro Government Operations,Supplies,Office Supplies,,,,,General Fund,,,107.45
958,2019,2018-07-09,1945604,54.72,SPECIFIC WASTE INDUSTRIES LLC,2018-09-14,1000562,Louisville Metro Police Department,Metro Government Operations,Supplies,Police Supplies,,,,,General Fund,,,54.72
959,2019,2018-06-08,1943656,16744.49,KONICA MINOLTA BUSINESS SOLUTIONS,2018-07-03,989326,Louisville Metro Police Department,Metro Government Operations,Contractual Services,Equipment Rental,,,,,General Fund,,,1065.74
960,2019,2018-07-10,1946491,18147.28,KONICA MINOLTA BUSINESS SOLUTIONS,2018-07-24,992215,Louisville Metro Police Department,Metro Government Operations,Contractual Services,Equipment Rental,,,,,General Fund,,,1067.86
961,2019,2018-06-26,1943589,90,ROCKY MOUNTAIN LOGISTICS INC,2018-07-03,989582,Louisville Metro Police Department,Metro Government Operations,Contractual Services,Equipment Rental,,,,,General Fund,,,90
962,2019,2018-06-30,1944701,596.25,VOIANCE LANGUAGE SERVICES LLC,2018-07-26,993222,Louisville Metro Police Department,Metro Government Operations,Contractual Services,Telephone Services,,,,,General Fund,,,596.25
963,2019,2018-06-18,1941938,351.34,OFFICE DEPOT INC,2018-07-12,990808,Louisville Metro Police Department,Metro Government Operations,Supplies,Office Supplies,,,,,General Fund,,,351.34
964,2019,2018-06-18,1941952,351.34,OFFICE DEPOT INC,2018-07-12,990808,Louisville Metro Police Department,Metro Government Operations,Supplies,Office Supplies,,,,,General Fund,,,191.03
965,2019,2018-06-18,1941952,351.34,OFFICE DEPOT INC,2018-07-12,990808,Louisville Metro Police Department,Metro Government Operations,Supplies,Office Supplies,,,,,General Fund,,,160.31
966,2019,2018-06-26,1943609,47.52,OFFICE DEPOT INC,2018-07-05,989822,Louisville Metro Police Department,Metro Government Operations,Supplies,Office Supplies,,,,,General Fund,,,47.52
967,2019,2018-06-26,1943606,50.28,OFFICE DEPOT INC,2018-07-05,989822,Louisville Metro Police Department,Metro Government Operations,Supplies,Office Supplies,,,,,General Fund,,,50.28
968,2019,2018-06-17,1941958,99.99,OFFICE DEPOT INC,2018-07-12,990808,Louisville Metro Police Department,Metro Government Operations,Supplies,Office Supplies,,,,,General Fund,,,99.99
969,2019,2018-06-18,1941962,160.31,OFFICE DEPOT INC,2018-07-12,990808,Louisville Metro Police Department,Metro Government Operations,Supplies,Office Supplies,,,,,General Fund,,,160.31
970,2019,2018-06-15,1941647,160.31,OFFICE DEPOT INC,2018-07-12,990808,Louisville Metro Police Department,Metro Government Operations,Supplies,Office Supplies,,,,,General Fund,,,160.31
971,2019,2018-06-13,1941641,20,OFFICE DEPOT INC,2018-07-12,990808,Louisville Metro Police Department,Metro Government Operations,Supplies,Office Supplies,,,,,General Fund,,,20
972,2019,2018-06-11,1941643,29.29,OFFICE DEPOT INC,2018-07-12,990808,Louisville Metro Police Department,Metro Government Operations,Supplies,Office Supplies,,,,,General Fund,,,29.29
973,2019,2018-06-12,1941654,355.74,OFFICE DEPOT INC,2018-07-12,990808,Louisville Metro Police Department,Metro Government Operations,Supplies,Office Supplies,,,,,General Fund,,,355.74
974,2019,2018-06-15,1941638,160.31,OFFICE DEPOT INC,2018-07-03,989556,Louisville Metro Police Department,Metro Government Operations,Supplies,Office Supplies,,,,,General Fund,,,160.31
975,2019,2018-06-15,1941640,160.31,OFFICE DEPOT INC,2018-07-03,989556,Louisville Metro Police Department,Metro Government Operations,Supplies,Office Supplies,,,,,General Fund,,,160.31
976,2019,2018-06-12,1941663,142.75,OFFICE DEPOT INC,2018-07-12,990808,Louisville Metro Police Department,Metro Government Operations,Supplies,Office Supplies,,,,,General Fund,,,142.75
977,2019,2018-06-28,1943605,35.8,OFFICE DEPOT INC,2018-07-12,990808,Louisville Metro Police Department,Metro Government Operations,Supplies,Office Supplies,,,,,General Fund,,,35.8
978,2019,2018-06-18,1942010,351.34,OFFICE DEPOT INC,2018-07-19,991699,Louisville Metro Police Department,Metro Government Operations,Supplies,Office Supplies,,,,,General Fund,,,347.79
979,2019,2018-06-18,1942010,351.34,OFFICE DEPOT INC,2018-07-19,991699,Louisville Metro Police Department,Metro Government Operations,Supplies,Office Supplies,,,,,General Fund,,,3.55
980,2019,2018-07-04,1947794,439,THOMSON REUTERS SCIENTIFIC INC,2018-07-26,993195,Louisville Metro Police Department,Metro Government Operations,Contractual Services,Dues,,,,,General Fund,,,439
